Workbook

Sheet Overblik
A1: =A918 -> Retten i Roskilde | B1: =_xlfn.IFS($A$1=$A$902,B902,$A$1=$A$903,B903,$A$1=$A$904,B904,$A$1=$A$905,B905,$A$1=$A$906,B906,$A$1=$A$907,B907,$A$1=$A$908,B908,$A$1=$A$909,B909,$A$1=$A$910,B910,$A$1=$A$911,B911,$A$1=$A$912,B912,$A$1=$A$913,B913,$A$1=$A$914,B914,$A$1=$A$915,B915,$A$1=$A$916,B916,$A$1=$A$917,B917,$A$1=$A$918,B918,$A$1=$A$919,B919,$A$1=$A$920,B920,$A$1=$A$921,B921,$A$1=$A$922,B922,$A$1=$A$923,B923,$A$1=$A$924,B924,$A$1=$A$925,B925) -> 108.3872224 | C1: 102.8396394 | D1: 114.513 | E1: 111.3369412 | F1: 94.20570038 | G1: 87.27214093 | H1: 0.1470982891 | I1: 0.1752355326 | J1: 123.4 | K1: 181 | L1: 516 | M1: 646 | N1: 69.4 | O1: 67 | P1: 46 | Q1: 41 | R1: 0.52 | S1: 0.12 | T1: 0.3 | U1: 0.3 | V1: 5.7 | W1: 8.4 | X1: 4.5 | Y1: 4.5 | Z1: 63.41581 | AA1: 66.39206 | AB1: 17.95586 | AC1: 19.3736 | AD1: 39.90112 | AE1: 42.45065 | AF1: 38.1953625 | AG1: 40.773003 | AH1: =AH902 -> 0 | AI1: =AI902 -> 0 | AJ1: 0
A2: =A ->  | B2: =AH1 -> 0
B3: ÅRSNØGLETAL 2021
I4: Evt. sammenligning
B5: =A1 -> Retten i Roskilde | I5: =B35 -> Retten i Roskilde | L5: Datatabeller
D6: 2020 | E6: 2021 | F6: Gnst. BR 2021 | G6: 5. bedste 2021 | I6: =$D$6 -> 2020 | J6: =$E$6 -> 2021 | L6: KLIK PÅ PILENE FOR AT HOPPE TIL DATA:
B7: Samlet produktivitet, retten (indeks) | D7: =B1 -> 108.3872224 | E7: =C1 -> 102.8396394 | F7: ='Produkt.SAML.'!$E$6 -> 89.35247903 | G7: =LARGE($C$902:$C$925,5) -> 100.7507619 | I7: =IF($B$5=$I$5,"",C35) ->  | J7: =IF($B$5=$I$5,"",D35) ->  | M7: Produktivitet, samlet for retten
B8: Samlet produktivitet, jurister (indeks) | D8: =D1 -> 114.513 | E8: =E1 -> 111.3369412 | F8: =Produkt.JUR!$E$6 -> 94.40614646 | G8: =LARGE($E$902:$E$925,5) -> 106.2247952 | I8: =IF($B$5=$I$5,"",E35) ->  | J8: =IF($B$5=$I$5,"",F35) ->  | M8: Produktivitet, jurister
B9: Samlet produktivitet, kontorfunktionærer (indeks) | D9: =F1 -> 94.20570038 | E9: =G1 -> 87.27214093 | F9: =Produkt.KON!$E$6 -> 88.9461913 | G9: =LARGE($G$902:$G$925,5) -> 98.40617146 | I9: =IF($B$5=$I$5,"",G35) ->  | J9: =IF($B$5=$I$5,"",H35) ->  | M9: Produktivitet, kontor
B10: Årsværksandel til generel ledelse og administration (pct.) | D10: =H1*100 -> 14.70982891 | E10: =I1*100 -> 17.52355326 | F10: ='Generel ledelse_Adm.'!$J$13*100 -> 15.61427278 | G10: - | I10: =IF($B$5=$I$5,"",I35*100) ->  | J10: =IF($B$5=$I$5,"",J35*100) ->  | M10: Årsværk, ledelse og administration
B11: Gnst. sagsbehandlingstid, domsmandssager (dage) | D11: =J1 -> 123.4 | E11: =K1 -> 181 | F11: =Sagstid.Straf!$G$6 -> 222 | G11: =Sagstid.Straf!$G$7 -> 154 | I11: =IF($B$5=$I$5,"",K35) ->  | J11: =IF($B$5=$I$5,"",L35) ->  | M11: Aktivitet ved retten
B12: Gnst. sagsbehandlingstid, hovedforhandlet alm. civil sag (dage) | D12: =L1 -> 516 | E12: =M1 -> 646 | F12: =Sagstid.Civil!$E$6 -> 626 | G12: =Sagstid.Civil!$E$7 -> 526 | I12: =IF($B$5=$I$5,"",M35) ->  | J12: =IF($B$5=$I$5,"",N35) ->  | M12: Målopfyldelse, straffesager
B13: Gnst. sagsbehandlingstid, almindelig fogedsag (dage) | D13: =N1 -> 69.4 | E13: =O1 -> 67 | F13: =Sagstid.Foged!$E$6 -> 94 | G13: =Sagstid.Foged!$E$7 -> 67 | I13: =IF($B$5=$I$5,"",O35) ->  | J13: =IF($B$5=$I$5,"",P35) ->  | M13: Målopfyldelse, civile sager
B14: Gnst. sagsbehandlingstid, boudlæg (dage) | D14: =P1 -> 46 | E14: =Q1 -> 41 | F14: =Sagstid.Skifte!$E$6 -> 46 | G14: =Sagstid.Skifte!$E$7 -> 33 | I14: =IF($B$5=$I$5,"",Q35) ->  | J14: =IF($B$5=$I$5,"",R35) ->  | M14: Målopfyldelse, fogedsager
B15: Målopfyldelse, voldssager 37-dages frist (procent) | D15: =R1*100 -> 52 | E15: =S1*100 -> 12 | F15: =Målopf.VVV!$E$8*100 -> 38 | G15: =Målopf.VVV!$E$9*100 -> 58 | I15: =IF($B$5=$I$5,"",S35*100) ->  | J15: =IF($B$5=$I$5,"",T35*100) ->  | M15: Målopfyldelse, skiftesager
B16: Målopfyldelse, voldtægtssager 37-dages frist (procent) | D16: =IF(T1=999," -",T1)*100 -> 30 | E16: =IF(U1=999," -",U1)*100 -> 30 | F16: =Målopf.VVV!$G$8*100 -> 34 | G16: =Målopf.VVV!$G$9*100 -> 60 | I16: =IF($B$5=$I$5,"",U35*100) ->  | J16: =IF($B$5=$I$5,"",V35*100) ->  | M16: Gnst. Sagsbehandlingstid, straffesager
B17: Gnst. sygefravær pr. medarbejder (dage pr. år) | D17: =V1 -> 5.7 | E17: =W1 -> 8.4 | F17: ='HR-nøgletal_lønsum'!$E$6 -> 11.6 | G17: ='HR-nøgletal_lønsum'!$E$7 -> 8.5 | I17: =IF($B$5=$I$5,"",W35) ->  | J17: =IF($B$5=$I$5,"",X35) ->  | M17: Gnst. Sagsbehandlingstid, civile sager
B18: Personaleomsætningsprocent (procent) | D18: =X1 -> 4.5 | E18: =Y1 -> 4.5 | F18: ='HR-nøgletal_lønsum'!$G$6 -> 11.8 | G18: - | I18: =IF($B$5=$I$5,"",Y35) ->  | J18: =IF($B$5=$I$5,"",Z35) ->  | M18: Gnst. Sagsbehandlingstid, fogedsager
B19: Samlet årsværksforbrug, retten (årsværk) | D19: =Z1 -> 63.41581 | E19: =AA1 -> 66.39206 | F19: =Årsværk_Pers.kat!$O$8/24 -> 60.76003083 | G19: - | I19: =IF($B$5=$I$5,"",AA35) ->  | J19: =IF($B$5=$I$5,"",AB35) ->  | M19: Gnst. Sagsbehandlingstid, skiftesager
B20: Samlet årsværksforbrug, jurister (årsværk) | D20: =AB1 -> 17.95586 | E20: =AC1 -> 19.3736 | F20: =Årsværk_Pers.kat!$J$8/24 -> 17.54191292 | G20: - | I20: =IF($B$5=$I$5,"",AC35) ->  | J20: =IF($B$5=$I$5,"",AD35) ->  | M20: HR-nøgletal
B21: Samlet årsværksforbrug, kontorfunktionærer (årsværk) | D21: =AD1 -> 39.90112 | E21: =AE1 -> 42.45065 | F21: =Årsværk_Pers.kat!$K$8/24 -> 34.64528667 | G21: - | I21: =IF($B$5=$I$5,"",AE35) ->  | J21: =IF($B$5=$I$5,"",AF35) ->  | M21: Årsværksforbrug, personalekategorier
B22: Samlet lønsumsforbrug (mio. kr.) | D22: =AF1 -> 38.1953625 | E22: =AG1 -> 40.773003 | F22: ='HR-nøgletal_lønsum'!$I$6 -> 35.75488504 | G22: - | I22: =IF($B$5=$I$5,"",AG35) ->  | J22: =IF($B$5=$I$5,"",AH35) ->  | M22: Årsværksforbrug, sagsområder
B24: Noter:
B25: 1) Ved beregningen af indeks for produktivitet samlet for retten, for jurister og kontor er indeks 100 lig gennemsnittet ved byretterne i 2019.
B26: 2) Årsværksandel til generel ledelse og administration er samlet for retten og inkluderer alle personalegrupper.
B27: 3) Den gennemsnitlige sagsbehandlingstid for en hovedforhandlet almindelig civil sag inkluderer sagstypen almindelige sager. Boligretssager og småsager indgår ikke.
B28: 4) Ansatte under socialt kapitel indgår ikke i beregningen af det gennemsnitlige sygefravær pr. medarbejder (årsværk).
B29: 5) Lønsumsforbruget inkluderer egentlig løn, over- og merarbejde, stævningsmænd, refusioner og pensionsbidrag.
B30: 6) Der er ikke angivet data for 5. bedste byret for årsværksandel til generel ledelse og administration, personaleomsætning, årsværksforbrug og lønsumsforbrug, idet dette ikke er et meningsfuldt benchmark for disse kategorier.
B32: KLIK FOR AT AKTIVERE SAMMENLIGNING:
B34: =A926 -> 0 | C34: =B925 -> 0 | D34: 0 | E34: 0 | F34: 0 | G34: 0 | H34: 0 | I34: 0.2967897313 | J34: 0.318298897 | K34: 57.4 | L34: 76 | M34: 466 | N34: 267 | O34: 31.6 | P34: 27 | Q34: 23 | R34: 19 | S34: 0.68 | T34: 0.73 | U34: 0 | V34: 0.75 | W34: 7.1 | X34: - | Y34: 4.7 | Z34: 0 | AA34: 11.35443 | AB34: 11.56964 | AC34: 2.73528 | AD34: 3.13433 | AE34: 6.56717 | AF34: 5.47697 | AG34: 10.39288095
B35: =A918 -> Retten i Roskilde | C35: =B918 -> 108.3872224 | D35: 102.8396394 | E35: 114.513 | F35: 111.3369412 | G35: 94.20570038 | H35: 87.27214093 | I35: 0.1470982891 | J35: 0.1752355326 | K35: 123.4 | L35: 181 | M35: 516 | N35: 646 | O35: 69.4 | P35: 67 | Q35: 46 | R35: 41 | S35: 0.52 | T35: 0.12 | U35: 0.3 | V35: 0.3 | W35: 5.7 | X35: 8.4 | Y35: 4.5 | Z35: 4.5 | AA35: 63.41581 | AB35: 66.39206 | AC35: 17.95586 | AD35: 19.3736 | AE35: 39.90112 | AF35: 42.45065 | AG35: 38.1953625 | AH35: 40.773003 | AI35: 0
B900: Samlet produktivitet, retten | D900: Samlet produktivitet, jurister | F900: Samlet produktivitet, kontor | H900: ÅRVK ledelse og adm. (andel) | J900: Sagstider domsmandssager | L900: Sagstider hfh. alm. Civil | N900: Sagstid alm. fogedsag | P900: Sagstider boudlæg | R900: Målopfyldelse vold | T900: Målopfyldelse voldtægt | V900: Sygefravær | X900: Personaleomsætning | Z900: Årsværk retten | AB900: Årsværk jurist | AD900: Årsværk kontor | AF900: Samlet lønsum
A901: Ret | B901: =$D$6 -> 2020 | C901: =$E$6 -> 2021 | D901: =$D$6 -> 2020 | E901: =$E$6 -> 2021 | F901: =$D$6 -> 2020 | G901: =$E$6 -> 2021 | H901: =$D$6 -> 2020 | I901: =$E$6 -> 2021 | J901: =$D$6 -> 2020 | K901: =$E$6 -> 2021 | L901: =$D$6 -> 2020 | M901: =$E$6 -> 2021 | N901: =$D$6 -> 2020 | O901: =$E$6 -> 2021 | P901: =$D$6 -> 2020 | Q901: =$E$6 -> 2021 | R901: =$D$6 -> 2020 | S901: =$E$6 -> 2021 | T901: =$D$6 -> 2020 | U901: =$E$6 -> 2021 | V901: =$D$6 -> 2020 | W901: =$E$6 -> 2021 | X901: =$D$6 -> 2020 | Y901: =$E$6 -> 2021 | Z901: =$D$6 -> 2020 | AA901: =$E$6 -> 2021 | AB901: =$D$6 -> 2020 | AC901: =$E$6 -> 2021 | AD901: =$D$6 -> 2020 | AE901: =$E$6 -> 2021 | AF901: =$D$6 -> 2020 | AG901: =$E$6 -> 2021
A902: Retten i Hjørring | B902: ='Produkt.SAML.'!D9 -> 89.99383204 | C902: ='Produkt.SAML.'!E9 -> 87.84852496 | D902: =Produkt.JUR!D9 -> 88.658 | E902: =Produkt.JUR!E9 -> 89.38261954 | F902: =Produkt.KON!D9 -> 90.94132157 | G902: =Produkt.KON!E9 -> 87.05609001 | H902: ='Generel ledelse_Adm.'!I21 -> 0.1258673985 | I902: ='Generel ledelse_Adm.'!J21 -> 0.161184571 | J902: =Sagstid.Straf!F9 -> 127 | K902: =Sagstid.Straf!G9 -> 196 | L902: =Sagstid.Civil!D9 -> 536 | M902: =Sagstid.Civil!E9 -> 578 | N902: =Sagstid.Foged!D9 -> 80.1 | O902: =Sagstid.Foged!E9 -> 88 | P902: =Sagstid.Skifte!D9 -> 56 | Q902: =Sagstid.Skifte!E9 -> 50 | R902: =Målopf.VVV!D11 -> 0.37 | S902: =Målopf.VVV!E11 -> 0.35 | T902: =Målopf.VVV!F11 -> 0.57 | U902: =Målopf.VVV!G11 -> 0.38 | V902: ='HR-nøgletal_lønsum'!D9 -> 9 | W902: ='HR-nøgletal_lønsum'!E9 -> 6.7 | X902: ='HR-nøgletal_lønsum'!F9 -> 11.1 | Y902: ='HR-nøgletal_lønsum'!G9 -> 9 | Z902: =Årsværk_Pers.kat!I10 -> 47.35677 | AA902: =Årsværk_Pers.kat!O10 -> 46.88327 | AB902: =Årsværk_Pers.kat!D10 -> 12.99394 | AC902: =Årsværk_Pers.kat!J10 -> 13.06093 | AD902: =Årsværk_Pers.kat!E10 -> 27.39603 | AE902: =Årsværk_Pers.kat!K10 -> 27.47848 | AF902: ='HR-nøgletal_lønsum'!H9 -> 26.13966582 | AG902: ='HR-nøgletal_lønsum'!I9 -> 25.77904899
A903: Retten i Aalborg | B903: ='Produkt.SAML.'!D10 -> 93.52451825 | C903: ='Produkt.SAML.'!E10 -> 95.68886905 | D903: =Produkt.JUR!D10 -> 93.504 | E903: =Produkt.JUR!E10 -> 99.39559181 | F903: =Produkt.KON!D10 -> 92.77165146 | G903: =Produkt.KON!E10 -> 89.00905781 | H903: ='Generel ledelse_Adm.'!I28 -> 0.1035718835 | I903: ='Generel ledelse_Adm.'!J28 -> 0.1080661474 | J903: =Sagstid.Straf!F10 -> 162.6 | K903: =Sagstid.Straf!G10 -> 189 | L903: =Sagstid.Civil!D10 -> 626 | M903: =Sagstid.Civil!E10 -> 664 | N903: =Sagstid.Foged!D10 -> 102.4 | O903: =Sagstid.Foged!E10 -> 68 | P903: =Sagstid.Skifte!D10 -> 57 | Q903: =Sagstid.Skifte!E10 -> 52 | R903: =Målopf.VVV!D12 -> 0.37 | S903: =Målopf.VVV!E12 -> 0.24 | T903: =Målopf.VVV!F12 -> 0.38 | U903: =Målopf.VVV!G12 -> 0.38 | V903: ='HR-nøgletal_lønsum'!D10 -> 12.5 | W903: ='HR-nøgletal_lønsum'!E10 -> 5.5 | X903: ='HR-nøgletal_lønsum'!F10 -> 9.2 | Y903: ='HR-nøgletal_lønsum'!G10 -> 12.5 | Z903: =Årsværk_Pers.kat!I11 -> 74.28198 | AA903: =Årsværk_Pers.kat!O11 -> 73.61024 | AB903: =Årsværk_Pers.kat!D11 -> 21.4211 | AC903: =Årsværk_Pers.kat!J11 -> 20.75811 | AD903: =Årsværk_Pers.kat!E11 -> 41.62123 | AE903: =Årsværk_Pers.kat!K11 -> 43.18242 | AF903: ='HR-nøgletal_lønsum'!H10 -> 42.03003044 | AG903: ='HR-nøgletal_lønsum'!I10 -> 40.75439419
A904: Retten i Randers | B904: ='Produkt.SAML.'!D11 -> 104.5069779 | C904: ='Produkt.SAML.'!E11 -> 99.15125084 | D904: =Produkt.JUR!D11 -> 109.736 | E904: =Produkt.JUR!E11 -> 102.8262165 | F904: =Produkt.KON!D11 -> 96.86168201 | G904: =Produkt.KON!E11 -> 93.36964735 | H904: ='Generel ledelse_Adm.'!I35 -> 0.1613504976 | I904: ='Generel ledelse_Adm.'!J35 -> 0.1905728066 | J904: =Sagstid.Straf!F11 -> 183.5 | K904: =Sagstid.Straf!G11 -> 229 | L904: =Sagstid.Civil!D11 -> 589 | M904: =Sagstid.Civil!E11 -> 639 | N904: =Sagstid.Foged!D11 -> 112 | O904: =Sagstid.Foged!E11 -> 113 | P904: =Sagstid.Skifte!D11 -> 48 | Q904: =Sagstid.Skifte!E11 -> 49 | R904: =Målopf.VVV!D13 -> 0.56 | S904: =Målopf.VVV!E13 -> 0.59 | T904: =Målopf.VVV!F13 -> 0.44 | U904: =Målopf.VVV!G13 -> 0.2 | V904: ='HR-nøgletal_lønsum'!D11 -> - | W904: ='HR-nøgletal_lønsum'!E11 -> 9.9 | X904: ='HR-nøgletal_lønsum'!F11 -> 7.6 | Y904: ='HR-nøgletal_lønsum'!G11 -> 3.7 | Z904: =Årsværk_Pers.kat!I12 -> 47.71472 | AA904: =Årsværk_Pers.kat!O12 -> 47.9646 | AB904: =Årsværk_Pers.kat!D12 -> 12.05663 | AC904: =Årsværk_Pers.kat!J12 -> 12.91887 | AD904: =Årsværk_Pers.kat!E12 -> 28.97696 | AE904: =Årsværk_Pers.kat!K12 -> 28.49065 | AF904: ='HR-nøgletal_lønsum'!H11 -> 27.67477894 | AG904: ='HR-nøgletal_lønsum'!I11 -> 28.05371441
A905: Retten i Århus | B905: ='Produkt.SAML.'!D12 -> 103.4676184 | C905: ='Produkt.SAML.'!E12 -> 90.48986993 | D905: =Produkt.JUR!D12 -> 107.116 | E905: =Produkt.JUR!E12 -> 97.29542964 | F905: =Produkt.KON!D12 -> 101.549847 | G905: =Produkt.KON!E12 -> 90.39017586 | H905: ='Generel ledelse_Adm.'!I42 -> 0.125255447 | I905: ='Generel ledelse_Adm.'!J42 -> 0.162279109 | J905: =Sagstid.Straf!F12 -> 303.2 | K905: =Sagstid.Straf!G12 -> 358 | L905: =Sagstid.Civil!D12 -> 813 | M905: =Sagstid.Civil!E12 -> 844 | N905: =Sagstid.Foged!D12 -> 187.3 | O905: =Sagstid.Foged!E12 -> 93 | P905: =Sagstid.Skifte!D12 -> 70 | Q905: =Sagstid.Skifte!E12 -> 61 | R905: =Målopf.VVV!D14 -> 0.47 | S905: =Målopf.VVV!E14 -> 0.45 | T905: =Målopf.VVV!F14 -> 0.47 | U905: =Målopf.VVV!G14 -> 0.22 | V905: ='HR-nøgletal_lønsum'!D12 -> 17.6 | W905: ='HR-nøgletal_lønsum'!E12 -> 18.3 | X905: ='HR-nøgletal_lønsum'!F12 -> 10.2 | Y905: ='HR-nøgletal_lønsum'!G12 -> 12.8 | Z905: =Årsværk_Pers.kat!I13 -> 81.98002 | AA905: =Årsværk_Pers.kat!O13 -> 85.70721 | AB905: =Årsværk_Pers.kat!D13 -> 24.42996 | AC905: =Årsværk_Pers.kat!J13 -> 24.70667 | AD905: =Årsværk_Pers.kat!E13 -> 46.47564 | AE905: =Årsværk_Pers.kat!K13 -> 45.3934 | AF905: ='HR-nøgletal_lønsum'!H12 -> 48.4762691 | AG905: ='HR-nøgletal_lønsum'!I12 -> 50.33348988
A906: Retten i Viborg | B906: ='Produkt.SAML.'!D13 -> 95.19083935 | C906: ='Produkt.SAML.'!E13 -> 97.21890365 | D906: =Produkt.JUR!D13 -> 91.571 | E906: =Produkt.JUR!E13 -> 106.5621988 | F906: =Produkt.KON!D13 -> 100.052278 | G906: =Produkt.KON!E13 -> 91.16839156 | H906: ='Generel ledelse_Adm.'!I49 -> 0.1488363489 | I906: ='Generel ledelse_Adm.'!J49 -> 0.1626350858 | J906: =Sagstid.Straf!F13 -> 183.4 | K906: =Sagstid.Straf!G13 -> 239 | L906: =Sagstid.Civil!D13 -> 604 | M906: =Sagstid.Civil!E13 -> 685 | N906: =Sagstid.Foged!D13 -> 108.8 | O906: =Sagstid.Foged!E13 -> 114 | P906: =Sagstid.Skifte!D13 -> 74 | Q906: =Sagstid.Skifte!E13 -> 72 | R906: =Målopf.VVV!D15 -> 0.56 | S906: =Målopf.VVV!E15 -> 0.65 | T906: =Målopf.VVV!F15 -> 0.36 | U906: =Målopf.VVV!G15 -> 0.71 | V906: ='HR-nøgletal_lønsum'!D13 -> - | W906: ='HR-nøgletal_lønsum'!E13 -> 8.8 | X906: ='HR-nøgletal_lønsum'!F13 -> 8.5 | Y906: ='HR-nøgletal_lønsum'!G13 -> 11.7 | Z906: =Årsværk_Pers.kat!I14 -> 51.99524 | AA906: =Årsværk_Pers.kat!O14 -> 53.79095 | AB906: =Årsværk_Pers.kat!D14 -> 14.82818 | AC906: =Årsværk_Pers.kat!J14 -> 13.41872 | AD906: =Årsværk_Pers.kat!E14 -> 27.10151 | AE906: =Årsværk_Pers.kat!K14 -> 29.8504 | AF906: ='HR-nøgletal_lønsum'!H13 -> 27.63728074 | AG906: ='HR-nøgletal_lønsum'!I13 -> 28.44490772
A907: Retten i Holstebro | B907: ='Produkt.SAML.'!D14 -> 107.1322016 | C907: ='Produkt.SAML.'!E14 -> 106.896309 | D907: =Produkt.JUR!D14 -> 119.345 | E907: =Produkt.JUR!E14 -> 119.4218063 | F907: =Produkt.KON!D14 -> 98.70854472 | G907: =Produkt.KON!E14 -> 99.1251152 | H907: ='Generel ledelse_Adm.'!I56 -> 0.1911822967 | I907: ='Generel ledelse_Adm.'!J56 -> 0.1629713284 | J907: =Sagstid.Straf!F14 -> 101.9 | K907: =Sagstid.Straf!G14 -> 171 | L907: =Sagstid.Civil!D14 -> 493 | M907: =Sagstid.Civil!E14 -> 710 | N907: =Sagstid.Foged!D14 -> 50.9 | O907: =Sagstid.Foged!E14 -> 37 | P907: =Sagstid.Skifte!D14 -> 37 | Q907: =Sagstid.Skifte!E14 -> 39 | R907: =Målopf.VVV!D16 -> 0.54 | S907: =Målopf.VVV!E16 -> 0.43 | T907: =Målopf.VVV!F16 -> 0.5 | U907: =Målopf.VVV!G16 -> 0.44 | V907: ='HR-nøgletal_lønsum'!D14 -> 10.2 | W907: ='HR-nøgletal_lønsum'!E14 -> 8.8 | X907: ='HR-nøgletal_lønsum'!F14 -> 8.5 | Y907: ='HR-nøgletal_lønsum'!G14 -> 13.4 | Z907: =Årsværk_Pers.kat!I15 -> 35.62901 | AA907: =Årsværk_Pers.kat!O15 -> 36.66749 | AB907: =Årsværk_Pers.kat!D15 -> 8.02111 | AC907: =Årsværk_Pers.kat!J15 -> 8.83508 | AD907: =Årsværk_Pers.kat!E15 -> 19.68935 | AE907: =Årsværk_Pers.kat!K15 -> 19.97882 | AF907: ='HR-nøgletal_lønsum'!H14 -> 19.75105665 | AG907: ='HR-nøgletal_lønsum'!I14 -> 20.43936622
A908: Retten i Herning | B908: ='Produkt.SAML.'!D15 -> 108.4535442 | C908: ='Produkt.SAML.'!E15 -> 100.7507619 | D908: =Produkt.JUR!D15 -> 103.29 | E908: =Produkt.JUR!E15 -> 102.6942274 | F908: =Produkt.KON!D15 -> 114.6376024 | G908: =Produkt.KON!E15 -> 102.2639586 | H908: ='Generel ledelse_Adm.'!I63 -> 0.1121251831 | I908: ='Generel ledelse_Adm.'!J63 -> 0.1361044475 | J908: =Sagstid.Straf!F15 -> 114.5 | K908: =Sagstid.Straf!G15 -> 140 | L908: =Sagstid.Civil!D15 -> 393 | M908: =Sagstid.Civil!E15 -> 494 | N908: =Sagstid.Foged!D15 -> 77.8 | O908: =Sagstid.Foged!E15 -> 72 | P908: =Sagstid.Skifte!D15 -> 65 | Q908: =Sagstid.Skifte!E15 -> 49 | R908: =Målopf.VVV!D17 -> 0.66 | S908: =Målopf.VVV!E17 -> 0.65 | T908: =Målopf.VVV!F17 -> 0.38 | U908: =Målopf.VVV!G17 -> 0.5 | V908: ='HR-nøgletal_lønsum'!D15 -> 6.1 | W908: ='HR-nøgletal_lønsum'!E15 -> 7.2 | X908: ='HR-nøgletal_lønsum'!F15 -> 2.4 | Y908: ='HR-nøgletal_lønsum'!G15 -> 13 | Z908: =Årsværk_Pers.kat!I16 -> 41.04859 | AA908: =Årsværk_Pers.kat!O16 -> 40.50561 | AB908: =Årsværk_Pers.kat!D16 -> 12.91156 | AC908: =Årsværk_Pers.kat!J16 -> 11.79869 | AD908: =Årsværk_Pers.kat!E16 -> 21.91397 | AE908: =Årsværk_Pers.kat!K16 -> 22.20023 | AF908: ='HR-nøgletal_lønsum'!H15 -> 23.12818383 | AG908: ='HR-nøgletal_lønsum'!I15 -> 23.01190216
A909: Retten i Horsens | B909: ='Produkt.SAML.'!D16 -> 87.93652036 | C909: ='Produkt.SAML.'!E16 -> 87.00257958 | D909: =Produkt.JUR!D16 -> 87.261 | E909: =Produkt.JUR!E16 -> 87.92889129 | F909: =Produkt.KON!D16 -> 97.84737101 | G909: =Produkt.KON!E16 -> 95.97378081 | H909: ='Generel ledelse_Adm.'!I70 -> 0.1650960443 | I909: ='Generel ledelse_Adm.'!J70 -> 0.1729787191 | J909: =Sagstid.Straf!F16 -> 216.5 | K909: =Sagstid.Straf!G16 -> 314 | L909: =Sagstid.Civil!D16 -> 605 | M909: =Sagstid.Civil!E16 -> 632 | N909: =Sagstid.Foged!D16 -> 75.6 | O909: =Sagstid.Foged!E16 -> 92 | P909: =Sagstid.Skifte!D16 -> 52 | Q909: =Sagstid.Skifte!E16 -> 64 | R909: =Målopf.VVV!D18 -> 0.4 | S909: =Målopf.VVV!E18 -> 0.26 | T909: =Målopf.VVV!F18 -> 0.4 | U909: =Målopf.VVV!G18 -> 0.5 | V909: ='HR-nøgletal_lønsum'!D16 -> 12 | W909: ='HR-nøgletal_lønsum'!E16 -> 8.7 | X909: ='HR-nøgletal_lønsum'!F16 -> 7.1 | Y909: ='HR-nøgletal_lønsum'!G16 -> 14.7 | Z909: =Årsværk_Pers.kat!I17 -> 41.32052 | AA909: =Årsværk_Pers.kat!O17 -> 43.6222 | AB909: =Årsværk_Pers.kat!D17 -> 12.04145 | AC909: =Årsværk_Pers.kat!J17 -> 11.94088 | AD909: =Årsværk_Pers.kat!E17 -> 20.58887 | AE909: =Årsværk_Pers.kat!K17 -> 21.35246 | AF909: ='HR-nøgletal_lønsum'!H16 -> 22.38138339 | AG909: ='HR-nøgletal_lønsum'!I16 -> 23.36264669
A910: Retten i Kolding | B910: ='Produkt.SAML.'!D17 -> 97.3497896 | C910: ='Produkt.SAML.'!E17 -> 97.35457885 | D910: =Produkt.JUR!D17 -> 93.765 | E910: =Produkt.JUR!E17 -> 92.75408802 | F910: =Produkt.KON!D17 -> 98.13562114 | G910: =Produkt.KON!E17 -> 100.1032868 | H910: ='Generel ledelse_Adm.'!I77 -> 0.1394618911 | I910: ='Generel ledelse_Adm.'!J77 -> 0.1159291882 | J910: =Sagstid.Straf!F17 -> 197.4 | K910: =Sagstid.Straf!G17 -> 270 | L910: =Sagstid.Civil!D17 -> 592 | M910: =Sagstid.Civil!E17 -> 706 | N910: =Sagstid.Foged!D17 -> 78.3 | O910: =Sagstid.Foged!E17 -> 78 | P910: =Sagstid.Skifte!D17 -> 37 | Q910: =Sagstid.Skifte!E17 -> 29 | R910: =Målopf.VVV!D19 -> 0.5 | S910: =Målopf.VVV!E19 -> 0.49 | T910: =Målopf.VVV!F19 -> 0.5 | U910: =Målopf.VVV!G19 -> 0.56 | V910: ='HR-nøgletal_lønsum'!D17 -> 15.1 | W910: ='HR-nøgletal_lønsum'!E17 -> - | X910: ='HR-nøgletal_lønsum'!F17 -> 3.6 | Y910: ='HR-nøgletal_lønsum'!G17 -> 14.9 | Z910: =Årsværk_Pers.kat!I18 -> 70.21726 | AA910: =Årsværk_Pers.kat!O18 -> 71.16994 | AB910: =Årsværk_Pers.kat!D18 -> 21.09545 | AC910: =Årsværk_Pers.kat!J18 -> 22.20287 | AD910: =Årsværk_Pers.kat!E18 -> 39.59262 | AE910: =Årsværk_Pers.kat!K18 -> 39.0117 | AF910: ='HR-nøgletal_lønsum'!H17 -> 41.52090576 | AG910: ='HR-nøgletal_lønsum'!I17 -> 41.692
A911: Retten i Esbjerg | B911: ='Produkt.SAML.'!D18 -> 94.36408316 | C911: ='Produkt.SAML.'!E18 -> 87.61060216 | D911: =Produkt.JUR!D18 -> 93.272 | E911: =Produkt.JUR!E18 -> 88.42223882 | F911: =Produkt.KON!D18 -> 101.6999515 | G911: =Produkt.KON!E18 -> 94.54518214 | H911: ='Generel ledelse_Adm.'!I84 -> 0.1616506026 | I911: ='Generel ledelse_Adm.'!J84 -> 0.1560536592 | J911: =Sagstid.Straf!F18 -> 216.9 | K911: =Sagstid.Straf!G18 -> 301 | L911: =Sagstid.Civil!D18 -> 741 | M911: =Sagstid.Civil!E18 -> 814 | N911: =Sagstid.Foged!D18 -> 50.7 | O911: =Sagstid.Foged!E18 -> 54 | P911: =Sagstid.Skifte!D18 -> 39 | Q911: =Sagstid.Skifte!E18 -> 29 | R911: =Målopf.VVV!D20 -> 0.42 | S911: =Målopf.VVV!E20 -> 0.31 | T911: =Målopf.VVV!F20 -> 1 | U911: =Målopf.VVV!G20 -> 0.27 | V911: ='HR-nøgletal_lønsum'!D18 -> 11.3 | W911: ='HR-nøgletal_lønsum'!E18 -> 11.5 | X911: ='HR-nøgletal_lønsum'!F18 -> 10.4 | Y911: ='HR-nøgletal_lønsum'!G18 -> 15.3 | Z911: =Årsværk_Pers.kat!I19 -> 47.83075 | AA911: =Årsværk_Pers.kat!O19 -> 49.77454 | AB911: =Årsværk_Pers.kat!D19 -> 15.01051 | AC911: =Årsværk_Pers.kat!J19 -> 14.69996 | AD911: =Årsværk_Pers.kat!E19 -> 26.19319 | AE911: =Årsværk_Pers.kat!K19 -> 26.54279 | AF911: ='HR-nøgletal_lønsum'!H18 -> 27.31258646 | AG911: ='HR-nøgletal_lønsum'!I18 -> 27.36533371
A912: Retten i Sønderborg | B912: ='Produkt.SAML.'!D19 -> 100.1777716 | C912: ='Produkt.SAML.'!E19 -> 101.8334745 | D912: =Produkt.JUR!D19 -> 104.981 | E912: =Produkt.JUR!E19 -> 106.2247952 | F912: =Produkt.KON!D19 -> 96.15310131 | G912: =Produkt.KON!E19 -> 93.86566897 | H912: ='Generel ledelse_Adm.'!I91 -> 0.1638563503 | I912: ='Generel ledelse_Adm.'!J91 -> 0.1651447993 | J912: =Sagstid.Straf!F19 -> 182.7 | K912: =Sagstid.Straf!G19 -> 239 | L912: =Sagstid.Civil!D19 -> 491 | M912: =Sagstid.Civil!E19 -> 551 | N912: =Sagstid.Foged!D19 -> 121.9 | O912: =Sagstid.Foged!E19 -> 108 | P912: =Sagstid.Skifte!D19 -> 53 | Q912: =Sagstid.Skifte!E19 -> 51 | R912: =Målopf.VVV!D21 -> 0.63 | S912: =Målopf.VVV!E21 -> 0.47 | T912: =Målopf.VVV!F21 -> 0.46 | U912: =Målopf.VVV!G21 -> 0.56 | V912: ='HR-nøgletal_lønsum'!D19 -> - | W912: ='HR-nøgletal_lønsum'!E19 -> 11 | X912: ='HR-nøgletal_lønsum'!F19 -> 10.5 | Y912: ='HR-nøgletal_lønsum'!G19 -> 14.2 | Z912: =Årsværk_Pers.kat!I20 -> 57.41856 | AA912: =Årsværk_Pers.kat!O20 -> 53.01105 | AB912: =Årsværk_Pers.kat!D20 -> 15.67794 | AC912: =Årsværk_Pers.kat!J20 -> 15.02947 | AD912: =Årsværk_Pers.kat!E20 -> 34.78688 | AE912: =Årsværk_Pers.kat!K20 -> 32.94109 | AF912: ='HR-nøgletal_lønsum'!H19 -> 34.13167997 | AG912: ='HR-nøgletal_lønsum'!I19 -> 33.38097227
A913: Retten i Odense | B913: ='Produkt.SAML.'!D20 -> 97.26443472 | C913: ='Produkt.SAML.'!E20 -> 102.53627 | D913: =Produkt.JUR!D20 -> 101.531 | E913: =Produkt.JUR!E20 -> 110.7567507 | F913: =Produkt.KON!D20 -> 94.03729409 | G913: =Produkt.KON!E20 -> 94.83698175 | H913: ='Generel ledelse_Adm.'!I98 -> 0.1298419414 | I913: ='Generel ledelse_Adm.'!J98 -> 0.1198751887 | J913: =Sagstid.Straf!F20 -> 133.9 | K913: =Sagstid.Straf!G20 -> 195 | L913: =Sagstid.Civil!D20 -> 511 | M913: =Sagstid.Civil!E20 -> 572 | N913: =Sagstid.Foged!D20 -> 90.2 | O913: =Sagstid.Foged!E20 -> 132 | P913: =Sagstid.Skifte!D20 -> 55 | Q913: =Sagstid.Skifte!E20 -> 54 | R913: =Målopf.VVV!D22 -> 0.31 | S913: =Målopf.VVV!E22 -> 0.21 | T913: =Målopf.VVV!F22 -> 0.25 | U913: =Målopf.VVV!G22 -> 0.14 | V913: ='HR-nøgletal_lønsum'!D20 -> 8.9 | W913: ='HR-nøgletal_lønsum'!E20 -> 9.8 | X913: ='HR-nøgletal_lønsum'!F20 -> 6.2 | Y913: ='HR-nøgletal_lønsum'!G20 -> 10 | Z913: =Årsværk_Pers.kat!I21 -> 74.12867 | AA913: =Årsværk_Pers.kat!O21 -> 75.0429 | AB913: =Årsværk_Pers.kat!D21 -> 20.78204 | AC913: =Årsværk_Pers.kat!J21 -> 20.66863 | AD913: =Årsværk_Pers.kat!E21 -> 43.46331 | AE913: =Årsværk_Pers.kat!K21 -> 45.38108 | AF913: ='HR-nøgletal_lønsum'!H20 -> 42.43667345 | AG913: ='HR-nøgletal_lønsum'!I20 -> 43.19598432
A914: Retten i Svendborg | B914: ='Produkt.SAML.'!D21 -> 87.08759471 | C914: ='Produkt.SAML.'!E21 -> 86.34565215 | D914: =Produkt.JUR!D21 -> 86.464 | E914: =Produkt.JUR!E21 -> 88.48082216 | F914: =Produkt.KON!D21 -> 96.83437037 | G914: =Produkt.KON!E21 -> 95.55080734 | H914: ='Generel ledelse_Adm.'!I105 -> 0.1914651318 | I914: ='Generel ledelse_Adm.'!J105 -> 0.208736288 | J914: =Sagstid.Straf!F21 -> 141.6 | K914: =Sagstid.Straf!G21 -> 154 | L914: =Sagstid.Civil!D21 -> 558 | M914: =Sagstid.Civil!E21 -> 517 | N914: =Sagstid.Foged!D21 -> 88.6 | O914: =Sagstid.Foged!E21 -> 95 | P914: =Sagstid.Skifte!D21 -> 44 | Q914: =Sagstid.Skifte!E21 -> 46 | R914: =Målopf.VVV!D23 -> 0.42 | S914: =Målopf.VVV!E23 -> 0.58 | T914: =Målopf.VVV!F23 -> 0.5 | U914: =Målopf.VVV!G23 -> 0.63 | V914: ='HR-nøgletal_lønsum'!D21 -> 4.7 | W914: ='HR-nøgletal_lønsum'!E21 -> 9.5 | X914: ='HR-nøgletal_lønsum'!F21 -> 4.8 | Y914: ='HR-nøgletal_lønsum'!G21 -> 13.6 | Z914: =Årsværk_Pers.kat!I22 -> 39.25271 | AA914: =Årsværk_Pers.kat!O22 -> 38.62896 | AB914: =Årsværk_Pers.kat!D22 -> 11.11692 | AC914: =Årsværk_Pers.kat!J22 -> 10.47298 | AD914: =Årsværk_Pers.kat!E22 -> 20.92918 | AE914: =Årsværk_Pers.kat!K22 -> 20.73733 | AF914: ='HR-nøgletal_lønsum'!H21 -> 21.73533766 | AG914: ='HR-nøgletal_lønsum'!I21 -> 21.30951363
A915: Retten i Nykøbing F. | B915: ='Produkt.SAML.'!D22 -> 103.6389345 | C915: ='Produkt.SAML.'!E22 -> 89.47225158 | D915: =Produkt.JUR!D22 -> 111.353 | E915: =Produkt.JUR!E22 -> 96.26704402 | F915: =Produkt.KON!D22 -> 97.75699182 | G915: =Produkt.KON!E22 -> 82.56696321 | H915: ='Generel ledelse_Adm.'!I112 -> 0.1868871532 | I915: ='Generel ledelse_Adm.'!J112 -> 0.1784231001 | J915: =Sagstid.Straf!F22 -> 127.6 | K915: =Sagstid.Straf!G22 -> 103 | L915: =Sagstid.Civil!D22 -> 433 | M915: =Sagstid.Civil!E22 -> 425 | N915: =Sagstid.Foged!D22 -> 78.1 | O915: =Sagstid.Foged!E22 -> 67 | P915: =Sagstid.Skifte!D22 -> 38 | Q915: =Sagstid.Skifte!E22 -> 33 | R915: =Målopf.VVV!D24 -> 0.6 | S915: =Målopf.VVV!E24 -> 0.46 | T915: =Målopf.VVV!F24 -> 0.78 | U915: =Målopf.VVV!G24 -> 0.6 | V915: ='HR-nøgletal_lønsum'!D22 -> 9.4 | W915: ='HR-nøgletal_lønsum'!E22 -> 8.5 | X915: ='HR-nøgletal_lønsum'!F22 -> 6.2 | Y915: ='HR-nøgletal_lønsum'!G22 -> 11.7 | Z915: =Årsværk_Pers.kat!I23 -> 49.94259 | AA915: =Årsværk_Pers.kat!O23 -> 49.30493 | AB915: =Årsværk_Pers.kat!D23 -> 13.18387 | AC915: =Årsværk_Pers.kat!J23 -> 13.07402 | AD915: =Årsværk_Pers.kat!E23 -> 30.95584 | AE915: =Årsværk_Pers.kat!K23 -> 31.18948 | AF915: ='HR-nøgletal_lønsum'!H22 -> 28.68026918 | AG915: ='HR-nøgletal_lønsum'!I22 -> 27.48744486
A916: Retten i Næstved | B916: ='Produkt.SAML.'!D23 -> 100.9087058 | C916: ='Produkt.SAML.'!E23 -> 86.56089525 | D916: =Produkt.JUR!D23 -> 105.688 | E916: =Produkt.JUR!E23 -> 94.89830449 | F916: =Produkt.KON!D23 -> 95.07352706 | G916: =Produkt.KON!E23 -> 80.63271479 | H916: ='Generel ledelse_Adm.'!I119 -> 0.1807741594 | I916: ='Generel ledelse_Adm.'!J119 -> 0.2006178252 | J916: =Sagstid.Straf!F23 -> 138.5 | K916: =Sagstid.Straf!G23 -> 139 | L916: =Sagstid.Civil!D23 -> 516 | M916: =Sagstid.Civil!E23 -> 571 | N916: =Sagstid.Foged!D23 -> 88.3 | O916: =Sagstid.Foged!E23 -> 82 | P916: =Sagstid.Skifte!D23 -> 48 | Q916: =Sagstid.Skifte!E23 -> 37 | R916: =Målopf.VVV!D25 -> 0.55 | S916: =Målopf.VVV!E25 -> 0.41 | T916: =Målopf.VVV!F25 -> 0.35 | U916: =Målopf.VVV!G25 -> 0.6 | V916: ='HR-nøgletal_lønsum'!D23 -> 13.9 | W916: ='HR-nøgletal_lønsum'!E23 -> 11.3 | X916: ='HR-nøgletal_lønsum'!F23 -> 7.9 | Y916: ='HR-nøgletal_lønsum'!G23 -> 12 | Z916: =Årsværk_Pers.kat!I24 -> 65.2364 | AA916: =Årsværk_Pers.kat!O24 -> 67.69004 | AB916: =Årsværk_Pers.kat!D24 -> 18.08201 | AC916: =Årsværk_Pers.kat!J24 -> 17.01714 | AD916: =Årsværk_Pers.kat!E24 -> 38.76549 | AE916: =Årsværk_Pers.kat!K24 -> 40.35741 | AF916: ='HR-nøgletal_lønsum'!H23 -> 35.48927301 | AG916: ='HR-nøgletal_lønsum'!I23 -> 35.47356186
A917: Retten i Holbæk | B917: ='Produkt.SAML.'!D24 -> 99.04418241 | C917: ='Produkt.SAML.'!E24 -> 94.29437171 | D917: =Produkt.JUR!D24 -> 98.559 | E917: =Produkt.JUR!E24 -> 99.6854372 | F917: =Produkt.KON!D24 -> 102.3936651 | G917: =Produkt.KON!E24 -> 91.03242036 | H917: ='Generel ledelse_Adm.'!I126 -> 0.1309449189 | I917: ='Generel ledelse_Adm.'!J126 -> 0.1541756371 | J917: =Sagstid.Straf!F24 -> 139 | K917: =Sagstid.Straf!G24 -> 202 | L917: =Sagstid.Civil!D24 -> 560 | M917: =Sagstid.Civil!E24 -> 612 | N917: =Sagstid.Foged!D24 -> 84.7 | O917: =Sagstid.Foged!E24 -> 75 | P917: =Sagstid.Skifte!D24 -> 57 | Q917: =Sagstid.Skifte!E24 -> 32 | R917: =Målopf.VVV!D26 -> 0.61 | S917: =Målopf.VVV!E26 -> 0.29 | T917: =Målopf.VVV!F26 -> 0.44 | U917: =Målopf.VVV!G26 -> 0.5 | V917: ='HR-nøgletal_lønsum'!D24 -> 9.8 | W917: ='HR-nøgletal_lønsum'!E24 -> 12.5 | X917: ='HR-nøgletal_lønsum'!F24 -> 4.5 | Y917: ='HR-nøgletal_lønsum'!G24 -> 7 | Z917: =Årsværk_Pers.kat!I25 -> 42.43675 | AA917: =Årsværk_Pers.kat!O25 -> 41.95968 | AB917: =Årsværk_Pers.kat!D25 -> 11.30261 | AC917: =Årsværk_Pers.kat!J25 -> 11.64258 | AD917: =Årsværk_Pers.kat!E25 -> 23.35397 | AE917: =Årsværk_Pers.kat!K25 -> 24.00753 | AF917: ='HR-nøgletal_lønsum'!H24 -> 23.08897956 | AG917: ='HR-nøgletal_lønsum'!I24 -> 24.05685282
A918: Retten i Roskilde | B918: ='Produkt.SAML.'!D25 -> 108.3872224 | C918: ='Produkt.SAML.'!E25 -> 102.8396394 | D918: =Produkt.JUR!D25 -> 114.513 | E918: =Produkt.JUR!E25 -> 111.3369412 | F918: =Produkt.KON!D25 -> 94.20570038 | G918: =Produkt.KON!E25 -> 87.27214093 | H918: ='Generel ledelse_Adm.'!I133 -> 0.1470982891 | I918: ='Generel ledelse_Adm.'!J133 -> 0.1752355326 | J918: =Sagstid.Straf!F25 -> 123.4 | K918: =Sagstid.Straf!G25 -> 181 | L918: =Sagstid.Civil!D25 -> 516 | M918: =Sagstid.Civil!E25 -> 646 | N918: =Sagstid.Foged!D25 -> 69.4 | O918: =Sagstid.Foged!E25 -> 67 | P918: =Sagstid.Skifte!D25 -> 46 | Q918: =Sagstid.Skifte!E25 -> 41 | R918: =Målopf.VVV!D27 -> 0.52 | S918: =Målopf.VVV!E27 -> 0.12 | T918: =Målopf.VVV!F27 -> 0.3 | U918: =Målopf.VVV!G27 -> 0.3 | V918: ='HR-nøgletal_lønsum'!D25 -> 5.7 | W918: ='HR-nøgletal_lønsum'!E25 -> 8.4 | X918: ='HR-nøgletal_lønsum'!F25 -> 4.5 | Y918: ='HR-nøgletal_lønsum'!G25 -> 4.5 | Z918: =Årsværk_Pers.kat!I26 -> 63.41581 | AA918: =Årsværk_Pers.kat!O26 -> 66.39206 | AB918: =Årsværk_Pers.kat!D26 -> 17.95586 | AC918: =Årsværk_Pers.kat!J26 -> 19.3736 | AD918: =Årsværk_Pers.kat!E26 -> 39.90112 | AE918: =Årsværk_Pers.kat!K26 -> 42.45065 | AF918: ='HR-nøgletal_lønsum'!H25 -> 38.1953625 | AG918: ='HR-nøgletal_lønsum'!I25 -> 40.773003
A919: Retten i Hillerød | B919: ='Produkt.SAML.'!D26 -> 88.98968051 | C919: ='Produkt.SAML.'!E26 -> 96.84169872 | D919: =Produkt.JUR!D26 -> 87.125 | E919: =Produkt.JUR!E26 -> 97.77024487 | F919: =Produkt.KON!D26 -> 97.74589656 | G919: =Produkt.KON!E26 -> 104.2289337 | H919: ='Generel ledelse_Adm.'!I140 -> 0.1592366537 | I919: ='Generel ledelse_Adm.'!J140 -> 0.1562650778 | J919: =Sagstid.Straf!F26 -> 182.2 | K919: =Sagstid.Straf!G26 -> 181 | L919: =Sagstid.Civil!D26 -> 484 | M919: =Sagstid.Civil!E26 -> 535 | N919: =Sagstid.Foged!D26 -> 89.3 | O919: =Sagstid.Foged!E26 -> 175 | P919: =Sagstid.Skifte!D26 -> 41 | Q919: =Sagstid.Skifte!E26 -> 37 | R919: =Målopf.VVV!D28 -> 0.43 | S919: =Målopf.VVV!E28 -> 0.27 | T919: =Målopf.VVV!F28 -> 0.15 | U919: =Målopf.VVV!G28 -> 0.27 | V919: ='HR-nøgletal_lønsum'!D26 -> 17 | W919: ='HR-nøgletal_lønsum'!E26 -> 19.2 | X919: ='HR-nøgletal_lønsum'!F26 -> 11.2 | Y919: ='HR-nøgletal_lønsum'!G26 -> 15.1 | Z919: =Årsværk_Pers.kat!I27 -> 45.7484 | AA919: =Årsværk_Pers.kat!O27 -> 42.32869 | AB919: =Årsværk_Pers.kat!D27 -> 13.02245 | AC919: =Årsværk_Pers.kat!J27 -> 11.7589 | AD919: =Årsværk_Pers.kat!E27 -> 22.47703 | AE919: =Årsværk_Pers.kat!K27 -> 21.23272 | AF919: ='HR-nøgletal_lønsum'!H26 -> 25.96615894 | AG919: ='HR-nøgletal_lønsum'!I26 -> 24.26989513
A920: Retten i Helsingør | B920: ='Produkt.SAML.'!D27 -> 94.36963475 | C920: ='Produkt.SAML.'!E27 -> 89.04705724 | D920: =Produkt.JUR!D27 -> 89.738 | E920: =Produkt.JUR!E27 -> 84.92919768 | F920: =Produkt.KON!D27 -> 98.70528119 | G920: =Produkt.KON!E27 -> 96.15993538 | H920: ='Generel ledelse_Adm.'!I147 -> 0.1657331649 | I920: ='Generel ledelse_Adm.'!J147 -> 0.1831153946 | J920: =Sagstid.Straf!F27 -> 166.6 | K920: =Sagstid.Straf!G27 -> 190 | L920: =Sagstid.Civil!D27 -> 583 | M920: =Sagstid.Civil!E27 -> 651 | N920: =Sagstid.Foged!D27 -> 84.4 | O920: =Sagstid.Foged!E27 -> 115 | P920: =Sagstid.Skifte!D27 -> 33 | Q920: =Sagstid.Skifte!E27 -> 40 | R920: =Målopf.VVV!D29 -> 0.4 | S920: =Målopf.VVV!E29 -> 0.36 | T920: =Målopf.VVV!F29 -> 0.11 | U920: =Målopf.VVV!G29 -> 0.33 | V920: ='HR-nøgletal_lønsum'!D27 -> 10 | W920: ='HR-nøgletal_lønsum'!E27 -> 20.6 | X920: ='HR-nøgletal_lønsum'!F27 -> 3.2 | Y920: ='HR-nøgletal_lønsum'!G27 -> 18.1 | Z920: =Årsværk_Pers.kat!I28 -> 42.56432 | AA920: =Årsværk_Pers.kat!O28 -> 41.99619 | AB920: =Årsværk_Pers.kat!D28 -> 12.61984 | AC920: =Årsværk_Pers.kat!J28 -> 13.13024 | AD920: =Årsværk_Pers.kat!E28 -> 22.78937 | AE920: =Årsværk_Pers.kat!K28 -> 21.73315 | AF920: ='HR-nøgletal_lønsum'!H27 -> 23.26081386 | AG920: ='HR-nøgletal_lønsum'!I27 -> 23.93496369
A921: Retten i Lyngby | B921: ='Produkt.SAML.'!D28 -> 92.44281273 | C921: ='Produkt.SAML.'!E28 -> 86.65208101 | D921: =Produkt.JUR!D28 -> 85.236 | E921: =Produkt.JUR!E28 -> 82.17333687 | F921: =Produkt.KON!D28 -> 100.9708011 | G921: =Produkt.KON!E28 -> 93.58597796 | H921: ='Generel ledelse_Adm.'!I154 -> 0.1744395584 | I921: ='Generel ledelse_Adm.'!J154 -> 0.1920284786 | J921: =Sagstid.Straf!F28 -> 167.5 | K921: =Sagstid.Straf!G28 -> 164 | L921: =Sagstid.Civil!D28 -> 562 | M921: =Sagstid.Civil!E28 -> 526 | N921: =Sagstid.Foged!D28 -> 59.1 | O921: =Sagstid.Foged!E28 -> 67 | P921: =Sagstid.Skifte!D28 -> 49 | Q921: =Sagstid.Skifte!E28 -> 39 | R921: =Målopf.VVV!D30 -> 0.51 | S921: =Målopf.VVV!E30 -> 0.39 | T921: =Målopf.VVV!F30 -> 0.3 | U921: =Målopf.VVV!G30 -> 0 | V921: ='HR-nøgletal_lønsum'!D28 -> 18.1 | W921: ='HR-nøgletal_lønsum'!E28 -> 15.1 | X921: ='HR-nøgletal_lønsum'!F28 -> 5.9 | Y921: ='HR-nøgletal_lønsum'!G28 -> 10.8 | Z921: =Årsværk_Pers.kat!I29 -> 46.65357 | AA921: =Årsværk_Pers.kat!O29 -> 47.86324 | AB921: =Årsværk_Pers.kat!D29 -> 14.61195 | AC921: =Årsværk_Pers.kat!J29 -> 14.29323 | AD921: =Årsværk_Pers.kat!E29 -> 25.48075 | AE921: =Årsværk_Pers.kat!K29 -> 25.93865 | AF921: ='HR-nøgletal_lønsum'!H28 -> 28.56675823 | AG921: ='HR-nøgletal_lønsum'!I28 -> 28.20968687
A922: Retten i Glostrup | B922: ='Produkt.SAML.'!D29 -> 94.27580848 | C922: ='Produkt.SAML.'!E29 -> 93.21809884 | D922: =Produkt.JUR!D29 -> 89.932 | E922: =Produkt.JUR!E29 -> 89.77049127 | F922: =Produkt.KON!D29 -> 101.3770634 | G922: =Produkt.KON!E29 -> 98.40617146 | H922: ='Generel ledelse_Adm.'!I161 -> 0.1631197887 | I922: ='Generel ledelse_Adm.'!J161 -> 0.1477988481 | J922: =Sagstid.Straf!F29 -> 219.1 | K922: =Sagstid.Straf!G29 -> 285 | L922: =Sagstid.Civil!D29 -> 559 | M922: =Sagstid.Civil!E29 -> 657 | N922: =Sagstid.Foged!D29 -> 159.9 | O922: =Sagstid.Foged!E29 -> 129 | P922: =Sagstid.Skifte!D29 -> 50 | Q922: =Sagstid.Skifte!E29 -> 52 | R922: =Målopf.VVV!D31 -> 0.28 | S922: =Målopf.VVV!E31 -> 0.19 | T922: =Målopf.VVV!F31 -> 0.2 | U922: =Målopf.VVV!G31 -> 0 | V922: ='HR-nøgletal_lønsum'!D29 -> 9.9 | W922: ='HR-nøgletal_lønsum'!E29 -> 11.6 | X922: ='HR-nøgletal_lønsum'!F29 -> 10.1 | Y922: ='HR-nøgletal_lønsum'!G29 -> 10.4 | Z922: =Årsværk_Pers.kat!I30 -> 101.97016 | AA922: =Årsværk_Pers.kat!O30 -> 103.80151 | AB922: =Årsværk_Pers.kat!D30 -> 32.15906 | AC922: =Årsværk_Pers.kat!J30 -> 32.92966 | AD922: =Årsværk_Pers.kat!E30 -> 55.85571 | AE922: =Årsværk_Pers.kat!K30 -> 57.23244 | AF922: ='HR-nøgletal_lønsum'!H29 -> 60.18037798 | AG922: ='HR-nøgletal_lønsum'!I29 -> 62.19801216
A923: Retten på Frederiksberg | B923: ='Produkt.SAML.'!D30 -> 86.56772805 | C923: ='Produkt.SAML.'!E30 -> 84.65783016 | D923: =Produkt.JUR!D30 -> 87.561 | E923: =Produkt.JUR!E30 -> 85.16575674 | F923: =Produkt.KON!D30 -> 86.06846362 | G923: =Produkt.KON!E30 -> 83.80469812 | H923: ='Generel ledelse_Adm.'!I168 -> 0.1427695002 | I923: ='Generel ledelse_Adm.'!J168 -> 0.1156799736 | J923: =Sagstid.Straf!F30 -> 138.8 | K923: =Sagstid.Straf!G30 -> 189 | L923: =Sagstid.Civil!D30 -> 537 | M923: =Sagstid.Civil!E30 -> 611 | N923: =Sagstid.Foged!D30 -> 131.4 | O923: =Sagstid.Foged!E30 -> 100 | P923: =Sagstid.Skifte!D30 -> 57 | Q923: =Sagstid.Skifte!E30 -> 60 | R923: =Målopf.VVV!D32 -> 0.45 | S923: =Målopf.VVV!E32 -> 0.1 | T923: =Målopf.VVV!F32 -> 0.36 | U923: =Målopf.VVV!G32 -> 0 | V923: ='HR-nøgletal_lønsum'!D30 -> 10.6 | W923: ='HR-nøgletal_lønsum'!E30 -> 15.8 | X923: ='HR-nøgletal_lønsum'!F30 -> 5.9 | Y923: ='HR-nøgletal_lønsum'!G30 -> 17.3 | Z923: =Årsværk_Pers.kat!I31 -> 83.53433 | AA923: =Årsværk_Pers.kat!O31 -> 77.48643 | AB923: =Årsværk_Pers.kat!D31 -> 24.92973 | AC923: =Årsværk_Pers.kat!J31 -> 23.95436 | AD923: =Årsværk_Pers.kat!E31 -> 45.59641 | AE923: =Årsværk_Pers.kat!K31 -> 42.28933 | AF923: ='HR-nøgletal_lønsum'!H30 -> 48.7103371 | AG923: ='HR-nøgletal_lønsum'!I30 -> 46.5966407
A924: Københavns Byret | B924: ='Produkt.SAML.'!D31 -> 92.08072971 | C924: ='Produkt.SAML.'!E31 -> 78.76953181 | D924: =Produkt.JUR!D31 -> 97.675 | E924: =Produkt.JUR!E31 -> 83.56560473 | F924: =Produkt.KON!D31 -> 83.02320465 | G924: =Produkt.KON!E31 -> 69.05441269 | H924: ='Generel ledelse_Adm.'!I175 -> 0.1390536342 | I924: ='Generel ledelse_Adm.'!J175 -> 0.1439094017 | J924: =Sagstid.Straf!F31 -> 174.6 | K924: =Sagstid.Straf!G31 -> 241 | L924: =Sagstid.Civil!D31 -> 534 | M924: =Sagstid.Civil!E31 -> 619 | N924: =Sagstid.Foged!D31 -> 87.6 | O924: =Sagstid.Foged!E31 -> 88 | P924: =Sagstid.Skifte!D31 -> 42 | Q924: =Sagstid.Skifte!E31 -> 41 | R924: =Målopf.VVV!D33 -> 0.44 | S924: =Målopf.VVV!E33 -> 0.43 | T924: =Målopf.VVV!F33 -> 0.41 | U924: =Målopf.VVV!G33 -> 0.19 | V924: ='HR-nøgletal_lønsum'!D31 -> - | W924: ='HR-nøgletal_lønsum'!E31 -> 12.3 | X924: ='HR-nøgletal_lønsum'!F31 -> 6.1 | Y924: ='HR-nøgletal_lønsum'!G31 -> 11 | Z924: =Årsværk_Pers.kat!I32 -> 189.51339 | AA924: =Årsværk_Pers.kat!O32 -> 191.46937 | AB924: =Årsværk_Pers.kat!D32 -> 59.59901 | AC924: =Årsværk_Pers.kat!J32 -> 60.18599 | AD924: =Årsværk_Pers.kat!E32 -> 113.50507 | AE924: =Årsværk_Pers.kat!K32 -> 117.0377 | AF924: ='HR-nøgletal_lønsum'!H31 -> 123.1088844 | AG924: ='HR-nøgletal_lønsum'!I31 -> 127.1664142
A925: Retten på Bornholm | H925: ='Generel ledelse_Adm.'!I182 -> 0.2967897313 | I925: ='Generel ledelse_Adm.'!J182 -> 0.318298897 | J925: =Sagstid.Straf!F32 -> 57.4 | K925: =Sagstid.Straf!G32 -> 76 | L925: =Sagstid.Civil!D32 -> 466 | M925: =Sagstid.Civil!E32 -> 267 | N925: =Sagstid.Foged!D32 -> 31.6 | O925: =Sagstid.Foged!E32 -> 27 | P925: =Sagstid.Skifte!D32 -> 23 | Q925: =Sagstid.Skifte!E32 -> 19 | R925: =Målopf.VVV!D34 -> 0.68 | S925: =Målopf.VVV!E34 -> 0.73 | T925: =Målopf.VVV!F34 -> 0 | U925: =Målopf.VVV!G34 -> 0.75 | V925: ='HR-nøgletal_lønsum'!D32 -> 7.1 | W925: ='HR-nøgletal_lønsum'!E32 -> - | X925: ='HR-nøgletal_lønsum'!F32 -> 4.7 | Y925: ='HR-nøgletal_lønsum'!G32 -> 0 | Z925: =Årsværk_Pers.kat!I33 -> 11.35443 | AA925: =Årsværk_Pers.kat!O33 -> 11.56964 | AB925: =Årsværk_Pers.kat!D33 -> 2.73528 | AC925: =Årsværk_Pers.kat!J33 -> 3.13433 | AD925: =Årsværk_Pers.kat!E33 -> 6.56717 | AE925: =Årsværk_Pers.kat!K33 -> 5.47697 | AF925: ='HR-nøgletal_lønsum'!H32 -> 10.39288095 | AG925: ='HR-nøgletal_lønsum'!I32 -> 10.8274916

Sheet Produkt.SAML.
B2: PRODUKTIVITETSINDEKS SAMLET FOR RETTEN
D4: Samlet | F4: Retssager | H4: Straffesager | J4: Civile sager | L4: Fogedsager | N4: Skiftesager
D5: =Overblik!$D$6 -> 2020 | E5: =Overblik!$E$6 -> 2021 | F5: =Overblik!$D$6 -> 2020 | G5: =Overblik!$E$6 -> 2021 | H5: =Overblik!$D$6 -> 2020 | I5: =Overblik!$E$6 -> 2021 | J5: =Overblik!$D$6 -> 2020 | K5: =Overblik!$E$6 -> 2021 | L5: =Overblik!$D$6 -> 2020 | M5: =Overblik!$E$6 -> 2021 | N5: =Overblik!$D$6 -> 2020 | O5: =Overblik!$E$6 -> 2021
B6: SAMLET BYRETTERNE | D6: 93.9 | E6: 89.35247903 | F6: 94.1 | G6: 90.17651081 | H6: 93.9 | I6: 88.05733766 | J6: 94.1 | K6: 93.12487181 | L6: 92.1 | M6: 81.01230163 | N6: 94.9 | O6: 93.94671004
B7: 5. BEDSTE RET | D7: =LARGE(D9:D31,5) -> 103.6389345 | E7: 100.7507619 | F7: 105.2942861 | G7: 102.9313247 | H7: 104.0638089 | I7: 101.482147 | J7: 105.4864886 | K7: 113.4587846 | L7: 107.1552823 | M7: 95.23401871 | N7: 107.0212853 | O7: 108.035615
B8: EID | C8: Ret
B9: 901 | C9: Retten i Hjørring | D9: 89.99383204 | E9: 87.84852496 | F9: 85.35842002 | G9: 84.11212937 | H9: 75.78324705 | I9: 81.42282847 | J9: 101.1896204 | K9: 88.55556361 | L9: 86.14449077 | M9: 81.83194253 | N9: 111.7716456 | O9: 108.035615
B10: 902 | C10: Retten i Aalborg | D10: 93.52451825 | E10: 95.68886905 | F10: 97.3511563 | G10: 99.77107031 | H10: 97.91562163 | I10: 102.3506784 | J10: 97.9902934 | K10: 99.36554652 | L10: 86.2931656 | M10: 81.35931764 | N10: 81.71295969 | O10: 88.73218391
B11: 903 | C11: Retten i Randers | D11: 104.5069779 | E11: 99.15125084 | F11: 101.7631238 | G11: 95.97567679 | H11: 99.6973107 | I11: 84.76123529 | J11: 105.4864886 | K11: 113.4587846 | L11: 107.1552823 | M11: 95.38181064 | N11: 107.0212853 | O11: 110.6015241
B12: 904 | C12: Retten i Århus | D12: 103.4676184 | E12: 90.48986993 | F12: 98.18395424 | G12: 87.73181741 | H12: 87.25807032 | I12: 81.96958372 | J12: 120.9448921 | K12: 97.0305955 | L12: 126.7305037 | M12: 97.15618529 | N12: 110.8327797 | O12: 98.47105061
B13: 905 | C13: Retten i Viborg | D13: 95.19083935 | E13: 97.21890365 | F13: 96.61302393 | G13: 100.7306918 | H13: 100.0391918 | I13: 98.30510705 | J13: 89.21180299 | K13: 104.183745 | L13: 81.62081632 | M13: 71.32678905 | N13: 105.7364542 | O13: 110.6972752
B14: 906 | C14: Retten i Holstebro | D14: 107.1322016 | E14: 106.896309 | F14: 118.1467905 | G14: 118.678803 | H14: 134.0612967 | I14: 120.9151007 | J14: 92.70066156 | K14: 112.3283091 | L14: 85.04249654 | M14: 76.91037033 | N14: 92.97277385 | O14: 91.12828185
B15: 907 | C15: Retten i Herning | D15: 108.4535442 | E15: 100.7507619 | F15: 116.2836205 | G15: 106.7647718 | H15: 121.948754 | I15: 101.6358087 | J15: 101.6106309 | K15: 113.5600613 | L15: 94.89997537 | M15: 88.02867632 | N15: 90.1448383 | O15: 87.50722728
B16: 908 | C16: Retten i Horsens | D16: 87.93652036 | E16: 87.00257958 | F16: 88.61921311 | G16: 85.07786341 | H16: 89.99033892 | I16: 72.03663234 | J16: 86.72392745 | K16: 109.5073938 | L16: 83.37289853 | M16: 91.20863948 | N16: 89.72863272 | O16: 91.91339336
B17: 909 | C17: Retten i Kolding | D17: 97.3497896 | E17: 97.35457885 | F17: 93.41719929 | G17: 93.12255114 | H17: 104.0638089 | I17: 99.03839819 | J17: 84.21749715 | K17: 86.56913746 | L17: 109.2538368 | M17: 114.2460235 | N17: 103.9996401 | O17: 105.6730005
B18: 910 | C18: Retten i Esbjerg | D18: 94.36408316 | E18: 87.61060216 | F18: 97.24282593 | G18: 89.20406402 | H18: 95.53528811 | I18: 83.88634043 | J18: 96.25442757 | K18: 97.50758388 | L18: 80.04965897 | M18: 75.4530918 | N18: 98.69075192 | O18: 94.82457729
B19: 911 | C19: Retten i Sønderborg | D19: 100.1777716 | E19: 101.8334745 | F19: 99.81067318 | G19: 102.9313247 | H19: 116.6711318 | I19: 118.7170067 | J19: 78.67508898 | K19: 79.14066618 | L19: 101.7186207 | M19: 110.2428887 | N19: 105.1821737 | O19: 94.67363652
B20: 912 | C20: Retten i Odense | D20: 97.26443472 | E20: 102.53627 | F20: 105.2942861 | G20: 106.0643537 | H20: 99.27730312 | I20: 96.597554 | J20: 114.5746554 | K20: 122.6610973 | L20: 82.63887831 | M20: 91.06835856 | N20: 81.16680681 | O20: 95.44640309
B21: 913 | C21: Retten i Svendborg | D21: 87.08759471 | E21: 86.34565215 | F21: 79.08285729 | G21: 80.07650046 | H21: 84.84168355 | I21: 73.51613836 | J21: 72.90240855 | K21: 90.66029301 | L21: 90.89268877 | M21: 86.56661223 | N21: 118.2310903 | O21: 106.7955987
B22: 914 | C22: Retten i Nykøbing F. | D22: 103.6389345 | E22: 89.47225158 | F22: 105.983581 | G22: 95.2131157 | H22: 107.2382795 | I22: 98.25901305 | J22: 101.2011146 | K22: 90.39114873 | L22: 99.65914912 | M22: 74.56096982 | N22: 97.96425124 | O22: 87.14537931
B23: 915 | C23: Retten i Næstved | D23: 100.9087058 | E23: 86.56089525 | F23: 102.2687491 | G23: 88.31515508 | H23: 102.6540579 | I23: 84.07432563 | J23: 98.63808856 | K23: 94.90702762 | L23: 93.378085 | M23: 81.0446569 | N23: 100.2335084 | O23: 83.66579456
B24: 916 | C24: Retten i Holbæk | D24: 99.04418241 | E24: 94.29437171 | F24: 98.30240234 | G24: 100.2368279 | H24: 95.44236212 | I24: 90.04553563 | J24: 102.3552902 | K24: 117.552701 | L24: 101.8579522 | M24: 74.78049425 | N24: 97.41434589 | O24: 94.51525517
B25: 917 | C25: Retten i Roskilde | D25: 108.3872224 | E25: 102.8396394 | F25: 106.5327588 | G25: 108.2640783 | H25: 95.47102172 | I25: 101.482147 | J25: 125.2642823 | K25: 119.0433961 | L25: 109.2786948 | M25: 76.38129669 | N25: 111.8644333 | O25: 104.0176355
B26: 918 | C26: Retten i Hillerød | D26: 88.98968051 | E26: 96.84169872 | F26: 84.73005872 | G26: 93.13505653 | H26: 104.0371397 | I26: 99.81734394 | J26: 68.32945927 | K26: 85.9096251 | L26: 93.00420283 | M26: 95.23401871 | N26: 104.5609521 | O26: 117.6308208
B27: 919 | C27: Retten i Helsingør | D27: 94.36963475 | E27: 89.04705724 | F27: 95.92013972 | G27: 92.4638973 | H27: 95.44650419 | I27: 98.23943536 | J27: 98.86036466 | K27: 89.12498866 | L27: 82.17518444 | M27: 61.68746996 | N27: 96.44368203 | O27: 100.8688941
B28: 920 | C28: Retten i Lyngby | D28: 92.44281273 | E28: 86.65208101 | F28: 88.46274616 | G28: 85.79910912 | H28: 102.40999 | I28: 88.19416915 | J28: 84.3415537 | K28: 88.52337382 | L28: 117.2467761 | M28: 85.42960582 | N28: 82.26865798 | O28: 73.95151759
B29: 921 | C29: Retten i Glostrup | D29: 94.27580848 | E29: 93.21809884 | F29: 95.08116243 | G29: 94.27388464 | H29: 93.06188887 | I29: 92.81814689 | J29: 98.00734855 | K29: 95.9111656 | L29: 85.65913572 | M29: 76.46314594 | N29: 101.6899237 | O29: 120.9982642
B30: 922 | C30: Retten på Frederiksberg | D30: 86.56772805 | E30: 84.65783016 | F30: 85.53193307 | G30: 85.71337847 | H30: 93.32667198 | I30: 92.82418864 | J30: 73.94330772 | K30: 73.78163888 | L30: 94.19481852 | M30: 89.16013612 | N30: 74.50560211 | O30: 58.80509708
B31: 923 | C31: Københavns Byret | D31: 92.08072971 | E31: 78.76953181 | F31: 97.50246514 | G31: 83.52417974 | H31: 91.40268399 | I31: 80.57218275 | J31: 107.1877818 | K31: 87.03276367 | L31: 76.69839234 | M31: 57.97308768 | N31: 57.95138191 | O31: 59.11955763
B34: 1) Indeks 100 svarer til gennemsnittet ved byretterne i 2019
B35: 2) "Retssager" svarer til den samlede produktivitet for straffesager og civile sager, "Fogedsager" til den samlede produktivitet for øvrige fogedsager og tvangsauktioner, "Skiftesager" til den samlede produktivitet for insolvensskifter og dødsboskifter.
B36: 3) Ved beregningen af den samlede produktivitet, samlet for retten, anvendes rettens samlede vægtede årsværksforbrug - dvs. også årsværksforbruget til generel ledelse og administration mv. Ved beregning af produktiviteten på de enkelte sagsområder er årsværkforbruget til generel ledelse og administration mv. nøgletalsfordelt, således at forskelle i andele i årsværksforbrug til generel ledelse og administration mv. ikke vanskeliggør en sammenligning af de enkelte retter.

Sheet Produkt.JUR
B2: PRODUKTIVITETSINDEKS JURISTER
D4: Samlet | F4: Retssager | H4: Straffesager | J4: Civile sager | L4: Fogedsager | N4: Skiftesager
D5: =Overblik!$D$6 -> 2020 | E5: =Overblik!$E$6 -> 2021 | F5: =Overblik!$D$6 -> 2020 | G5: =Overblik!$E$6 -> 2021 | H5: =Overblik!$D$6 -> 2020 | I5: =Overblik!$E$6 -> 2021 | J5: =Overblik!$D$6 -> 2020 | K5: =Overblik!$E$6 -> 2021 | L5: =Overblik!$D$6 -> 2020 | M5: =Overblik!$E$6 -> 2021 | N5: =Overblik!$D$6 -> 2020 | O5: =Overblik!$E$6 -> 2021
B6: SAMLET BYRETTERNE | D6: 97.19245806 | E6: 94.40614646 | F6: 97.46229147 | G6: 95.4163527 | H6: 99.2976751 | I6: 94.80518025 | J6: 94.64430659 | K6: 95.96414175 | L6: 98.12568658 | M6: 82.82864831 | N6: 89.36501882 | O6: 90.40616685
B7: 5. BEDSTE RET | D7: 92.3 | E7: =LARGE(E9:E31,5) -> 106.2247952 | F7: 105.0694854 | G7: 106.7789465 | H7: 113.662778 | I7: 107.6270511 | J7: 114.5099007 | K7: 119.5977326 | L7: 124.2762899 | M7: 110.8456667 | N7: 110.3897241 | O7: 117.7175853
B8: EID | C8: Ret
B9: 901 | C9: Retten i Hjørring | D9: 88.658 | E9: 89.38261954 | F9: 83.42540178 | G9: 83.52784612 | H9: 71.58906222 | I9: 83.07466507 | J9: 102.5550897 | K9: 85.44660331 | L9: 119.8332999 | M9: 127.86456 | N9: 102.8938132 | O9: 115.476177
B10: 902 | C10: Retten i Aalborg | D10: 93.504 | E10: 99.39559181 | F10: 94.40628579 | G10: 99.5180341 | H10: 94.92550641 | I10: 107.6270511 | J10: 95.63696779 | K10: 96.01097414 | L10: 85.50300453 | M10: 92.29959016 | N10: 83.94262849 | O10: 105.038689
B11: 903 | C11: Retten i Randers | D11: 109.736 | E11: 102.8262165 | F11: 113.7941336 | G11: 103.7859986 | H11: 113.662778 | I11: 92.55964051 | J11: 115.5281655 | K11: 120.5698508 | L11: 91.84705663 | M11: 94.47066735 | N11: 106.3229801 | O11: 118.6323573
B12: 904 | C12: Retten i Århus | D12: 107.116 | E12: 97.29542964 | F12: 100.7646269 | G12: 94.11687516 | H12: 89.39750124 | I12: 93.18870119 | J12: 120.8701698 | K12: 94.1349102 | L12: 131.6413125 | M12: 94.92268656 | N12: 114.3459012 | O12: 117.7175853
B13: 905 | C13: Retten i Viborg | D13: 91.571 | E13: 106.5621988 | F13: 101.0659353 | G13: 110.8953649 | H13: 103.656359 | I13: 111.6831417 | J13: 94.92837539 | K13: 110.3126565 | L13: 83.72108775 | M13: 83.71533699 | N13: 78.85057571 | O13: 97.11374401
B14: 906 | C14: Retten i Holstebro | D14: 119.345 | E14: 119.4218063 | F14: 135.0215755 | G14: 131.7960478 | H14: 144.7603871 | I14: 123.9946587 | J14: 115.4143921 | K14: 141.4035426 | L14: 105.9236583 | M14: 99.7120015 | N14: 82.73163836 | O14: 83.96537007
B15: 907 | C15: Retten i Herning | D15: 103.29 | E15: 102.6942274 | F15: 105.0694854 | G15: 103.4625662 | H15: 114.1073642 | I15: 96.42457704 | J15: 87.93325974 | K15: 112.5990348 | L15: 124.2762899 | M15: 122.6856077 | N15: 55.97965622 | O15: 60.58654777
B16: 908 | C16: Retten i Horsens | D16: 87.261 | E16: 87.92889129 | F16: 91.17314329 | G16: 88.53598745 | H16: 96.10848264 | I16: 77.23736535 | J16: 85.45821939 | K16: 106.7240833 | L16: 84.97839862 | M16: 107.8303253 | N16: 68.756512 | O16: 69.36850108
B17: 909 | C17: Retten i Kolding | D17: 93.765 | E17: 92.75408802 | F17: 88.95108023 | G17: 86.6208597 | H17: 110.4972739 | I17: 97.87420323 | J17: 73.58325198 | K17: 76.55303812 | L17: 117.6771137 | M17: 129.8568996 | N17: 110.3897241 | O17: 94.46583633
B18: 910 | C18: Retten i Esbjerg | D18: 93.272 | E18: 88.42223882 | F18: 89.62902381 | G18: 85.14147434 | H18: 83.93458048 | I18: 77.72216826 | J18: 96.04357603 | K18: 96.51264302 | L18: 112.268261 | M18: 86.90789717 | N18: 116.6479539 | O18: 106.5045714
B19: 911 | C19: Retten i Sønderborg | D19: 104.981 | E19: 106.2247952 | F19: 104.0653176 | G19: 110.7161518 | H19: 121.7398086 | I19: 126.4321689 | J19: 83.78644019 | K19: 87.49899958 | L19: 115.290132 | M19: 127.7051778 | N19: 125.5950219 | O19: 75.92188839
B20: 912 | C20: Retten i Odense | D20: 101.531 | E20: 110.7567507 | F20: 104.6673941 | G20: 106.7789465 | H20: 101.322463 | I20: 98.2064005 | J20: 108.1040381 | K20: 119.5977326 | L20: 64.3268762 | M20: 84.54001023 | N20: 88.37968427 | O20: 121.9394568
B21: 913 | C21: Retten i Svendborg | D21: 86.464 | E21: 88.48082216 | F21: 79.8932577 | G21: 84.41017715 | H21: 89.77999273 | I21: 74.53952363 | J21: 71.10744727 | K21: 99.94213852 | L21: 102.9432532 | M21: 96.86997693 | N21: 121.6105187 | O21: 118.3034218
B22: 914 | C22: Retten i Nykøbing F. | D22: 111.353 | E22: 96.26704402 | F22: 115.9811845 | G22: 102.3695173 | H22: 114.6511334 | I22: 104.0069569 | J22: 114.5099007 | K22: 99.5347201 | L22: 104.6017229 | M22: 72.69174802 | N22: 84.15252427 | O22: 85.80180588
B23: 915 | C23: Retten i Næstved | D23: 105.688 | E23: 94.89830449 | F23: 104.4907757 | G23: 101.2206618 | H23: 103.6847881 | I23: 99.70848918 | J23: 102.0421404 | K23: 103.8483637 | L23: 106.606025 | M23: 91.3633377 | N23: 104.4434686 | O23: 70.23256512
B24: 916 | C24: Retten i Holbæk | D24: 98.559 | E24: 99.6854372 | F24: 94.00622498 | G24: 102.5719411 | H24: 89.76442087 | I24: 91.80041408 | J24: 99.65625608 | K24: 119.6139685 | L24: 116.8775197 | M24: 64.24015101 | N24: 103.2787782 | O24: 105.8342979
B25: 917 | C25: Retten i Roskilde | D25: 114.513 | E25: 111.3369412 | F25: 112.3997791 | G25: 121.5706123 | H25: 97.31956118 | I25: 110.7556314 | J25: 137.6892859 | K25: 138.3182189 | L25: 147.4826126 | M25: 77.60951218 | N25: 108.3760757 | O25: 110.2915226
B26: 918 | C26: Retten i Hillerød | D26: 87.125 | E26: 97.77024487 | F26: 83.45151133 | G26: 94.45731656 | H26: 111.5905293 | I26: 100.1332109 | J26: 64.28759485 | K26: 88.89440575 | L26: 89.97382028 | M26: 69.3293375 | N26: 95.75196925 | O26: 140.889093
B27: 919 | C27: Retten i Helsingør | D27: 89.738 | E27: 84.92919768 | F27: 88.43563844 | G27: 85.17170955 | H27: 88.49844559 | I27: 96.58442373 | J27: 91.21252844 | K27: 78.92570845 | L27: 84.68974971 | M27: 62.74467237 | N27: 95.99898836 | O27: 100.4306366
B28: 920 | C28: Retten i Lyngby | D28: 85.236 | E28: 82.17333687 | F28: 81.92849609 | G28: 84.54288592 | H28: 102.7252745 | I28: 88.18044784 | J28: 76.75450946 | K28: 87.96685347 | L28: 147.0427727 | M28: 71.46373849 | N28: 67.72440154 | O28: 58.56242815
B29: 921 | C29: Retten i Glostrup | D29: 89.932 | E29: 89.77049127 | F29: 94.74642877 | G29: 90.84670578 | H29: 94.07572673 | I29: 91.0626931 | J29: 95.71328756 | K29: 90.07487024 | L29: 83.85627198 | M29: 74.48757715 | N29: 63.98107125 | O29: 74.92187816
B30: 922 | C30: Retten på Frederiksberg | D30: 87.561 | E30: 85.16575674 | F30: 81.93803156 | G30: 82.44767162 | H30: 87.16481207 | I30: 86.96870759 | J30: 73.42946012 | K30: 73.64972851 | L30: 125.0858181 | M30: 110.8456667 | N30: 78.28071321 | O30: 59.50966135
B31: 923 | C31: Københavns Byret | D31: 97.675 | E31: 83.56560473 | F31: 102.8793182 | G31: 89.13915056 | H31: 102.1366637 | I31: 87.34364245 | J31: 102.8407261 | K31: 89.10642261 | L31: 82.82267866 | M31: 49.81350596 | N31: 37.28379239 | O31: 35.5948961
B34: 1) Indeks 100 svarer til gennemsnittet ved byretterne i 2019.
B35: 2) "Retssager" svarer til den samlede produktivitet for straffesager og civile sager, "Fogedsager" til den samlede produktivitet for øvrige fogedsager og tvangsauktioner, "Skiftesager" til den samlede produktivitet for insolvensskifter og dødsboskifter.
B36: 3) Ved beregningen af den samlede produktivitet for juristerne anvendes det samlede årsværksforbrug for gruppen - dvs. også årsværksforbruget til generel ledelse og administration mv. Ved beregning af produktiviteten på de enkelte sagsområder er kun medtaget det direkte årsværksforbrug - dvs. der er ikke foretaget en nøgletalsfordeling af årsværkforbruget til generel ledelse og administration mv.

Sheet Produkt.KON
B2: PRODUKTIVITETSINDEKS KONTORPERSONALE
D4: Samlet | F4: Retssager | H4: Straffesager | J4: Civile sager | L4: Fogedsager | N4: Skiftesager
D5: =Overblik!$D$6 -> 2020 | E5: =Overblik!$E$6 -> 2021 | F5: =Overblik!$D$6 -> 2020 | G5: =Overblik!$E$6 -> 2021 | H5: =Overblik!$D$6 -> 2020 | I5: =Overblik!$E$6 -> 2021 | J5: =Overblik!$D$6 -> 2020 | K5: =Overblik!$E$6 -> 2021 | L5: =Overblik!$D$6 -> 2020 | M5: =Overblik!$E$6 -> 2021 | N5: =Overblik!$D$6 -> 2020 | O5: =Overblik!$E$6 -> 2021
B6: SAMLET BYRETTERNE | D6: 95.19473272 | E6: 88.9461913 | F6: 96.28731442 | G6: 89.63763259 | H6: 94.73897528 | I6: 87.27322506 | J6: 97.83683274 | K6: 92.80419039 | L6: 89.72097074 | M6: 80.23778343 | N6: 97.85017 | O6: 96.98458512
B7: 5. BEDSTE RET | D7: =LARGE(D9:D31,5) -> 101.3770634 | E7: 98.40617146 | F7: 104.1318934 | G7: 100.5977174 | H7: 110.0314838 | I7: 100.3470824 | J7: 108.8376575 | K7: 108.7721717 | L7: 102.3391297 | M7: 97.74766299 | N7: 115.261121 | O7: 112.0954875
B8: EID | C8: Ret
B9: 901 | C9: Retten i Hjørring | D9: 90.94132157 | E9: 87.05609001 | F9: 86.65639793 | G9: 89.01861855 | H9: 81.80675493 | I9: 83.07985082 | J9: 93.77296875 | K9: 99.00040922 | L9: 77.75844204 | M9: 75.91541205 | N9: 113.7210154 | O9: 105.2577526
B10: 902 | C10: Retten i Aalborg | D10: 92.77165146 | E10: 89.00905781 | F10: 95.3609195 | G10: 92.85182949 | H10: 97.96471697 | I10: 91.32184942 | J10: 91.14270902 | K10: 94.44086035 | L10: 91.67693991 | M10: 80.94951306 | N10: 74.38341703 | O10: 76.39675673
B11: 903 | C11: Retten i Randers | D11: 96.86168201 | E11: 93.36964735 | F11: 83.99027514 | G11: 88.15305424 | H11: 81.5946743 | I11: 77.53947921 | J11: 87.04542544 | K11: 105.6722187 | L11: 122.0527162 | M11: 97.74766299 | N11: 107.1275445 | O11: 109.7396987
B12: 904 | C12: Retten i Århus | D12: 101.549847 | E12: 90.39017586 | F12: 87.8454206 | G12: 83.28208284 | H12: 80.16633985 | I12: 73.54918367 | J12: 106.6219855 | K12: 108.7554134 | L12: 120.2056315 | M12: 103.1947875 | N12: 105.7510387 | O12: 94.79267422
B13: 905 | C13: Retten i Viborg | D13: 100.052278 | E13: 91.16839156 | F13: 96.96069028 | G13: 90.70578906 | H13: 104.2007211 | I13: 87.95323982 | J13: 82.54528108 | K13: 94.70511466 | L13: 90.20076698 | M13: 70.93181688 | N13: 130.6850151 | O13: 121.8184718
B14: 906 | C14: Retten i Holstebro | D14: 98.70854472 | E14: 99.1251152 | F14: 96.21795386 | G14: 100.256841 | H14: 120.1975774 | I14: 117.5687697 | J14: 63.65700254 | K14: 74.74569195 | L14: 77.34344273 | M14: 69.14844667 | N14: 99.98260698 | O14: 96.38977357
B15: 907 | C15: Retten i Herning | D15: 114.6376024 | E15: 102.2639586 | F15: 125.3998627 | G15: 107.2679567 | H15: 121.0561561 | I15: 105.5812128 | J15: 134.6943494 | K15: 108.7721717 | L15: 79.59387312 | M15: 74.9207583 | N15: 115.261121 | O15: 106.6425935
B16: 908 | C16: Retten i Horsens | D16: 97.84737101 | E16: 95.97378081 | F16: 95.1420677 | G16: 90.85932378 | H16: 94.43460097 | I16: 76.64688211 | J16: 95.28155752 | K16: 122.6329514 | L16: 100.5637653 | M16: 94.94811559 | N16: 116.1470832 | O16: 113.3015198
B17: 909 | C17: Retten i Kolding | D17: 98.13562114 | E17: 100.1032868 | F17: 96.3733243 | G17: 93.99247088 | H17: 89.34231776 | I17: 90.16648262 | J17: 106.8057326 | K17: 99.79521476 | L17: 104.5844626 | M17: 102.7181157 | N17: 97.64333466 | O17: 104.4182383
B18: 910 | C18: Retten i Esbjerg | D18: 101.6999515 | E18: 94.54518214 | F18: 124.5837011 | G18: 100.5977174 | H18: 136.0708461 | I18: 98.78328413 | J18: 100.7091666 | K18: 102.5925929 | L18: 71.97021462 | M18: 71.55351178 | N18: 95.63138937 | O18: 92.89264766
B19: 911 | C19: Retten i Sønderborg | D19: 96.15310131 | E19: 93.86566897 | F19: 93.59443077 | G19: 90.04178572 | H19: 110.0314838 | I19: 106.6420997 | J19: 69.31255046 | K19: 63.8187534 | L19: 99.19980366 | M19: 106.4395536 | N19: 98.77841697 | O19: 107.2118916
B20: 912 | C20: Retten i Odense | D20: 94.03729409 | E20: 94.83698175 | F20: 98.94693371 | G20: 95.81016464 | H20: 89.43749681 | I20: 86.75665445 | J20: 121.8809019 | K20: 116.4291651 | L20: 87.37786929 | M20: 87.15309352 | N20: 74.77387162 | O20: 80.303418
B21: 913 | C21: Retten i Svendborg | D21: 96.83437037 | E21: 95.55080734 | F21: 84.58856502 | G21: 84.91886561 | H21: 85.1687004 | I21: 84.33872791 | J21: 82.82557157 | K21: 85.05757147 | L21: 91.20470728 | M21: 87.77922219 | N21: 120.9625028 | O21: 117.8194079
B22: 914 | C22: Retten i Nykøbing F. | D22: 97.75699182 | E22: 82.56696321 | F22: 98.32746764 | G22: 87.87655009 | H22: 105.1811758 | I22: 93.69105641 | J22: 84.30654976 | K22: 77.81114112 | L22: 102.3391297 | M22: 76.48400129 | N22: 110.9219691 | O22: 90.35537195
B23: 915 | C23: Retten i Næstved | D23: 95.07352706 | E23: 80.63271479 | F23: 102.3278303 | G23: 81.24287572 | H23: 105.4455356 | I23: 75.34238954 | J23: 94.03834184 | K23: 91.87265084 | L23: 87.6084308 | M23: 80.90260538 | N23: 98.78235938 | O23: 100.2528422
B24: 916 | C24: Retten i Holbæk | D24: 102.3936651 | E24: 91.03242036 | F24: 106.4002406 | G24: 100.7389341 | H24: 105.8117623 | I24: 92.49747484 | J24: 106.187368 | K24: 114.2735422 | L24: 97.46324287 | M24: 79.23696005 | N24: 94.74577954 | O24: 90.30688865
B25: 917 | C25: Retten i Roskilde | D25: 94.20570038 | E25: 87.27214093 | F25: 95.16398034 | G25: 94.86858624 | H25: 90.57230305 | I25: 93.22910343 | J25: 101.7509967 | K25: 96.5975585 | L25: 95.81584142 | M25: 77.38058123 | N25: 112.2287204 | O25: 105.3372905
B26: 918 | C26: Retten i Hillerød | D26: 97.74589656 | E26: 104.2289337 | F26: 96.13924477 | G26: 102.8389001 | H26: 115.3977734 | I26: 124.7654097 | J26: 75.56551848 | K26: 79.70323616 | L26: 89.58420817 | M26: 118.0254298 | N26: 109.8989708 | O26: 112.0954875
B27: 919 | C27: Retten i Helsingør | D27: 98.70528119 | E27: 96.15993538 | F27: 110.2002785 | G27: 111.9244733 | H27: 105.4226542 | I27: 100.3470824 | J27: 116.037911 | K27: 130.266565 | L27: 77.37542246 | M27: 62.32711515 | N27: 93.87814875 | O27: 100.8438222
B28: 920 | C28: Retten i Lyngby | D28: 100.9708011 | E28: 93.58597796 | F28: 104.1318934 | G28: 94.32220545 | H28: 99.43663975 | I28: 91.75889408 | J28: 108.8376575 | K28: 96.86875909 | L28: 103.0703862 | M28: 92.42582085 | N28: 89.903284 | O28: 83.87685455
B29: 921 | C29: Retten i Glostrup | D29: 101.3770634 | E29: 98.40617146 | F29: 101.8178164 | G29: 97.98507724 | H29: 97.58339216 | I29: 93.52281351 | J29: 108.3613276 | K29: 105.5612675 | L29: 85.68504526 | M29: 74.09282862 | N29: 129.4248671 | O29: 148.6190947
B30: 922 | C30: Retten på Frederiksberg | D30: 86.06846362 | E30: 83.80469812 | F30: 86.4192055 | G30: 83.53358421 | H30: 99.78111067 | I30: 95.23597527 | J30: 67.44644628 | K30: 65.38356254 | L30: 80.93985887 | M30: 75.69895714 | N30: 76.27034647 | O30: 57.54499274
B31: 923 | C31: Københavns Byret | D31: 83.02320465 | E31: 69.05441269 | F31: 92.78001752 | G31: 75.62081944 | H31: 80.21290312 | I31: 72.27514149 | J31: 116.9222919 | K31: 81.38327006 | L31: 71.79144714 | M31: 59.26772036 | N31: 69.26076427 | O31: 73.0916936
B34: 1) Indeks 100 svarer til gennemsnittet ved byretterne i 2019.
B35: 2) "Retssager" svarer til den samlede produktivitet for straffesager og civile sager, "Fogedsager" til den samlede produktivitet for øvrige fogedsager og tvangsauktioner, "Skiftesager" til den samlede produktivitet for insolvensskifter og dødsboskifter.
B36: 3) Ved beregningen af den samlede produktivitet for kontorpersonale anvendes det samlede årsværksforbrug for gruppen - dvs. også årsværksforbruget til generel ledelse og administration mv. Ved beregning af produktiviteten på de enkelte sagsområder er kun medtaget det direkte årsværksforbrug - dvs. der er ikke foretaget en nøgletalsfordeling af årsværkforbruget til generel ledelse og administration mv.

Sheet Generel ledelse_Adm.
B2: ÅRSVÆRKSFORBRUG ANVENDT TIL GENEREL LEDELSE OG ADMINISTRATION MV.
E5: Årsværk til generel ledelse og administration | H5: %-del til generel ledelse og administration
E6: =Overblik!$D$6-1 -> 2019 | F6: =Overblik!$D$6 -> 2020 | G6: =Overblik!$E$6 -> 2021 | H6: =Overblik!$D$6-1 -> 2019 | I6: =Overblik!$D$6 -> 2020 | J6: =Overblik!$E$6 -> 2021
B8: SAMLET BYRETTERNE | D8: Jurister | E8: 30.5618969 | F8: 28.93464517 | G8: 28.51129398 | H8: 0.07224923195 | I8: 0.0684700315 | J8: 0.06772183786
D9: Kontor | E9: 103.7879743 | F9: 98.65218565 | G9: 102.5049984 | H9: 0.1259377556 | I9: 0.1197269161 | J9: 0.1232791532
D10: Elev | E10: 7.210094809 | F10: 6.498015594 | G10: 6.724486099 | H10: 0.09991781915 | I10: 0.08794367388 | J10: 0.09658710631
D11: Fleks | E11: 14.64082388 | F11: 14.47513311 | G11: 13.47844084 | H11: 0.3245528811 | I11: 0.3610889873 | J11: 0.346892912
D12: Øvrige | E12: 73.11472378 | F12: 69.88093873 | G12: 76.47446752 | H12: 0.7297366569 | I12: 0.7595423974 | J12: 0.786190053
D13: Samlet | E13: 229.3155136 | F13: 218.4409183 | G13: =SUM(G8:G12) -> 227.6936869 | H13: 0.1565729629 | I13: 0.1503849628 | J13: 0.1561427278
D14: - ekskl. fleks og elever | E14: 207.4645949 | F14: 203.9657851 | G14: =G13-G11-G10 -> 207.4907599 | H14: 0.1539830451 | I14: 0.1475215326 | J14: 0.1537236151
B15: EID | C15: Ret
B16: 901 | C16: Retten i Hjørring | D16: Jurister | E16: 0.8165050132 | F16: 1.00592375 | G16: 0.979805352 | H16: 0.06447083024 | I16: 0.07741483723 | J16: 0.07501803869
B17: 901 | C17: Retten i Hjørring | D17: Kontor | E17: 2.818710263 | F17: 2.852173946 | G17: 3.811101133 | H17: 0.1016531703 | I17: 0.104109024 | J17: 0.1386940301
B18: 901 | C18: Retten i Hjørring | D18: Elev | E18: 0.2043393491 | F18: 0.1517090096 | G18: 0.6821767098 | H18: 0.05879829108 | I18: 0.04598510791 | J18: 0.2942268452
B19: 901 | C19: Retten i Hjørring | D19: Fleks | E19: 0.008313919343 | F19: 0.0009025739759 | G19: 0 | H19: 0.003059152283 | I19: 0.0007824248205 | J19: 0
B20: 901 | C20: Retten i Hjørring | D20: Øvrige | E20: 2.635953119 | F20: 1.949964163 | G20: 2.083776565 | H20: 0.7228185816 | I20: 0.7755957929 | J20: 0.7012729824
B21: 901 | C21: Retten i Hjørring | D21: Samlet | E21: 6.483821663 | F21: 5.960673442 | G21: =SUM(G16:G20) -> 7.55685976 | H21: 0.1290745072 | I21: 0.1258673985 | J21: 0.161184571
D22: - ekskl. fleks og elever | E22: 6.271168395 | F22: 5.959770868 | G22: =G21-G19-G18 -> 6.874683051 | H22: 0.1423964882 | I22: 0.1353730564 | J22: 0.1579993544
B23: 902 | C23: Retten i Aalborg | D23: Jurister | E23: 1.161353235 | F23: 1.409823607 | G23: 1.545129568 | H23: 0.05444170789 | I23: 0.06581471572 | J23: 0.07443498313
B24: 902 | C24: Retten i Aalborg | D24: Kontor | E24: 5.091225087 | F24: 3.744894692 | G24: 4.061157816 | H24: 0.1237883113 | I24: 0.08997558919 | J24: 0.09404655451
B25: 902 | C25: Retten i Aalborg | D25: Elev | E25: 0.4172954905 | F25: 0.1770278422 | G25: 0.2950296413 | H25: 0.07630964725 | I25: 0.02994219565 | J25: 0.05873480838
B26: 902 | C26: Retten i Aalborg | D26: Fleks | E26: 0.9785450735 | F26: 0.947002472 | G26: 1.158934155 | H26: 0.5013526283 | I26: 0.7905191969 | J26: 0.9122448912
B27: 902 | C27: Retten i Aalborg | D27: Øvrige | E27: 0.9119560765 | F27: 1.414775963 | G27: 0.8945238677 | H27: 0.2619622482 | I27: 0.3426121991 | J27: 0.2649491198
B28: 902 | C28: Retten i Aalborg | D28: Samlet | E28: 8.560374963 | F28: 7.693524576 | G28: =SUM(G23:G27) -> 7.954775048 | H28: 0.1166867083 | I28: 0.1035718835 | J28: 0.1080661474
D29: - ekskl. fleks og elever | E29: 7.164534399 | F29: 6.746522104 | G29: =G28-G26-G25 -> 6.500811252 | H29: 0.1086493934 | I29: 0.09780150396 | J29: 0.09657050017
B30: 903 | C30: Retten i Randers | D30: Jurister | E30: 0.9410169033 | F30: 1.010042492 | G30: 1.212800198 | H30: 0.0730012601 | I30: 0.08377486017 | J30: 0.0938781951
B31: 903 | C31: Retten i Randers | D31: Kontor | E31: 3.45850903 | F31: 3.99994065 | G31: 4.181713174 | H31: 0.1204404529 | I31: 0.1380386573 | J31: 0.1467749305
B32: 903 | C32: Retten i Randers | D32: Elev | E32: 0.3566343155 | F32: 0.2485480049 | G32: 0.08990295386 | H32: 0.07640570299 | I32: 0.07547859825 | J32: 0.03852857143
B33: 903 | C33: Retten i Randers | D33: Fleks | E33: 1.505954867 | F33: 0.9413692726 | G33: 1.512766265 | H33: 0.8571415618 | I33: 0.6694609949 | J33: 0.7599167454
B34: 903 | C34: Retten i Randers | D34: Øvrige | E34: 1.144062578 | F34: 1.498893394 | G34: 2.143565846 | H34: 0.5818411305 | I34: 0.756249158 | J34: 0.9608223537
B35: 903 | C35: Retten i Randers | D35: Samlet | E35: 7.406177694 | F35: 7.698793814 | G35: =SUM(G30:G34) -> 9.140748437 | H35: 0.1481330344 | I35: 0.1613504976 | J35: 0.1905728066
D36: - ekskl. fleks og elever | E36: 5.543588511 | F36: 6.757424541 | G36: =G35-G33-G32 -> 7.538079218 | H36: 0.1272276185 | I36: 0.1513143263 | J36: 0.1727313148
B37: 904 | C37: Retten i Århus | D37: Jurister | E37: 1.415922503 | F37: 0.9385830392 | G37: 1.455997585 | H37: 0.05977945841 | I37: 0.03841934408 | J37: 0.05893135679
B38: 904 | C38: Retten i Århus | D38: Kontor | E38: 5.771859472 | F38: 4.06426402 | G38: 5.017518869 | H38: 0.1254570146 | I38: 0.08744933949 | J38: 0.1105341056
B39: 904 | C39: Retten i Århus | D39: Elev | E39: 0.07322424272 | F39: 0.08803628357 | G39: 0.2345726936 | H39: 0.04080367932 | I39: 0.03603997297 | J39: 0.0605503583
B40: 904 | C40: Retten i Århus | D40: Fleks | E40: 0.9106430306 | F40: 0.8619773696 | G40: 1.010147905 | H40: 0.3629592699 | I40: 0.3622484239 | J40: 0.3975880195
B41: 904 | C41: Retten i Århus | D41: Øvrige | E41: 4.397164412 | F41: 4.315583335 | G41: 6.190252621 | H41: 0.6653076176 | I41: 0.6902547816 | J41: 0.6734069106
B42: 904 | C42: Retten i Århus | D42: Samlet | E42: 12.56881366 | F42: 10.26844405 | G42: =SUM(G37:G41) -> 13.90848967 | H42: 0.1559306528 | I42: 0.125255447 | J42: 0.162279109
D43: - ekskl. fleks og elever | E43: 11.58494639 | F43: 9.406466679 | G43: =G42-G40-G39 -> 12.66376908 | H43: 0.1518308564 | I43: 0.1207711369 | J43: 0.1597095246
B44: 905 | C44: Retten i Viborg | D44: Jurister | E44: 1.303286249 | F44: 1.876658807 | G44: 1.052306211 | H44: 0.09193649589 | I44: 0.1265602931 | J44: 0.07842075926
B45: 905 | C45: Retten i Viborg | D45: Kontor | E45: 3.447435541 | F45: 3.317307252 | G45: 3.682444159 | H45: 0.1229600393 | I45: 0.1224030414 | J45: 0.1233633103
B46: 905 | C46: Retten i Viborg | D46: Elev | E46: 0.3577759454 | F46: 0.1169160411 | G46: 0.317063316 | H46: 0.08405540451 | I46: 0.02334333779 | J46: 0.07011944819
B47: 905 | C47: Retten i Viborg | D47: Fleks | E47: 0.0792325416 | F47: 0.4058273825 | G47: 0.678520355 | H47: 0.03961508235 | I47: 0.202907604 | J47: 0.33925
B48: 905 | C48: Retten i Viborg | D48: Øvrige | E48: 2.627973024 | F48: 2.022072201 | G48: 3.017961725 | H48: 0.6735473663 | I48: 0.6614672144 | J48: 0.7544885451
B49: 905 | C49: Retten i Viborg | D49: Samlet | E49: 7.815703301 | F49: 7.738781683 | G49: =SUM(G44:G48) -> 8.748295766 | H49: 0.1492367803 | I49: 0.1488363489 | J49: 0.1626350858
D50: - ekskl. fleks og elever | E50: 7.378694814 | F50: 7.332954301 | G50: =G49-G47-G46 -> 7.752712095 | H50: 0.160007538 | I50: 0.1604040279 | J50: 0.1640121596
B51: 906 | C51: Retten i Holstebro | D51: Jurister | E51: 1.005668305 | F51: 0.8932017396 | G51: 0.8970766909 | H51: 0.126108934 | I51: 0.1113563758 | J51: 0.1015357745
B52: 906 | C52: Retten i Holstebro | D52: Kontor | E52: 1.342012166 | F52: 1.158811163 | G52: 1.118436946 | H52: 0.07078940899 | I52: 0.05885471908 | J52: 0.05598113132
B53: 906 | C53: Retten i Holstebro | D53: Elev | E53: 0.03510913142 | F53: 0.2396051047 | G53: 0.03258914048 | H53: 0.01782877222 | I53: 0.09074782214 | J53: 0.009829358701
B54: 906 | C54: Retten i Holstebro | D54: Fleks | E54: 1.397817684 | F54: 2.199188801 | G54: 1.205124506 | H54: 0.7243066548 | I54: 0.7463732569 | J54: 0.7115966499
B55: 906 | C55: Retten i Holstebro | D55: Øvrige | E55: 1.96818 | F55: 2.320829153 | G55: 2.722522269 | H55: 1 | I55: 0.9953335334 | J55: 0.9571012177
B56: 906 | C56: Retten i Holstebro | D56: Samlet | E56: 5.748787286 | F56: 6.811635962 | G56: =SUM(G51:G55) -> 5.975749553 | H56: 0.1752695081 | I56: 0.1911822967 | J56: 0.1629713284
D57: - ekskl. fleks og elever | E57: 4.315860471 | F57: 4.612447161 | G57: =G56-G54-G53 -> 4.738035906 | H57: 0.1493346838 | I57: 0.1455567975 | J57: 0.1496610196
B58: 907 | C58: Retten i Herning | D58: Jurister | E58: 0.5163178247 | F58: 0.4058989207 | G58: 0.3840506525 | H58: 0.04275782373 | I58: 0.03143686129 | J58: 0.03255027909
B59: 907 | C59: Retten i Herning | D59: Kontor | E59: 1.591714308 | F59: 1.653754705 | G59: 1.820932966 | H59: 0.07223228792 | I59: 0.07546577388 | J59: 0.08202315768
B60: 907 | C60: Retten i Herning | D60: Elev | E60: 0.204916791 | F60: 0.1364696445 | G60: 0.06998005353 | H60: 0.06698903907 | I60: 0.03576670323 | J60: 0.02140940126
B61: 907 | C61: Retten i Herning | D61: Fleks | E61: 0 | F61: 0 | G61: 0 | H61: - | I61: - | J61: -
B62: 907 | C62: Retten i Herning | D62: Øvrige | E62: 2.00006 | F62: 2.406457398 | G62: 3.23803 | H62: 1 | I62: 0.9995627838 | J62: 1
B63: 907 | C63: Retten i Herning | D63: Samlet | E63: 4.313008924 | F63: 4.602580668 | G63: =SUM(G58:G62) -> 5.512993672 | H63: 0.1101086845 | I63: 0.1121251831 | J63: 0.1361044475
D64: - ekskl. fleks og elever | E64: 4.108092133 | F64: 4.602580668 | G64: =G63-G61-G60 -> 5.443013618 | H64: 0.1137612947 | I64: 0.1199502115 | J64: 0.1461723803
B65: 908 | C65: Retten i Horsens | D65: Jurister | E65: 0.9865621139 | F65: 0.9786214392 | G65: 0.8168273814 | H65: 0.081169534 | I65: 0.08127106281 | J65: 0.06840596182
B66: 908 | C66: Retten i Horsens | D66: Kontor | E66: 3.10057422 | F66: 3.003412363 | G66: 2.643846305 | H66: 0.1573398764 | I66: 0.1458755319 | J66: 0.1238192838
B67: 908 | C67: Retten i Horsens | D67: Elev | E67: 0.6740271823 | F67: 0.3835609597 | G67: 0.5830559473 | H67: 0.2088226109 | I67: 0.1429591987 | J67: 0.1731004413
B68: 908 | C68: Retten i Horsens | D68: Fleks | E68: 0.9372890763 | F68: 0.0002687098976 | G68: 0.4574163813 | H68: 0.2417045297 | I68: 0.000160551302 | J68: 0.2018696241
B69: 908 | C69: Retten i Horsens | D69: Øvrige | E69: 1.953159068 | F69: 2.455990926 | G69: 3.044566266 | H69: 0.4872081648 | I69: 0.5667427233 | J69: 0.6485182635
B70: 908 | C70: Retten i Horsens | D70: Samlet | E70: 7.65161166 | F70: 6.821854398 | G70: =SUM(G65:G69) -> 7.545712281 | H70: 0.1780478906 | I70: 0.1650960443 | J70: 0.1729787191
D71: - ekskl. fleks og elever | E71: 6.040295401 | F71: 6.821585688 | G71: =G70-G68-G67 -> 6.505239952 | H71: 0.1683967021 | I71: 0.1741708851 | J71: 0.1712446474
B72: 909 | C72: Retten i Kolding | D72: Jurister | E72: 1.520608135 | F72: 1.111163378 | G72: 0.7863987046 | H72: 0.07610179022 | I72: 0.05267312988 | J72: 0.03541878616
B73: 909 | C73: Retten i Kolding | D73: Kontor | E73: 3.65459088 | F73: 5.229467347 | G73: 3.960523647 | H73: 0.09473121138 | I73: 0.1320818715 | J73: 0.101521432
B74: 909 | C74: Retten i Kolding | D74: Elev | E74: 0.4973146293 | F74: 0.05544067892 | G74: 0.03950186727 | H74: 0.1359444291 | I74: 0.0152886241 | J74: 0.01077272727
B75: 909 | C75: Retten i Kolding | D75: Fleks | E75: 0.91926 | F75: 0.9223873173 | G75: 0.9599778557 | H75: 0.3333333333 | I75: 0.3075639352 | J75: 0.3119515475
B76: 909 | C76: Retten i Kolding | D76: Øvrige | E76: 3.042991101 | F76: 2.474173145 | G76: 2.50427129 | H76: 0.7644957155 | I76: 0.852014403 | J76: 0.7798552848
B77: 909 | C77: Retten i Kolding | D77: Samlet | E77: 9.634764745 | F77: 9.792631866 | G77: =SUM(G72:G76) -> 8.250673365 | H77: 0.1397230464 | I77: 0.1394618911 | J77: 0.1159291882
D78: - ekskl. fleks og elever | E78: 8.218190116 | F78: 8.870244548 | G78: =G77-G75-G74 -> 7.251193642 | H78: 0.1314066052 | I78: 0.1386150246 | J78: 0.1125511366
B79: 910 | C79: Retten i Esbjerg | D79: Jurister | E79: 1.189627323 | F79: 1.018200504 | G79: 0.773218967 | H79: 0.08473406697 | I79: 0.06783250563 | J79: 0.05260007285
B80: 910 | C80: Retten i Esbjerg | D80: Kontor | E80: 2.436782768 | F80: 2.598202199 | G80: 1.996903157 | H80: 0.09519995407 | I80: 0.09919380567 | J80: 0.07523335555
B81: 910 | C81: Retten i Esbjerg | D81: Elev | E81: 0.03273857432 | F81: 0.003319448289 | G81: 0.03850176 | H81: 0.02885727132 | I81: 0.002522818038 | J81: 0.0165
B82: 910 | C82: Retten i Esbjerg | D82: Fleks | E82: 0 | F82: 0 | G82: 0 | H82: 0 | I82: 0 | J82: 0
B83: 910 | C83: Retten i Esbjerg | D83: Øvrige | E83: 2.676769672 | F83: 4.112147411 | G83: 4.958875218 | H83: 0.8448385838 | I83: 0.9078149225 | J83: 0.9539380451
B84: 910 | C84: Retten i Esbjerg | D84: Samlet | E84: 6.335918338 | F84: 7.731869562 | G84: =SUM(G79:G83) -> 7.767499103 | H84: 0.1416092602 | I84: 0.1616506026 | J84: 0.1560536592
D85: - ekskl. fleks og elever | E85: 6.303179763 | F85: 7.731869562 | G85: =G84-G82-G81 -> 7.728997343 | H85: 0.1472554512 | I85: 0.1689913003 | J85: 0.1664259101
B86: 911 | C86: Retten i Sønderborg | D86: Jurister | E86: 1.167522287 | F86: 1.386123234 | G86: 1.262381673 | H86: 0.07339948404 | I86: 0.08841233187 | J86: 0.08399375848
B87: 911 | C87: Retten i Sønderborg | D87: Kontor | E87: 4.019251678 | F87: 3.604574052 | G87: 4.319873109 | H87: 0.1214742979 | I87: 0.1036187796 | J87: 0.1311393493
B88: 911 | C88: Retten i Sønderborg | D88: Elev | E88: 0.118703307 | F88: 0.1184438906 | G88: 0.08543696425 | H88: 0.04453923883 | I88: 0.05820910684 | J88: 0.064075
B89: 911 | C89: Retten i Sønderborg | D89: Fleks | E89: 0.6225899948 | F89: 1.082904873 | G89: 1.048025387 | H89: 0.430914788 | I89: 0.9009117004 | J89: 0.7354770571
B90: 911 | C90: Retten i Sønderborg | D90: Øvrige | E90: 3.374212735 | F90: 3.216349632 | G90: 2.038782078 | H90: 0.8753003267 | I90: 0.8653242413 | J90: 0.8933641571
B91: 911 | C91: Retten i Sønderborg | D91: Samlet | E91: 9.302280001 | F91: 9.408395682 | G91: =SUM(G86:G90) -> 8.754499211 | H91: 0.1633166862 | I91: 0.1638563503 | J91: 0.1651447993
D92: - ekskl. fleks og elever | E92: 8.5609867 | F92: 8.325490809 | G92: =G91-G89-G88 -> 7.62103686 | H92: 0.1619908251 | I92: 0.1514725331 | J92: 0.1516542765
B93: 912 | C93: Retten i Odense | D93: Jurister | E93: 1.581806246 | F93: 0.8559542887 | G93: 0.7367667803 | H93: 0.07947572984 | I93: 0.04118721207 | J93: 0.03564661907
B94: 912 | C94: Retten i Odense | D94: Kontor | E94: 3.404402621 | F94: 3.483663033 | G94: 3.513672982 | H94: 0.07980268801 | I94: 0.08015181156 | J94: 0.0774259445
B95: 912 | C95: Retten i Odense | D95: Elev | E95: 0.08763209579 | F95: 0.04837592715 | G95: 0 | H95: 0.02190714766 | I95: 0.01209349805 | J95: 0
B96: 912 | C96: Retten i Odense | D96: Fleks | E96: 0.5428475293 | F96: 0.1856353427 | G96: 0 | H96: 0.4463142255 | I96: 0.2254963287 | J96: 0
B97: 912 | C97: Retten i Odense | D97: Øvrige | E97: 4.991656976 | F97: 5.051381833 | G97: 4.745342033 | H97: 0.9949128746 | I97: 0.9983106156 | J97: 0.9605897196
B98: 912 | C98: Retten i Odense | D98: Samlet | E98: 10.60834547 | F98: 9.625010425 | G98: =SUM(G93:G97) -> 8.995781794 | H98: 0.1457252565 | I98: 0.1298419414 | J98: 0.1198751887
D99: - ekskl. fleks og elever | E99: 9.977865843 | F99: 9.439375082 | G99: =G98-G96-G95 -> 8.995781794 | H99: 0.1476442865 | I99: 0.1355019294 | J99: 0.1267194639
B100: 913 | C100: Retten i Svendborg | D100: Jurister | E100: 0.8732591719 | F100: 0.7373465032 | G100: 0.8290483073 | H100: 0.08479512198 | I100: 0.06632650979 | J100: 0.07916068848
B101: 913 | C101: Retten i Svendborg | D101: Kontor | E101: 3.12048668 | F101: 2.402613834 | G101: 2.561741401 | H101: 0.1414488119 | I101: 0.1147973229 | J101: 0.1235328464
B102: 913 | C102: Retten i Svendborg | D102: Elev | E102: 0.0971355675 | F102: 0.6946783458 | G102: 0.7194469163 | H102: 0.1424567617 | I102: 0.3473287531 | J102: 0.4195588425
B103: 913 | C103: Retten i Svendborg | D103: Fleks | E103: 0.4703565091 | F103: 0.471683587 | G103: 0.209606288 | H103: 0.4703423988 | I103: 0.4716694369 | J103: 0.2096
B104: 913 | C104: Retten i Svendborg | D104: Øvrige | E104: 2.931395561 | F104: 3.209203021 | G104: 3.743422805 | H104: 0.7319248352 | I104: 0.762911628 | J104: 0.7958210414
B105: 913 | C105: Retten i Svendborg | D105: Samlet | E105: 7.49263349 | F105: 7.515525292 | G105: =SUM(G100:G104) -> 8.063265719 | H105: 0.196934668 | I105: 0.1914651318 | J105: 0.208736288
D106: - ekskl. fleks og elever | E106: 6.925141413 | F106: 7.043841705 | G106: =G105-G103-G102 -> 7.134212514 | H106: 0.1904373897 | I106: 0.1751366759 | J106: 0.1986462307
B107: 914 | C107: Retten i Nykøbing F. | D107: Jurister | E107: 1.080929726 | F107: 0.9839436734 | G107: 1.073025539 | H107: 0.08250068315 | I107: 0.07463238589 | J107: 0.0820731144
B108: 914 | C108: Retten i Nykøbing F. | D108: Kontor | E108: 4.029782994 | F108: 4.766787195 | G108: 4.502488272 | H108: 0.1284493289 | I108: 0.1539866854 | J108: 0.1443591965
B109: 914 | C109: Retten i Nykøbing F. | D109: Elev | E109: 0.1897789461 | F109: 0.2855387205 | G109: 0.2676568009 | H109: 0.09488567762 | I109: 0.1427636497 | J109: 0.1446981235
B110: 914 | C110: Retten i Nykøbing F. | D110: Fleks | E110: 0.40708 | F110: 0.41472 | G110: 0.40544 | H110: 1 | I110: 1 | J110: 1
B111: 914 | C111: Retten i Nykøbing F. | D111: Øvrige | E111: 2.736734263 | F111: 2.882638878 | G111: 2.54852785 | H111: 0.9955381096 | I111: 0.8508178313 | J111: 0.9146868171
B112: 914 | C112: Retten i Nykøbing F. | D112: Samlet | E112: 8.444305929 | F112: 9.333628467 | G112: =SUM(G107:G111) -> 8.797138462 | H112: 0.170142519 | I112: 0.1868871532 | J112: 0.1784231001
D113: - ekskl. fleks og elever | E113: 7.847446983 | F113: 8.918908467 | G113: =G112-G110-G109 -> 8.124041662 | H113: 0.1661763114 | I113: 0.1816488784 | J113: 0.1726692515
B114: 915 | C114: Retten i Næstved | D114: Jurister | E114: 1.464807651 | F114: 1.171592482 | G114: 1.492723761 | H114: 0.07724324329 | I114: 0.06479326592 | J114: 0.08771883885
B115: 915 | C115: Retten i Næstved | D115: Kontor | E115: 5.644841695 | F115: 5.678331675 | G115: 7.041212923 | H115: 0.1480866691 | I115: 0.1464790378 | J115: 0.1744713777
B116: 915 | C116: Retten i Næstved | D116: Elev | E116: 0.1484553665 | F116: 0.4566530055 | G116: 0.4180029442 | H116: 0.07422545648 | I116: 0.2083774843 | J116: 0.1563954998
B117: 915 | C117: Retten i Næstved | D117: Fleks | E117: 1.14146357 | F117: 1.049716308 | G117: 0.6972713994 | H117: 0.4471820833 | I117: 0.4208713621 | J117: 0.2420938345
B118: 915 | C118: Retten i Næstved | D118: Øvrige | E118: 2.987710401 | F118: 3.436761899 | G118: 3.930617586 | H118: 0.9966243586 | I118: 0.9280318795 | J118: 0.8253109309
B119: 915 | C119: Retten i Næstved | D119: Samlet | E119: 11.38727868 | F119: 11.79305537 | G119: =SUM(G114:G118) -> 13.57982861 | H119: 0.1761849441 | I119: 0.1807741594 | J119: 0.2006178252
D120: - ekskl. fleks og elever | E120: 10.09735975 | F120: 10.74333906 | G120: =G119-G117-G116 -> 12.46455427 | H120: 0.1680655219 | I120: 0.1698852774 | J120: 0.2005974892
B121: 916 | C121: Retten i Holbæk | D121: Jurister | E121: 0.8092457669 | F121: 0.7809023305 | G121: 0.7259152039 | H121: 0.06487704498 | I121: 0.06909044288 | J121: 0.06235002928
B122: 916 | C122: Retten i Holbæk | D122: Kontor | E122: 2.671945749 | F122: 2.231927466 | G122: 3.032788622 | H122: 0.1132043693 | I122: 0.09556950986 | J122: 0.1263265576
B123: 916 | C123: Retten i Holbæk | D123: Elev | E123: 0.2987257459 | F123: 0.08255483991 | G123: 0.1472759234 | H123: 0.1302318188 | I123: 0.03121496412 | J123: 0.1262285714
B124: 916 | C124: Retten i Holbæk | D124: Fleks | E124: 0.4089044619 | F124: 0.08416258111 | G124: 0 | H124: 0.1429236148 | I124: 0.03821281612 | J124: 0
B125: 916 | C125: Retten i Holbæk | D125: Øvrige | E125: 2.441442966 | F125: 2.377329568 | G125: 2.563180647 | H125: 0.8693575777 | I125: 0.8105508964 | J125: 0.8155800924
B126: 916 | C126: Retten i Holbæk | D126: Samlet | E126: 6.63026469 | F126: 5.556876786 | G126: =SUM(G121:G125) -> 6.469160396 | H126: 0.1505526444 | I126: 0.1309449189 | J126: 0.1541756371
D127: - ekskl. fleks og elever | E127: 5.922634482 | F127: 5.472714205 | G127: =G126-G124-G123 -> 6.321884473 | H127: 0.1523126823 | I127: 0.1433951173 | J127: 0.1629650718
B128: 917 | C128: Retten i Roskilde | D128: Jurister | E128: 1.382938354 | F128: 1.290647287 | G128: 2.220113508 | H128: 0.06772838064 | I128: 0.07187889008 | J128: 0.1145947841
B129: 917 | C129: Retten i Roskilde | D129: Kontor | E129: 5.475695849 | F129: 6.713309863 | G129: 7.578854417 | H129: 0.1405791909 | I129: 0.1682486573 | J129: 0.1785332949
B130: 917 | C130: Retten i Roskilde | D130: Elev | E130: 0.03774805309 | F130: 0 | G130: 0.001850071154 | H130: 0.01202895162 | I130: 0 | J130: 0.0008538461538
B131: 917 | C131: Retten i Roskilde | D131: Fleks | E131: 0 | F131: 0 | G131: 0 | H131: 0 | I131: 0 | J131: 0
B132: 917 | C132: Retten i Roskilde | D132: Øvrige | E132: 2.08941 | F132: 1.3244 | G132: 1.83343 | H132: 1 | I132: 1 | J132: 1
B133: 917 | C133: Retten i Roskilde | D133: Samlet | E133: 8.985792256 | F133: 9.32835715 | G133: =SUM(G128:G132) -> 11.634248 | H133: 0.1365298651 | I133: 0.1470982891 | J133: 0.1752355326
D134: - ekskl. fleks og elever | E134: 8.948044203 | F134: 9.32835715 | G134: =G133-G131-G130 -> 11.63239793 | H134: 0.1455930766 | I134: 0.1576231773 | J134: 0.182733614
B135: 918 | C135: Retten i Hillerød | D135: Jurister | E135: 0.9391590534 | F135: 0.7242452499 | G135: 0.6390081129 | H135: 0.06793601738 | I135: 0.05561513002 | J135: 0.05434250762
B136: 918 | C136: Retten i Hillerød | D136: Kontor | E136: 2.528984839 | F136: 2.797628992 | G136: 3.13325397 | H136: 0.110414081 | I136: 0.1244661324 | J136: 0.1475672439
B137: 918 | C137: Retten i Hillerød | D137: Elev | E137: 0.02378894179 | F137: 0.8415489018 | G137: 0.1583365023 | H137: 0.006073271004 | I137: 0.2365688967 | J137: 0.05484104001
B138: 918 | C138: Retten i Hillerød | D138: Fleks | E138: 1.525754647 | F138: 0.9599292479 | G138: 0.3825950112 | H138: 0.511505579 | I138: 0.3592979877 | J138: 0.1628195519
B139: 918 | C139: Retten i Hillerød | D139: Øvrige | E139: 3.016763929 | F139: 1.961469736 | G139: 2.301302438 | H139: 0.5833361879 | I139: 0.4879362915 | J139: 0.5612836945
B140: 918 | C140: Retten i Hillerød | D140: Samlet | E140: 8.03445141 | F140: 7.284822128 | G140: =SUM(G135:G139) -> 6.614496034 | H140: 0.1646398917 | I140: 0.1592366537 | J140: 0.1562650778
D141: - ekskl. fleks og elever | E141: 6.484907821 | F141: 6.32489288 | G141: =G140-G138-G137 -> 6.073564521 | H141: 0.1547699985 | I141: 0.1387506539 | J141: 0.1637446156
B142: 919 | C142: Retten i Helsingør | D142: Jurister | E142: 0.8355221821 | F142: 0.8896454559 | G142: 0.9554570806 | H142: 0.07251701411 | I142: 0.07049577934 | J142: 0.07276767832
B143: 919 | C143: Retten i Helsingør | D143: Kontor | E143: 2.582801935 | F143: 2.262557202 | G143: 2.382778781 | H143: 0.1142419725 | I143: 0.09928125272 | J143: 0.1096379853
B144: 919 | C144: Retten i Helsingør | D144: Elev | E144: 0.1391379606 | F144: 0 | G144: 0.02655628404 | H144: 0.06541942609 | I144: 0 | J144: 0.02106504747
B145: 919 | C145: Retten i Helsingør | D145: Fleks | E145: 1.506686989 | F145: 1.774236806 | G145: 1.768921865 | H145: 0.4833276624 | I145: 0.5861041189 | J145: 0.5843483733
B146: 919 | C146: Retten i Helsingør | D146: Øvrige | E146: 1.836844624 | F146: 2.12788 | G146: 2.556434892 | H146: 0.6118613966 | I146: 1 | J146: 0.8985869319
B147: 919 | C147: Retten i Helsingør | D147: Samlet | E147: 6.90099369 | F147: 7.054319464 | G147: =SUM(G142:G146) -> 7.690148903 | H147: 0.1628508888 | I147: 0.1657331649 | J147: 0.1831153946
D148: - ekskl. fleks og elever | E148: 5.255168741 | F148: 5.280082658 | G148: =G147-G145-G144 -> 5.894670754 | H148: 0.1415267959 | I148: 0.1406630791 | J148: 0.1563227327
B149: 920 | C149: Retten i Lyngby | D149: Jurister | E149: 0.7974504805 | F149: 0.7626459636 | G149: 0.9702258356 | H149: 0.05561203753 | I149: 0.05219330504 | J149: 0.06788009677
B150: 920 | C150: Retten i Lyngby | D150: Kontor | E150: 4.463909999 | F150: 3.490284994 | G150: 3.685093399 | H150: 0.1488345063 | I150: 0.1369773258 | J150: 0.1420695911
B151: 920 | C151: Retten i Lyngby | D151: Elev | E151: 1.495016753 | F151: 1.508626118 | G151: 1.527560769 | H151: 0.3975801742 | I151: 0.4763821722 | J151: 0.4184914549
B152: 920 | C152: Retten i Lyngby | D152: Fleks | E152: 0.03469408302 | F152: 0.0751164988 | G152: 0.008608245513 | H152: 0.03799384879 | I152: 0.08954592996 | J152: 0.01027384054
B153: 920 | C153: Retten i Lyngby | D153: Øvrige | E153: 2.643566486 | F153: 2.301554575 | G153: 2.999616907 | H153: 0.7805937164 | I153: 0.9007442069 | J153: 0.9542830216
B154: 920 | C154: Retten i Lyngby | D154: Samlet | E154: 9.434637802 | F154: 8.138228149 | G154: =SUM(G149:G153) -> 9.191105157 | H154: 0.1800777638 | I154: 0.1744395584 | J154: 0.1920284786
D155: - ekskl. fleks og elever | E155: 7.904926965 | F155: 8.063111651 | G155: =G154-G152-G151 -> 7.654936142 | H155: 0.1656572129 | I155: 0.1536884616 | J155: 0.1764818639
B156: 921 | C156: Retten i Glostrup | D156: Jurister | E156: 2.785414018 | F156: 2.908136529 | G156: 1.786884369 | H156: 0.08861175776 | I156: 0.09042977405 | J156: 0.05426367504
B157: 921 | C157: Retten i Glostrup | D157: Kontor | E157: 5.979792681 | F157: 6.687093729 | G157: 6.273299216 | H157: 0.1095153791 | I157: 0.1197208616 | J157: 0.1096108993
B158: 921 | C158: Retten i Glostrup | D158: Elev | E158: 0.4213791147 | F158: 0.3583573561 | G158: 0.5892152689 | H158: 0.1489477401 | I158: 0.11226277 | J158: 0.1764788614
B159: 921 | C159: Retten i Glostrup | D159: Fleks | E159: 0.8610690932 | F159: 0.7638024484 | G159: 1.000065503 | H159: 0.2973387018 | I159: 0.213506507 | J159: 0.3014524544
B160: 921 | C160: Retten i Glostrup | D160: Øvrige | E160: 9.211525968 | F160: 5.915960891 | G160: 5.692279255 | H160: 0.8594565112 | I160: 0.8232803529 | J160: 0.8151402518
B161: 921 | C161: Retten i Glostrup | D161: Samlet | E161: 19.25918088 | F161: 16.63335095 | G161: =SUM(G156:G160) -> 15.34174361 | H161: 0.1879328959 | I161: 0.1631197887 | J161: 0.1477988481
D162: - ekskl. fleks og elever | E162: 17.97673267 | F162: 15.86954851 | G162: =G161-G159-G158 -> 13.75246284 | H162: 0.1857982064 | I162: 0.1629316361 | J162: 0.141565925
B163: 922 | C163: Retten på Frederiksberg | D163: Jurister | E163: 0.8998290597 | F163: 0.7355191522 | G163: 1.027406519 | H163: 0.03522927889 | I163: 0.02950369508 | J163: 0.04289016778
B164: 922 | C164: Retten på Frederiksberg | D164: Kontor | E164: 4.96265854 | F164: 4.865037456 | G164: 2.973816358 | H164: 0.1084036296 | I164: 0.106697818 | J164: 0.07032072529
B165: 922 | C165: Retten på Frederiksberg | D165: Elev | E165: 0.3716149459 | F165: 0.3111316433 | G165: 0.002549823452 | H165: 0.1462930017 | I165: 0.117702646 | J165: 0.0007780897495
B166: 922 | C166: Retten på Frederiksberg | D166: Fleks | E166: 0.3823208118 | F166: 1.315790913 | G166: 0.5683789217 | H166: 0.09109014213 | I166: 0.2792899713 | J166: 0.189894499
B167: 922 | C167: Retten på Frederiksberg | D167: Øvrige | E167: 4.994197387 | F167: 4.698675375 | G167: 4.391476554 | H167: 0.7792025406 | I167: 0.8310914733 | J167: 0.8831384421
B168: 922 | C168: Retten på Frederiksberg | D168: Samlet | E168: 11.61062075 | F168: 11.92615454 | G168: =SUM(G163:G167) -> 8.963628177 | H168: 0.1374553944 | I168: 0.1427695002 | J168: 0.1156799736
D169: - ekskl. fleks og elever | E169: 10.85668499 | F169: 10.61036363 | G169: =G168-G166-G165 -> 8.392699431 | H169: 0.139670131 | I169: 0.1351964352 | J169: 0.1178480624
B170: 923 | C170: Københavns Byret | D170: Jurister | E170: 4.514751751 | F170: 4.509354567 | G170: 4.26052891 | H170: 0.07347433507 | I170: 0.07566156832 | J170: 0.07078937988
B171: 923 | C171: Københavns Byret | D171: Kontor | E171: 19.84127475 | F171: 16.49064011 | G171: 18.18510286 | H171: 0.1728630223 | I171: 0.1452854935 | J171: 0.1553781633
B172: 923 | C172: Københavns Byret | D172: Elev | E172: 0.6363450048 | F172: 0.1052553011 | G172: 0.3780569286 | H172: 0.10512591 | I172: 0.01773874066 | J172: 0.0616376397
B173: 923 | C173: Københavns Byret | D173: Fleks | E173: 0 | F173: 0 | G173: 0.06758079857 | H173: - | I173: - | J173: 0.2424423267
B174: 923 | C174: Københavns Byret | D174: Øvrige | E174: 5.176849643 | F174: 5.247275623 | G174: 4.662972988 | H174: 0.4345469981 | I174: 0.5009011951 | J174: 0.5952688412
B175: 923 | C175: Københavns Byret | D175: Samlet | E175: 30.16922114 | F175: 26.3525256 | G175: =SUM(G170:G174) -> 27.55424248 | H175: 0.1553566051 | I175: 0.1390536342 | J175: 0.1439094017
D176: - ekskl. fleks og elever | E176: 29.53287614 | F176: 26.3525256 | G176: =G175-G173-G172 -> 27.10860475 | H176: 0.1569727135 | I176: 0.1429747578 | J176: 0.1464878012
B177: 924 | C177: Retten på Bornholm | D177: Jurister | E177: 0.5723935506 | F177: 0.5504707726 | G177: 0.628197065 | H177: 0.200243328 | I177: 0.2012484179 | J177: 0.2004246729
B178: 924 | C178: Retten på Bornholm | D178: Kontor | E178: 2.348730521 | F178: 1.55550771 | G178: 1.026443945 | H178: 0.3303790188 | I178: 0.2368611914 | J178: 0.1874109124
B179: 924 | C179: Retten på Bornholm | D179: Elev | E179: 0.2912573548 | F179: 0.08621852663 | G179: 0.0201668192 | H179: 0.2017730326 | I179: 0.105099685 | J179: 0.03184
B180: 924 | C180: Retten på Bornholm | D180: Fleks | E180: 0 | F180: 0.01851060837 | G180: 0.33906 | H180: - | I180: 0.9804347656 | J180: 1
B181: 924 | C181: Retten på Bornholm | D181: Øvrige | E181: 1.324143793 | F181: 1.159170611 | G181: 1.668735821 | H181: 0.9883071426 | I181: 0.9558199225 | J181: 0.840291969
B182: 924 | C182: Retten på Bornholm | D182: Samlet | E182: 4.536525219 | F182: 3.369878229 | G182: =SUM(G177:G181) -> 3.68260365 | H182: 0.3557782744 | I182: 0.2967897313 | J182: 0.318298897
D183: - ekskl. fleks og elever | E183: 4.245267864 | F183: 3.351367621 | G183: =G182-G180-G179 -> 3.323376831 | H183: 0.3754382369 | I183: 0.31051707 | J183: 0.3136089563
B185: 1) I opgørelsen er årsværksforbrug under kategorierne "ledelse og administration", "hjælpefunktioner" og "transporttid" henført under generel ledelse og administration mv.

Sheet Aktivitet
B2: AKTIVITET VED RETTEN MÅLT SOM VÆGTEDE AFSLUTTEDE SAGER
D4: Samlet | F4: Straffesager | H4: Civile sager | J4: Øvrige Fogedsager | L4: Tvangsauktionssager | N4: Insolvensskiftesager | P4: Dødsboskiftesager | R4: Notarialforretninger
D5: =Overblik!$D$6 -> 2020 | E5: =Overblik!$E$6 -> 2021 | F5: =Overblik!$D$6 -> 2020 | G5: =Overblik!$E$6 -> 2021 | H5: =Overblik!$D$6 -> 2020 | I5: =Overblik!$E$6 -> 2021 | J5: =Overblik!$D$6 -> 2020 | K5: =Overblik!$E$6 -> 2021 | L5: =Overblik!$D$6 -> 2020 | M5: =Overblik!$E$6 -> 2021 | N5: =Overblik!$D$6 -> 2020 | O5: =Overblik!$E$6 -> 2021 | P5: =Overblik!$D$6 -> 2020 | Q5: =Overblik!$E$6 -> 2021 | R5: =Overblik!$D$6 -> 2020 | S5: =Overblik!$E$6 -> 2021
B7: SAMLET BYRETTERNE | D7: 777180 | E7: 743536 | F7: 212842 | G7: 204854 | H7: 47895 | I7: 46672 | J7: 305974.01 | K7: 258149 | L7: 8741.39 | M7: 7894 | N7: 14429.46 | O7: 15096 | P7: 56455.86 | Q7: 56482 | R7: 115486 | S7: 131209
B8: EID | C8: Ret
B9: 901 | C9: Retten i Hjørring | D9: 23040 | E9: 22772 | F9: 4876 | G9: 5237 | H9: 1391 | I9: 1392 | J9: 11298.41 | K9: 9171.26 | L9: 472.74 | M9: 435.27 | N9: 665.65 | O9: 652.51 | P9: 2377.44 | Q9: 2340.38 | R9: 2945 | S9: 3563
B10: 902 | C10: Retten i Aalborg | D10: 38052 | E10: 38604 | F10: 9295 | G10: 9159 | H10: 2546 | I10: 2825 | J10: 16504.24 | K10: 13845.54 | L10: 420.18 | M10: 391.19 | N10: 913.88 | O10: 988.18 | P10: 2780.83 | Q10: 3006.07 | R10: 4741 | S10: 6368
B11: 903 | C11: Retten i Randers | D11: 26236 | E11: 25640 | F11: 5942 | G11: 5495 | H11: 1573 | I11: 1787 | J11: 13268.05 | K11: 9394.22 | L11: 524.24 | M11: 442.86 | N11: 684.54 | O11: 830.03 | P11: 2271 | Q11: 2478.06 | R11: 3344 | S11: 5026
B12: 904 | C12: Retten i Århus | D12: 48339 | E12: 43380 | F12: 14273 | G12: 12638 | H12: 2703 | I12: 2625 | J12: 19072.2 | K12: 13184.01 | L12: 254.52 | M12: 233.91 | N12: 1209.58 | O12: 1424.02 | P12: 2855.04 | Q12: 2610.08 | R12: 7294 | S12: 7584
B13: 905 | C13: Retten i Viborg | D13: 26206 | E13: 27005 | F13: 7432 | G13: 7095 | H13: 1370 | I13: 1651 | J13: 10825.46 | K13: 9457.11 | L13: 345.2 | M13: 242.68 | N13: 565.48 | O13: 720.25 | P13: 2027.9 | Q13: 2341.34 | R13: 4742 | S13: 5044
B14: 906 | C14: Retten i Holstebro | D14: 18602 | E14: 19807 | F14: 5366 | G14: 5824 | H14: 863 | I14: 1069 | J14: 6787.16 | K14: 5867.58 | L14: 315.72 | M14: 313.03 | N14: 467.21 | O14: 406.24 | P14: 1831.2 | Q14: 1787.93 | R14: 2802 | S14: 4133
B15: 907 | C15: Retten i Herning | D15: 25086 | E15: 22733 | F15: 8098 | G15: 7083 | H15: 1235 | I15: 1190 | J15: 8108.17 | K15: 6590.17 | L15: 235.12 | M15: 245.32 | N15: 519.6 | O15: 502.84 | P15: 1796.25 | Q15: 1759.88 | R15: 3800 | S15: 4672
B16: 908 | C16: Retten i Horsens | D16: 19908 | E16: 20045 | F16: 5142 | G16: 4752 | H16: 1189 | I16: 1295 | J16: 7264.57 | K16: 7376.7 | L16: 256.34 | M16: 252.88 | N16: 601.78 | O16: 636.16 | P16: 1655.44 | Q16: 1768.3 | R16: 3818 | S16: 4388
B17: 909 | C17: Retten i Kolding | D17: 37883 | E17: 38841 | F17: 9830 | G17: 10473 | H17: 2636 | I17: 2525 | J17: 13476.52 | K17: 13895.5 | L17: 472.07 | M17: 401.79 | N17: 736.88 | O17: 850.34 | P17: 2534.6 | Q17: 2725.88 | R17: 8470 | S17: 6887
B18: 910 | C18: Retten i Esbjerg | D18: 26448 | E18: 24701 | F18: 7997 | G18: 6898 | H18: 1227 | I18: 1388 | J18: 9884.77 | K18: 8552.47 | L18: 271.82 | M18: 244.2 | N18: 649.69 | O18: 607.74 | P18: 2297.03 | Q18: 2215.77 | R18: 3330 | S18: 3537
B19: 911 | C19: Retten i Sønderborg | D19: 32014 | E19: 30394 | F19: 8828 | G19: 9200 | H19: 1644 | I19: 1487 | J19: 14382.76 | K19: 11243.78 | L19: 475.1 | M19: 405 | N19: 709.28 | O19: 668.54 | P19: 2617.69 | Q19: 2396.2 | R19: 3851 | S19: 4556
B20: 912 | C20: Retten i Odense | D20: 40165 | E20: 43008 | F20: 10934 | G20: 11392 | H20: 2254 | I20: 2510 | J20: 15480.76 | K20: 15971.52 | L20: 488.89 | M20: 509.28 | N20: 1090.17 | O20: 1378.21 | P20: 3244.5 | Q20: 3374.73 | R20: 5957 | S20: 6465
B21: 913 | C21: Retten i Svendborg | D21: 19002 | E21: 18432 | F21: 4459 | G21: 4155 | H21: 1085 | I21: 1120 | J21: 8746.18 | K21: 7725.31 | L21: 272.54 | M21: 302.84 | N21: 562.39 | O21: 487.18 | P21: 1868.01 | Q21: 2023.06 | R21: 2428 | S21: 3208
B22: 914 | C22: Retten i Nykøbing F. | D22: 28735 | E22: 24542 | F22: 7782 | G22: 6258 | H22: 1403 | I22: 1347 | J22: 13757.53 | K22: 10640.94 | L22: 882.95 | M22: 721.81 | N22: 594.52 | O22: 525.93 | P22: 2312.23 | Q22: 2239.76 | R22: 1957 | S22: 2267
B23: 915 | C23: Retten i Næstved | D23: 36326 | E23: 31288 | F23: 10513 | G23: 7532 | H23: 1843 | I23: 1860 | J23: 15857.06 | K23: 14573.64 | L23: 519.74 | M23: 380.11 | N23: 845.51 | O23: 881.06 | P23: 2509.1 | Q23: 2609.11 | R23: 4367 | S23: 4830
B24: 916 | C24: Retten i Holbæk | D24: 22210 | E24: 21816 | F24: 5121 | G24: 5216 | H24: 1174 | I24: 1346 | J24: 11656.42 | K24: 8855.84 | L24: 464.21 | M24: 356.55 | N24: 648.34 | O24: 652.59 | P24: 2151.88 | Q24: 1987.98 | R24: 1930 | S24: 2702
B25: 917 | C25: Retten i Roskilde | D25: 38172 | E25: 39014 | F25: 9404 | G25: 10972 | H25: 2470 | I25: 2270 | J25: 14739.17 | K25: 11936.93 | L25: 369.01 | M25: 360.05 | N25: 1243.42 | O25: 1215.37 | P25: 2930.67 | Q25: 3146.8 | R25: 5825 | S25: 6294
B26: 918 | C26: Retten i Hillerød | D26: 21583 | E26: 21814 | F26: 5464 | G26: 5520 | H26: 1321 | I26: 1339 | J26: 7336.91 | K26: 7436.81 | L26: 291.16 | M26: 302.99 | N26: 709.74 | O26: 676.79 | P26: 1892.18 | Q26: 1946.86 | R26: 3937 | S26: 4114
B27: 919 | C27: Retten i Helsingør | D27: 21785 | E27: 20906 | F27: 4652 | G27: 4822 | H27: 1503 | I27: 1500 | J27: 9242.8 | K27: 6611.28 | L27: 368.83 | M27: 253.53 | N27: 682.73 | O27: 689.86 | P27: 1979.77 | Q27: 1901.77 | R27: 2501 | S27: 2985
B28: 920 | C28: Retten i Lyngby | D28: 24392 | E28: 23008 | F28: 4706 | G28: 4277 | H28: 2174 | I28: 2140 | J28: 7350.81 | K28: 6040.33 | L28: 229.36 | M28: 97.05 | N28: 51.52 | O28: 69.82 | P28: 2581.55 | Q28: 2456.88 | R28: 14216 | S28: 16320
B29: 921 | C29: Retten i Glostrup | D29: 55365 | E29: 55903 | F29: 15150 | G29: 16086 | H29: 3570 | I29: 3546 | J29: 27575.05 | K29: 24348.3 | L29: 348.73 | M29: 305.28 | N29: 67.35 | O29: 51.72 | P29: 3931.97 | Q29: 4270.21 | R29: 4199 | S29: 4206
B30: 922 | C30: Retten på Frederiksberg | D30: 40293 | E30: 37125 | F30: 12419 | G30: 12149 | H30: 2390 | I30: 2186 | J30: 18044.33 | K30: 14990.8 | L30: 156.99 | M30: 384.5 | N30: 34.88 | O30: 40.89 | P30: 2454.97 | Q30: 1623.29 | R30: 3868 | S30: 4441
B31: 923 | C31: Københavns Byret | D31: 102886 | E31: 88653 | F31: 34155 | G31: 31652 | H31: 8056 | I31: 6016 | J31: 23845.11 | K31: 19271.71 | L31: 248.94 | M31: 262.71 | N31: 69.76 | O31: 52.92 | P31: 2915.75 | Q31: 2885.49 | R31: 14605 | S31: 16911
B32: 924 | C32: Retten på Bornholm | D32: 4452 | E32: 4104 | F32: 1004 | G32: 967 | H32: 275 | I32: 257 | J32: 1469.57 | K32: 1167.48 | L32: 56.99 | M32: 49.13 | N32: 105.56 | O32: 86.56 | P32: 638.86 | Q32: 586.5 | R32: 559 | S32: 708
B34: 1) Vægtningen på tværs af sagstyper betyder, at antallet af vægtede sager inden for de enkelte sagområder ikke summer op til det samlede antal vægtede sager.

Sheet Målopf.Straf
B2: MÅLOPFYLDELSE STRAFFESAGER (80 pct. hurtigste sager)
D4: Nævninge- og domsmandssager (hfh.) | F4: Tilståelsessager | H4: Sager uden domsmænd - bødesager | J4: Sager uden domsmænd - øvrige | L4: Samlet VVV-sager | N4: Rettens andel af fristoverskridelser
D5: =Overblik!$D$6 -> 2020 | E5: =Overblik!$E$6 -> 2021 | F5: =Overblik!$D$6 -> 2020 | G5: =Overblik!$E$6 -> 2021 | H5: =Overblik!$D$6 -> 2020 | I5: =Overblik!$E$6 -> 2021 | J5: =Overblik!$D$6 -> 2020 | K5: =Overblik!$E$6 -> 2021 | L5: =Overblik!$D$6 -> 2020 | M5: =Overblik!$E$6 -> 2021 | N5: =Overblik!$D$6 -> 2020 | O5: =Overblik!$E$6 -> 2021
D6: 80 pct. | F6: 80 pct. | H6: 80 pct. | J6: 80 pct. | L6: < 37 dage
B8: MÅL | D8: < 89 dage | E8: < 88 dage | F8: < 44 dage | G8: < 43 dage | H8: < 10 dage | J8: < 94 dage | K8: < 93 dage | L8: 58 pct. | M8: 59 pct. | N8: 18 pct. | O8: 16 pct.
B9: SAMLET BYRETTERNE | D9: 98.8 | E9: 136 | F9: 54.3 | G9: 66 | H9: 4.6 | I9: 4 | J9: 116.9 | K9: 145 | L9: 0.48 | M9: 0.4 | N9: 0.1498470948 | O9: 0.24
B10: 5. BEDSTE RET | D10: =SMALL(D12:D35,5) -> 83.6 | E10: 96 | F10: 39.4 | G10: 37 | H10: 2.3 | I10: 2 | J10: 86.6 | K10: 102 | L10: 0.42 | M10: 0.27 | N10: 0.09 | O10: =SMALL(O12:O35,5) -> 0.1
B11: EID | C11: Ret
B12: 901 | C12: Retten i Hjørring | D12: 75.3 | E12: 126 | F12: 44.2 | G12: 71 | H12: 6.6 | I12: 5 | J12: 77.6 | K12: 138 | L12: 0.42 | M12: 0.42 | N12: 0.19 | O12: 0.21
B13: 902 | C13: Retten i Aalborg | D13: 97.5 | E13: 121 | F13: 62.2 | G13: 58 | H13: 3.8 | I13: 4 | J13: 96.8 | K13: 133 | L13: 0.38 | M13: 0.29 | N13: 0.03 | O13: 0.01
B14: 903 | C14: Retten i Randers | D14: 107.2 | E14: 137 | F14: 95.3 | G14: 96 | H14: 7.9 | I14: 7 | J14: 153.7 | K14: 185 | L14: 0.55 | M14: 0.56 | N14: 0.12 | O14: 0.29
B15: 904 | C15: Retten i Århus | D15: 179 | E15: 213 | F15: 168.2 | G15: 144 | H15: 8.6 | I15: 10 | J15: 291.7 | K15: 356 | L15: 0.46 | M15: 0.45 | N15: 0.12 | O15: 0.24
B16: 905 | C16: Retten i Viborg | D16: 122.8 | E16: 157 | F16: 53.3 | G16: 73 | H16: 9 | I16: 6 | J16: 81.5 | K16: 123 | L16: 0.52 | M16: 0.67 | N16: 0.24 | O16: 0
B17: 906 | C17: Retten i Holstebro | D17: 76.3 | E17: 115 | F17: 40 | G17: 37 | H17: 3.5 | I17: 3 | J17: 88.8 | K17: 102 | L17: 0.56 | M17: 0.48 | N17: 0.31 | O17: 0.55
B18: 907 | C18: Retten i Herning | D18: 76.7 | E18: 96 | F18: 67.1 | G18: 76 | H18: 1.8 | I18: 1 | J18: 86.6 | K18: 112 | L18: 0.64 | M18: 0.61 | N18: 0.05 | O18: 0.11
B19: 908 | C19: Retten i Horsens | D19: 143.9 | E19: 222 | F19: 87.6 | G19: 120 | H19: 11.4 | I19: 6 | J19: 151.9 | K19: 213 | L19: 0.44 | M19: 0.27 | N19: 0.28 | O19: 0.68
B20: 909 | C20: Retten i Kolding | D20: 127.9 | E20: 183 | F20: 107.4 | G20: 142 | H20: 18.6 | I20: 6 | J20: 197.4 | K20: 284 | L20: 0.5 | M20: 0.5 | N20: 0.11 | O20: 0.16
B21: 910 | C21: Retten i Esbjerg | D21: 121.7 | E21: 183 | F21: 39.4 | G21: 26 | H21: 3.5 | I21: 3 | J21: 123.6 | K21: 185 | L21: 0.46 | M21: 0.33 | N21: 0.18 | O21: 0.34
B22: 911 | C22: Retten i Sønderborg | D22: 108.7 | E22: 147 | F22: 64.8 | G22: 65 | H22: 5.9 | I22: 10 | J22: 94.6 | K22: 116 | L22: 0.63 | M22: 0.48 | N22: 0.18 | O22: 0.43
B23: 912 | C23: Retten i Odense | D23: 95.2 | E23: 146 | F23: 72.7 | G23: 99 | H23: 1.6 | I23: 2 | J23: 95.3 | K23: 125 | L23: 0.36 | M23: 0.23 | N23: 0.25 | O23: 0.35
B24: 913 | C24: Retten i Svendborg | D24: 83.6 | E24: 91 | F24: 57.5 | G24: 55 | H24: 23 | I24: 8 | J24: 97.7 | K24: 77 | L24: 0.46 | M24: 0.61 | N24: 0 | O24: 0.11
B25: 914 | C25: Retten i Nykøbing F. | D25: 84.5 | E25: 65 | F25: 47.5 | G25: 29 | H25: 5.4 | I25: 3 | J25: 48 | K25: 37 | L25: 0.62 | M25: 0.49 | N25: 0.1 | O25: 0.04
B26: 915 | C26: Retten i Næstved | D26: 85.3 | E26: 84 | F26: 53.5 | G26: 39 | H26: 2.3 | I26: 2 | J26: 107.1 | K26: 102 | L26: 0.54 | M26: 0.46 | N26: 0.17 | O26: 0.17
B27: 916 | C27: Retten i Holbæk | D27: 85.9 | E27: 142 | F27: 54.9 | G27: 42 | H27: 5.2 | I27: 4 | J27: 97.7 | K27: 128 | L27: 0.6 | M27: 0.32 | N27: 0.1 | O27: 0.28
B28: 917 | C28: Retten i Roskilde | D28: 86.8 | E28: 122 | F28: 42.1 | G28: 37 | H28: 1.1 | I28: 2 | J28: 104.8 | K28: 108 | L28: 0.53 | M28: 0.18 | N28: 0.09 | O28: 0.25
B29: 918 | C29: Retten i Hillerød | D29: 104 | E29: 117 | F29: 32.8 | G29: 76 | H29: 6.8 | I29: 13 | J29: 139.3 | K29: 130 | L29: 0.4 | M29: 0.35 | N29: 0.11 | O29: 0.37
B30: 919 | C30: Retten i Helsingør | D30: 113.7 | E30: 134 | F30: 66.5 | G30: 72 | H30: 2.3 | I30: 2 | J30: 146.7 | K30: 104 | L30: 0.45 | M30: 0.4 | N30: 0.13 | O30: 0.12
B31: 920 | C31: Retten i Lyngby | D31: 116.4 | E31: 122 | F31: 56.9 | G31: 82 | H31: 4.3 | I31: 1 | J31: 149.9 | K31: 119 | L31: 0.46 | M31: 0.4 | N31: 0.44 | O31: 0.29
B32: 921 | C32: Retten i Glostrup | D32: 140.4 | E32: 204 | F32: 77 | G32: 82 | H32: 11.6 | I32: 16 | J32: 241.4 | K32: 308 | L32: 0.3 | M32: 0.2 | N32: 0.12 | O32: 0.1
B33: 922 | C33: Retten på Frederiksberg | D33: 87.2 | E33: 132 | F33: 33.4 | G33: 51 | H33: 8.4 | I33: 8 | J33: 142.5 | K33: 158 | L33: 0.48 | M33: 0.1 | N33: 0.15 | O33: 0.43
B34: 923 | C34: Københavns Byret | D34: 91.8 | E34: 153 | F34: 28 | G34: 64 | H34: 1 | I34: 1 | J34: 135.6 | K34: 193 | L34: 0.46 | M34: 0.45 | N34: 0.15 | O34: 0.19
B35: 924 | C35: Retten på Bornholm | D35: 33.7 | E35: 34 | F35: 25.4 | G35: 29 | H35: 2.5 | I35: 1 | J35: 30.6 | K35: 27 | L35: 0.68 | M35: 0.68 | N35: 0 | O35: 0
B37: 1) Målene for de enkelte sagstyper er opstillet i samarbejde med byretterne. De aktuelle mål trådte i kraft i 2019.

Sheet Målopf.VVV
B2: MÅLOPFYLDELSE VVV-SAGER (PROCENT)
D4: Voldssager | F4: Voldtægtssager | H4: Våbensager | J4: Fast-track sager om ungdomskriminalitet
D5: =Overblik!$D$6 -> 2020 | E5: =Overblik!$E$6 -> 2021 | F5: =Overblik!$D$6 -> 2020 | G5: =Overblik!$E$6 -> 2021 | H5: =Overblik!$D$6 -> 2020 | I5: =Overblik!$E$6 -> 2021 | J5: =Overblik!$D$6 -> 2020 | K5: =Overblik!$E$6 -> 2021
D6: <37 dage | F6: <37 dage | H6: <37 dage | J6: <37 dage
B8: SAMLET BYRETTERNE | D8: 0.47 | E8: 0.38 | F8: 0.4 | G8: 0.34 | H8: 0.56 | I8: 0.51 | J8: 0.51 | K8: 0.46
B9: 5. BEDSTE RET | D9: =LARGE(D11:D34,5) -> 0.6 | E9: 0.58 | F9: 0.5 | G9: 0.6 | H9: 0.74 | I9: 0.68 | J9: 0.75 | K9: =LARGE(K11:K34,5) -> 0.72
B10: EID | C10: Ret
B11: 901 | C11: Retten i Hjørring | D11: 0.37 | E11: 0.35 | F11: 0.57 | G11: 0.38 | H11: 0.61 | I11: 0.83 | J11: 0.72 | K11: 0.52
B12: 902 | C12: Retten i Aalborg | D12: 0.37 | E12: 0.24 | F12: 0.38 | G12: 0.38 | H12: 0.47 | I12: 0.41 | J12: 0.37 | K12: 0.27
B13: 903 | C13: Retten i Randers | D13: 0.56 | E13: 0.59 | F13: 0.44 | G13: 0.2 | H13: 0.57 | I13: 0.52 | J13: 0.65 | K13: 0.73
B14: 904 | C14: Retten i Århus | D14: 0.47 | E14: 0.45 | F14: 0.47 | G14: 0.22 | H14: 0.38 | I14: 0.61 | J14: 0.4 | K14: 0.44
B15: 905 | C15: Retten i Viborg | D15: 0.56 | E15: 0.65 | F15: 0.36 | G15: 0.71 | H15: 0.38 | I15: 0.89 | J15: 0.5 | K15: 0.78
B16: 906 | C16: Retten i Holstebro | D16: 0.54 | E16: 0.43 | F16: 0.5 | G16: 0.44 | H16: 1 | I16: 0.73 | J16: 0.51 | K16: 0.67
B17: 907 | C17: Retten i Herning | D17: 0.66 | E17: 0.65 | F17: 0.38 | G17: 0.5 | H17: 0.66 | I17: 0.38 | J17: 0.75 | K17: 0.73
B18: 908 | C18: Retten i Horsens | D18: 0.4 | E18: 0.26 | F18: 0.4 | G18: 0.5 | H18: 0.63 | I18: 0.25 | J18: 0.6 | K18: 0.53
B19: 909 | C19: Retten i Kolding | D19: 0.5 | E19: 0.49 | F19: 0.5 | G19: 0.56 | H19: 0.5 | I19: 0.55 | J19: 0.52 | K19: 0.72
B20: 910 | C20: Retten i Esbjerg | D20: 0.42 | E20: 0.31 | F20: 1 | G20: 0.27 | H20: 0.53 | I20: 0.44 | J20: 0.77 | K20: 0.54
B21: 911 | C21: Retten i Sønderborg | D21: 0.63 | E21: 0.47 | F21: 0.46 | G21: 0.56 | H21: 0.71 | I21: 0.46 | J21: 0.7 | K21: 0.61
B22: 912 | C22: Retten i Odense | D22: 0.31 | E22: 0.21 | F22: 0.25 | G22: 0.14 | H22: 0.63 | I22: 0.4 | J22: 0.34 | K22: 0.18
B23: 913 | C23: Retten i Svendborg | D23: 0.42 | E23: 0.58 | F23: 0.5 | G23: 0.63 | H23: 0.79 | I23: 1 | J23: 0.67 | K23: 0.61
B24: 914 | C24: Retten i Nykøbing F. | D24: 0.6 | E24: 0.46 | F24: 0.78 | G24: 0.6 | H24: 0.74 | I24: 0.67 | J24: 0.81 | K24: 0.57
B25: 915 | C25: Retten i Næstved | D25: 0.55 | E25: 0.41 | F25: 0.35 | G25: 0.6 | H25: 0.59 | I25: 0.63 | J25: 0.63 | K25: 0.55
B26: 916 | C26: Retten i Holbæk | D26: 0.61 | E26: 0.29 | F26: 0.44 | G26: 0.5 | H26: 0.64 | I26: 0.43 | J26: 0.8 | K26: 0.25
B27: 917 | C27: Retten i Roskilde | D27: 0.52 | E27: 0.12 | F27: 0.3 | G27: 0.3 | H27: 0.65 | I27: 0.54 | J27: 0.42 | K27: 0.22
B28: 918 | C28: Retten i Hillerød | D28: 0.43 | E28: 0.27 | F28: 0.15 | G28: 0.27 | H28: 0.47 | I28: 0.68 | J28: 0.46 | K28: 0.5
B29: 919 | C29: Retten i Helsingør | D29: 0.4 | E29: 0.36 | F29: 0.11 | G29: 0.33 | H29: 0.78 | I29: 0.63 | J29: 0.4 | K29: 0.5
B30: 920 | C30: Retten i Lyngby | D30: 0.51 | E30: 0.39 | F30: 0.3 | G30: 0 | H30: 0.33 | I30: 0.5 | J30: 0.52 | K30: 0.42
B31: 921 | C31: Retten i Glostrup | D31: 0.28 | E31: 0.19 | F31: 0.2 | G31: 0 | H31: 0.39 | I31: 0.3 | J31: 0.22 | K31: 0.19
B32: 922 | C32: Retten på Frederiksberg | D32: 0.45 | E32: 0.1 | F32: 0.36 | G32: 0 | H32: 0.62 | I32: 0.14 | J32: 0.54 | K32: 0.14
B33: 923 | C33: Københavns Byret | D33: 0.44 | E33: 0.43 | F33: 0.41 | G33: 0.19 | H33: 0.53 | I33: 0.59 | J33: 0.43 | K33: 0.42
B34: 924 | C34: Retten på Bornholm | D34: 0.68 | E34: 0.73 | F34: 0 | G34: 0.75 | H34: 0.8 | I34: 0.5 | J34: 0.79 | K34: 0.93
B36: 1) Målene for voldssager, voldtægtssager, våbensager og fast-track sager om ungdomskriminalitet er fastsat eksternt.

Sheet Målopf.Civil
B2: MÅLOPFYLDELSE CIVILE SAGER (80 pct. hurtigste sager)
D4: Alle alm. sager, boligsager og småsager | F4: Hfh. almindelige sager og boligsager | H4: Hfh. småsager | J4: Familieret - §6- og 7-sager | L4: Familieret - prøvelsessager efter forenklet proces | N4: Tvangsfuldbyrdelses- sager - forældreansvarsloven | P4: Konkurskarantæne- sager
D5: =Overblik!$D$6 -> 2020 | E5: =Overblik!$E$6 -> 2021 | F5: =Overblik!$D$6 -> 2020 | G5: =Overblik!$E$6 -> 2021 | H5: =Overblik!$D$6 -> 2020 | I5: =Overblik!$E$6 -> 2021 | J5: =Overblik!$D$6 -> 2020 | K5: =Overblik!$E$6 -> 2021 | L5: =Overblik!$D$6 -> 2020 | M5: =Overblik!$E$6 -> 2021 | N5: =Overblik!$D$6 -> 2020 | O5: =Overblik!$E$6 -> 2021 | P5: =Overblik!$D$6 -> 2020 | Q5: =Overblik!$E$6 -> 2021
D6: 80 pct. | F6: 80 pct. | H6: 80 pct. | J6: 80 pct. | L6: 80 pct. | N6: 80 pct. | P6: 80 pct.
B8: MÅL | D8: < 122 dage | F8: < 456 dage | G8: < 426 dage | H8: < 243 dage | I8: < 213 dage | J8: < 120 dage | L8: < 75 dage | M8: < 70 dage | N8: < 30 dage | P8: < 125 dage | Q8: < 120 dage
B9: SAMLET BYRETTERNE | D9: 116 | E9: 123 | F9: 408 | G9: 463 | H9: 294 | I9: 359 | J9: 114 | K9: 122 | L9: 46 | M9: 48 | N9: 16 | O9: 15 | P9: 91 | Q9: 91
B10: 5. BEDSTE RET | D10: =SMALL(D12:D35,5) -> 78 | E10: 95 | F10: 343 | G10: 391 | H10: 183 | I10: 193 | J10: 98 | K10: 98 | L10: 35 | M10: 32 | N10: 13 | O10: 11 | P10: 66 | Q10: =SMALL(Q12:Q35,5) -> 62
B11: EID | C11: Ret
B12: 901 | C12: Retten i Hjørring | D12: 78 | E12: 101 | F12: 397 | G12: 406 | H12: 224 | I12: 208 | J12: 118 | K12: 142 | L12: 38 | M12: 50 | N12: 20 | O12: 20 | P12: 111 | Q12: 110
B13: 902 | C13: Retten i Aalborg | D13: 103 | E13: 120 | F13: 493 | G13: 523 | H13: 257 | I13: 278 | J13: 124 | K13: 153 | L13: 74 | M13: 78 | N13: 35 | O13: 19 | P13: 92 | Q13: 153
B14: 903 | C14: Retten i Randers | D14: 119 | E14: 139 | F14: 450 | G14: 506 | H14: 336 | I14: 395 | J14: 151 | K14: 131 | L14: 51 | M14: 40 | N14: 11 | O14: 9 | P14: 164 | Q14: 87
B15: 904 | C15: Retten i Århus | D15: 121 | E15: 127 | F15: 595 | G15: 659 | H15: 369 | I15: 281 | J15: 120 | K15: 156 | L15: 23 | M15: 29 | N15: 17 | O15: 15 | P15: 76 | Q15: 79
B16: 905 | C16: Retten i Viborg | D16: 121 | E16: 159 | F16: 479 | G16: 537 | H16: 224 | I16: 261 | J16: 131 | K16: 141 | L16: 73 | M16: 105 | N16: 14 | O16: 19 | P16: 129 | Q16: 129
B17: 906 | C17: Retten i Holstebro | D17: 75 | E17: 99 | F17: 331 | G17: 452 | H17: 176 | I17: 129 | J17: 105 | K17: 109 | L17: 46 | M17: 42 | N17: 13 | O17: 10 | P17: 67 | Q17: 65
B18: 907 | C18: Retten i Herning | D18: 88 | E18: 97 | F18: 293 | G18: 327 | H18: 170 | I18: 193 | J18: 98 | K18: 95 | L18: 38 | M18: 28 | N18: 18 | O18: 12 | P18: 67 | Q18: 62
B19: 908 | C19: Retten i Horsens | D19: 124 | E19: 144 | F19: 419 | G19: 467 | H19: 262 | I19: 223 | J19: 122 | K19: 129 | L19: 66 | M19: 63 | N19: 13 | O19: 11 | P19: 131 | Q19: 152
B20: 909 | C20: Retten i Kolding | D20: 140 | E20: 187 | F20: 479 | G20: 543 | H20: 335 | I20: 440 | J20: 124 | K20: 119 | L20: 53 | M20: 49 | N20: 19 | O20: 12 | P20: 115 | Q20: 109
B21: 910 | C21: Retten i Esbjerg | D21: 112 | E21: 149 | F21: 588 | G21: 615 | H21: 306 | I21: 331 | J21: 135 | K21: 126 | L21: 35 | M21: 31 | N21: 16 | O21: 18 | P21: 147 | Q21: 167
B22: 911 | C22: Retten i Sønderborg | D22: 107 | E22: 81 | F22: 341 | G22: 358 | H22: 234 | I22: 212 | J22: 101 | K22: 127 | L22: 34 | M22: 42 | N22: 15 | O22: 23 | P22: 72 | Q22: 89
B23: 912 | C23: Retten i Odense | D23: 111 | E23: 113 | F23: 408 | G23: 445 | H23: 197 | I23: 236 | J23: 111 | K23: 119 | L23: 36 | M23: 26 | N23: 10 | O23: 8 | P23: 96 | Q23: 89
B24: 913 | C24: Retten i Svendborg | D24: 89 | E24: 113 | F24: 395 | G24: 401 | H24: 229 | I24: 353 | J24: 90 | K24: 135 | L24: 32 | M24: 35 | N24: 11 | O24: 9 | P24: 100 | Q24: 110
B25: 914 | C25: Retten i Nykøbing F. | D25: 63 | E25: 60 | F25: 290 | G25: 316 | H25: 151 | I25: 138 | J25: 89 | K25: 88 | L25: 38 | M25: 41 | N25: 9 | O25: 11 | P25: 74 | Q25: 70
B26: 915 | C26: Retten i Næstved | D26: 69 | E26: 56 | F26: 405 | G26: 461 | H26: 181 | I26: 169 | J26: 138 | K26: 132 | L26: 38 | M26: 46 | N26: 23 | O26: 20 | P26: 94 | Q26: 94
B27: 916 | C27: Retten i Holbæk | D27: 95 | E27: 118 | F27: 454 | G27: 491 | H27: 301 | I27: 298 | J27: 116 | K27: 109 | L27: 53 | M27: 61 | N27: 13 | O27: 13 | P27: 115 | Q27: 116
B28: 917 | C28: Retten i Roskilde | D28: 87 | E28: 95 | F28: 400 | G28: 456 | H28: 289 | I28: 305 | J28: 133 | K28: 150 | L28: 55 | M28: 67 | N28: 16 | O28: 17 | P28: 66 | Q28: 63
B29: 918 | C29: Retten i Hillerød | D29: 95 | E29: 102 | F29: 384 | G29: 419 | H29: 270 | I29: 298 | J29: 131 | K29: 143 | L29: 37 | M29: 49 | N29: 20 | O29: 20 | P29: 87 | Q29: 70
B30: 919 | C30: Retten i Helsingør | D30: 102 | E30: 120 | F30: 385 | G30: 515 | H30: 250 | I30: 339 | J30: 101 | K30: 99 | L30: 35 | M30: 38 | N30: 18 | O30: 18 | P30: 107 | Q30: 94
B31: 920 | C31: Retten i Lyngby | D31: 98 | E31: 113 | F31: 371 | G31: 391 | H31: 201 | I31: 196 | J31: 110 | K31: 98 | L31: 44 | M31: 43 | N31: 25 | O31: 32 | P31: 4 | Q31: -
B32: 921 | C32: Retten i Glostrup | D32: 95 | E32: 99 | F32: 395 | G32: 499 | H32: 205 | I32: 214 | J32: 114 | K32: 122 | L32: 53 | M32: 66 | N32: 18 | O32: 17 | P32: 7 | Q32: 6
B33: 922 | C33: Retten på Frederiksberg | D33: 118 | E33: 109 | F33: 423 | G33: 452 | H33: 203 | I33: 218 | J33: 94 | K33: 96 | L33: 66 | M33: 58 | N33: 19 | O33: 21 | P33: 25 | Q33: 8
B34: 923 | C34: Københavns Byret | D34: 146 | E34: 165 | F34: 397 | G34: 451 | H34: 318 | I34: 473 | J34: 110 | K34: 125 | L34: 59 | M34: 59 | N34: 13 | O34: 12 | P34: 18 | Q34: 19
B35: 924 | C35: Retten på Bornholm | D35: 44 | E35: 77 | F35: 343 | G35: 188 | H35: 183 | I35: 119 | J35: 81 | K35: 73 | L35: 30 | M35: 32 | N35: 15 | O35: 13 | P35: 99 | Q35: 46
B37: 1) Målene for de enkelte sagstyper er opstillet i samarbejde med byretterne. De aktuelle mål trådte i kraft i 2019.

Sheet Målopf.Foged
B2: MÅLOPFYLDELSE FOGEDSAGER (PROCENT)
D4: Alm. fogedsager og betalingspåkrav | F4: Særlige fogedsager | H4: Tvangsauktion solgt på eller efter 1. auktion
D5: =Overblik!$D$6 -> 2020 | E5: =Overblik!$E$6 -> 2021 | F5: =Overblik!$D$6 -> 2020 | G5: =Overblik!$E$6 -> 2021 | H5: =Overblik!$D$6 -> 2020 | I5: =Overblik!$E$6 -> 2021
D6: < 3 MDR. | F6: < 2 MDR. | H6: < 5 MDR.
B8: MÅL | D8: 65 pct. | E8: 70 pct. | F8: 70 pct. | H8: 80 pct.
B9: SAMLET BYRETTERNE | D9: 0.59 | E9: 0.7 | F9: 0.64 | G9: 0.74 | H9: 0.6 | I9: 0.77
B10: 5. BEDSTE RET | D10: =LARGE(D12:D35,5) -> 0.77 | E10: 0.85 | F10: 0.77 | G10: 0.81 | H10: 0.71 | I10: =LARGE(I12:I35,5) -> 0.93
B11: EID | C11: Ret
B12: 901 | C12: Retten i Hjørring | D12: 0.63 | E12: 0.6 | F12: 0.72 | G12: 0.66 | H12: 0.55 | I12: 0.74
B13: 902 | C13: Retten i Aalborg | D13: 0.49 | E13: 0.83 | F13: 0.62 | G13: 0.7 | H13: 0.58 | I13: 0.78
B14: 903 | C14: Retten i Randers | D14: 0.58 | E14: 0.5 | F14: 0.53 | G14: 0.5 | H14: 0.34 | I14: 0.28
B15: 904 | C15: Retten i Århus | D15: 0.47 | E15: 0.8 | F15: 0.79 | G15: 0.89 | H15: 0.6 | I15: 1
B16: 905 | C16: Retten i Viborg | D16: 0.46 | E16: 0.49 | F16: 0.67 | G16: 0.74 | H16: 0.51 | I16: 0.51
B17: 906 | C17: Retten i Holstebro | D17: 0.88 | E17: 0.94 | F17: 0.84 | G17: 0.93 | H17: 0.73 | I17: 0.95
B18: 907 | C18: Retten i Herning | D18: 0.64 | E18: 0.78 | F18: 0.77 | G18: 0.81 | H18: 0.78 | I18: 0.83
B19: 908 | C19: Retten i Horsens | D19: 0.68 | E19: 0.63 | F19: 0.63 | G19: 0.74 | H19: 0.59 | I19: 0.63
B20: 909 | C20: Retten i Kolding | D20: 0.67 | E20: 0.73 | F20: 0.72 | G20: 0.74 | H20: 0.71 | I20: 0.66
B21: 910 | C21: Retten i Esbjerg | D21: 0.85 | E21: 0.87 | F21: 0.78 | G21: 0.77 | H21: 0.64 | I21: 0.81
B22: 911 | C22: Retten i Sønderborg | D22: 0.59 | E22: 0.72 | F22: 0.63 | G22: 0.7 | H22: 0.51 | I22: 0.74
B23: 912 | C23: Retten i Odense | D23: 0.49 | E23: 0.38 | F23: 0.64 | G23: 0.71 | H23: 0.53 | I23: 0.72
B24: 913 | C24: Retten i Svendborg | D24: 0.58 | E24: 0.68 | F24: 0.65 | G24: 0.71 | H24: 0.67 | I24: 0.91
B25: 914 | C25: Retten i Nykøbing F. | D25: 0.74 | E25: 0.87 | F25: 0.77 | G25: 0.83 | H25: 0.68 | I25: 0.87
B26: 915 | C26: Retten i Næstved | D26: 0.62 | E26: 0.82 | F26: 0.68 | G26: 0.79 | H26: 0.69 | I26: 0.74
B27: 916 | C27: Retten i Holbæk | D27: 0.7 | E27: 0.83 | F27: 0.58 | G27: 0.69 | H27: 0.65 | I27: 0.93
B28: 917 | C28: Retten i Roskilde | D28: 0.77 | E28: 0.85 | F28: 0.73 | G28: 0.75 | H28: 0.68 | I28: 0.79
B29: 918 | C29: Retten i Hillerød | D29: 0.56 | E29: 0.35 | F29: 0.57 | G29: 0.49 | H29: 0.79 | I29: 0.5
B30: 919 | C30: Retten i Helsingør | D30: 0.73 | E30: 0.62 | F30: 0.77 | G30: 0.71 | H30: 0.64 | I30: 0.64
B31: 920 | C31: Retten i Lyngby | D31: 0.83 | E31: 0.84 | F31: 0.77 | G31: 0.74 | H31: 0.38 | I31: 0
B32: 921 | C32: Retten i Glostrup | D32: 0.34 | E32: 0.66 | F32: 0.51 | G32: 0.8 | H32: 0.4 | I32: 0.67
B33: 922 | C33: Retten på Frederiksberg | D33: 0.41 | E33: 0.74 | F33: 0.5 | G33: 0.67 | H33: 0.18 | I33: 0.98
B34: 923 | C34: Københavns Byret | D34: 0.61 | E34: 0.66 | F34: 0.64 | G34: 0.67 | H34: - | I34: 0.2
B35: 924 | C35: Retten på Bornholm | D35: 0.97 | E35: 0.99 | F35: 0.83 | G35: 0.96 | H35: 0.8 | I35: 1
B37: 1) Målene for de enkelte sagstyper er opstillet i samarbejde med byretterne. De aktuelle mål trådte i kraft i 2019.

Sheet Målopf.Skifte
B2: MÅLOPFYLDELSE SKIFTESAGER (PROCENT)
D4: Udlevering af bo | F4: Tvangsopløsningssager (eksklusive likvidation) | H4: Gældssanering (kun indledte sager)
D5: =Overblik!$D$6 -> 2020 | E5: =Overblik!$E$6 -> 2021 | F5: =Overblik!$D$6 -> 2020 | G5: =Overblik!$E$6 -> 2021 | H5: =Overblik!$D$6 -> 2020 | I5: =Overblik!$E$6 -> 2021
D6: <2 MDR. | F6: <3 MDR. | H6: <9 MDR.
B8: MÅL | D8: 80 pct. | F8: 75 pct. | H8: 75 pct.
B9: SAMLET BYRETTERNE | D9: 0.79 | E9: 0.81 | F9: 0.86 | G9: 0.81 | H9: 0.75 | I9: 0.81
B10: 5. BEDSTE RET | D10: =LARGE(D12:D35,5) -> 0.86 | E10: =LARGE(E12:E35,5) -> 0.88 | F10: 0.88 | G10: 0.93 | H10: 0.93 | I10: 0.88
B11: EID | C11: Ret
B12: 901 | C12: Retten i Hjørring | D12: 0.79 | E12: 0.81 | F12: 0.74 | G12: 0.84 | H12: 0.96 | I12: 0.94
B13: 902 | C13: Retten i Aalborg | D13: 0.73 | E13: 0.72 | F13: 0.74 | G13: 0.76 | H13: 0.94 | I13: 0.86
B14: 903 | C14: Retten i Randers | D14: 0.86 | E14: 0.84 | F14: 0.65 | G14: 0.59 | H14: 0.58 | I14: 0.81
B15: 904 | C15: Retten i Århus | D15: 0.65 | E15: 0.68 | F15: 0.85 | G15: 0.9 | H15: 0.88 | I15: 0.84
B16: 905 | C16: Retten i Viborg | D16: 0.61 | E16: 0.57 | F16: 0.82 | G16: 0.64 | H16: 0.86 | I16: 0.88
B17: 906 | C17: Retten i Holstebro | D17: 0.91 | E17: 0.9 | F17: 0.94 | G17: 0.96 | H17: 0.98 | I17: 0.91
B18: 907 | C18: Retten i Herning | D18: 0.72 | E18: 0.79 | F18: 0.8 | G18: 0.8 | H18: 0.89 | I18: 0.86
B19: 908 | C19: Retten i Horsens | D19: 0.81 | E19: 0.69 | F19: 0.93 | G19: 0.83 | H19: 0.95 | I19: 0.83
B20: 909 | C20: Retten i Kolding | D20: 0.83 | E20: 0.88 | F20: 0.85 | G20: 0.86 | H20: 0.87 | I20: 0.59
B21: 910 | C21: Retten i Esbjerg | D21: 0.78 | E21: 0.9 | F21: 0.63 | G21: 0.77 | H21: 0.77 | I21: 0.75
B22: 911 | C22: Retten i Sønderborg | D22: 0.76 | E22: 0.83 | F22: 0.34 | G22: 0.7 | H22: 0.93 | I22: 0.92
B23: 912 | C23: Retten i Odense | D23: 0.76 | E23: 0.78 | F23: 0.82 | G23: 0.93 | H23: 0.77 | I23: 0.87
B24: 913 | C24: Retten i Svendborg | D24: 0.85 | E24: 0.85 | F24: 0.59 | G24: 0.72 | H24: 0.78 | I24: 0.76
B25: 914 | C25: Retten i Nykøbing F. | D25: 0.93 | E25: 0.92 | F25: 0.9 | G25: 0.9 | H25: 0.82 | I25: 0.83
B26: 915 | C26: Retten i Næstved | D26: 0.78 | E26: 0.86 | F26: 0.88 | G26: 0.97 | H26: 0.89 | I26: 0.86
B27: 916 | C27: Retten i Holbæk | D27: 0.68 | E27: 0.83 | F27: 0.69 | G27: 0.85 | H27: 0.84 | I27: 0.78
B28: 917 | C28: Retten i Roskilde | D28: 0.8 | E28: 0.85 | F28: 0.76 | G28: 0.84 | H28: 0.9 | I28: 0.82
B29: 918 | C29: Retten i Hillerød | D29: 0.84 | E29: 0.87 | F29: 0.81 | G29: 0.84 | H29: 0.89 | I29: 0.81
B30: 919 | C30: Retten i Helsingør | D30: 0.86 | E30: 0.84 | F30: 0.78 | G30: 0.96 | H30: 0.8 | I30: 0.6
B31: 920 | C31: Retten i Lyngby | D31: 0.8 | E31: 0.86 | F31: - | G31: - | H31: - | I31: -
B32: 921 | C32: Retten i Glostrup | D32: 0.84 | E32: 0.83 | F32: - | G32: - | H32: - | I32: -
B33: 922 | C33: Retten på Frederiksberg | D33: 0.78 | E33: 0.65 | F33: - | G33: - | H33: - | I33: -
B34: 923 | C34: Københavns Byret | D34: 0.8 | E34: 0.84 | F34: - | G34: - | H34: - | I34: -
B35: 924 | C35: Retten på Bornholm | D35: 0.97 | E35: 0.98 | F35: 1 | G35: 1 | H35: 0.92 | I35: 0.93
B37: 1) Målene for de enkelte sagstyper er opstillet i samarbejde med byretterne. De aktuelle mål trådte i kraft i 2019.

Sheet Sagstid.Straf
B2: GENNEMSNITLIG SAGSBEHANDLINGSTID STRAFFESAGER (DAGE)
D4: Nævningesager | F4: Domsmandssager | H4: Sager uden domsmænd | J4: Tilståelsessager
D5: =Overblik!$D$6 -> 2020 | E5: =Overblik!$E$6 -> 2021 | F5: =Overblik!$D$6 -> 2020 | G5: =Overblik!$E$6 -> 2021 | H5: =Overblik!$D$6 -> 2020 | I5: =Overblik!$E$6 -> 2021 | J5: =Overblik!$D$6 -> 2020 | K5: =Overblik!$E$6 -> 2021
B6: SAMLET BYRETTERNE | D6: 177.3 | E6: 244 | F6: 170.5 | G6: 222 | H6: 31.9 | I6: 40 | J6: 102.8 | K6: 132
B7: 5. BEDSTE RET | D7: =SMALL(D9:D32,5) -> 100 | E7: 118 | F7: 127 | G7: 154 | H7: 19.8 | I7: 21 | J7: 70.9 | K7: =SMALL(K9:K32,5) -> 71
B8: EID | C8: Ret
B9: 901 | C9: Retten i Hjørring | D9: 3 | E9: 141 | F9: 127 | G9: 196 | H9: 21.3 | I9: 42 | J9: 73.9 | K9: 106
B10: 902 | C10: Retten i Aalborg | D10: 111 | E10: 2 | F10: 162.6 | G10: 189 | H10: 19.8 | I10: 37 | J10: 99.3 | K10: 94
B11: 903 | C11: Retten i Randers | D11: 270 | E11: 207 | F11: 183.5 | G11: 229 | H11: 42.8 | I11: 54 | J11: 151.8 | K11: 163
B12: 904 | C12: Retten i Århus | D12: 220.5 | E12: 176 | F12: 303.2 | G12: 358 | H12: 54 | I12: 69 | J12: 284.2 | K12: 261
B13: 905 | C13: Retten i Viborg | D13: 299 | E13: 164 | F13: 183.4 | G13: 239 | H13: 36.5 | I13: 52 | J13: 86.3 | K13: 130
B14: 906 | C14: Retten i Holstebro | D14: 142.4 | E14: 162 | F14: 101.9 | G14: 171 | H14: 22.1 | I14: 29 | J14: 57.9 | K14: 65
B15: 907 | C15: Retten i Herning | D15: 153.3 | E15: 162 | F15: 114.5 | G15: 140 | H15: 28.5 | I15: 38 | J15: 97.8 | K15: 116
B16: 908 | C16: Retten i Horsens | D16: 232.3 | E16: 290 | F16: 216.5 | G16: 314 | H16: 33.9 | I16: 55 | J16: 142.3 | K16: 211
B17: 909 | C17: Retten i Kolding | D17: 213.7 | E17: 192 | F17: 197.4 | G17: 270 | H17: 54.3 | I17: 59 | J17: 164.8 | K17: 214
B18: 910 | C18: Retten i Esbjerg | D18: 240.5 | E18: 183 | F18: 216.9 | G18: 301 | H18: 33.5 | I18: 70 | J18: 72.3 | K18: 61
B19: 911 | C19: Retten i Sønderborg | D19: 46 | E19: 131 | F19: 182.7 | G19: 239 | H19: 41.9 | I19: 55 | J19: 107.5 | K19: 111
B20: 912 | C20: Retten i Odense | D20: 168.1 | E20: 302 | F20: 133.9 | G20: 195 | H20: 19.3 | I20: 36 | J20: 95.3 | K20: 146
B21: 913 | C21: Retten i Svendborg | D21: 149 | E21: 101 | F21: 141.6 | G21: 154 | H21: 55.5 | I21: 43 | J21: 90.3 | K21: 88
B22: 914 | C22: Retten i Nykøbing F. | D22: 184.8 | E22: 99 | F22: 127.6 | G22: 103 | H22: 18 | I22: 12 | J22: 81.1 | K22: 50
B23: 915 | C23: Retten i Næstved | D23: 121.2 | E23: 118 | F23: 138.5 | G23: 139 | H23: 18.1 | I23: 21 | J23: 84.2 | K23: 84
B24: 916 | C24: Retten i Holbæk | D24: 92 | E24: 216 | F24: 139 | G24: 202 | H24: 30.8 | I24: 28 | J24: 90.9 | K24: 71
B25: 917 | C25: Retten i Roskilde | D25: 173.7 | E25: 153 | F25: 123.4 | G25: 181 | H25: 22.7 | I25: 29 | J25: 63.7 | K25: 75
B26: 918 | C26: Retten i Hillerød | D26: - | E26: 144 | F26: 182.2 | G26: 181 | H26: 26.3 | I26: 32 | J26: 70.9 | K26: 116
B27: 919 | C27: Retten i Helsingør | D27: 437 | E27: 280 | F27: 166.6 | G27: 190 | H27: 28.2 | I27: 21 | J27: 103.4 | K27: 118
B28: 920 | C28: Retten i Lyngby | D28: 100 | E28: 170 | F28: 167.5 | G28: 164 | H28: 30.9 | I28: 18 | J28: 89.7 | K28: 115
B29: 921 | C29: Retten i Glostrup | D29: 194.2 | E29: 257 | F29: 219.1 | G29: 285 | H29: 51.2 | I29: 57 | J29: 116.7 | K29: 152
B30: 922 | C30: Retten på Frederiksberg | D30: 163.6 | E30: 219 | F30: 138.8 | G30: 189 | H30: 34.1 | I30: 32 | J30: 65.4 | K30: 94
B31: 923 | C31: Københavns Byret | D31: 230.1 | E31: 498 | F31: 174.6 | G31: 241 | H31: 23.3 | I31: 29 | J31: 78.2 | K31: 147
B32: 924 | C32: Retten på Bornholm | D32: 22 | E32: 15 | F32: 57.4 | G32: 76 | H32: 17.3 | I32: 13 | J32: 38.1 | K32: 35

Sheet Sagstid.Civil
B2: GENNEMSNITLIG SAGSBEHANDLINGSTID CIVILE SAGER (DAGE)
D4: Hovedforhandlede almindelige sager | F4: Hovedforhandlede boligretssager | H4: Hovedforhandlede småsager | J4: Hovedforhandlede §§ 6 og 7-sager
D5: =Overblik!$D$6 -> 2020 | E5: =Overblik!$E$6 -> 2021 | F5: =Overblik!$D$6 -> 2020 | G5: =Overblik!$E$6 -> 2021 | H5: =Overblik!$D$6 -> 2020 | I5: =Overblik!$E$6 -> 2021 | J5: =Overblik!$D$6 -> 2020 | K5: =Overblik!$E$6 -> 2021
B6: SAMLET BYRETTERNE | D6: 558 | E6: 626 | F6: 479 | G6: 591 | H6: 359 | I6: 440 | J6: 178 | K6: 202
B7: 5. BEDSTE RET | D7: =SMALL(D9:D32,5) -> 491 | E7: 526 | F7: 351 | G7: 401 | H7: 224 | I7: 229 | J7: 157 | K7: =SMALL(K9:K32,5) -> 172
B8: EID | C8: Ret
B9: 901 | C9: Retten i Hjørring | D9: 536 | E9: 578 | F9: 532 | G9: 401 | H9: 270 | I9: 249 | J9: 179 | K9: 210
B10: 902 | C10: Retten i Aalborg | D10: 626 | E10: 664 | F10: 704 | G10: 630 | H10: 305 | I10: 329 | J10: 199 | K10: 224
B11: 903 | C11: Retten i Randers | D11: 589 | E11: 639 | F11: 627 | G11: 642 | H11: 421 | I11: 512 | J11: 220 | K11: 216
B12: 904 | C12: Retten i Århus | D12: 813 | E12: 844 | F12: 603 | G12: 872 | H12: 444 | I12: 354 | J12: 187 | K12: 257
B13: 905 | C13: Retten i Viborg | D13: 604 | E13: 685 | F13: 476 | G13: 523 | H13: 266 | I13: 287 | J13: 192 | K13: 215
B14: 906 | C14: Retten i Holstebro | D14: 493 | E14: 710 | F14: 348 | G14: 475 | H14: 224 | I14: 167 | J14: 161 | K14: 188
B15: 907 | C15: Retten i Herning | D15: 393 | E15: 494 | F15: 351 | G15: 396 | H15: 208 | I15: 239 | J15: 161 | K15: 160
B16: 908 | C16: Retten i Horsens | D16: 605 | E16: 632 | F16: 442 | G16: 550 | H16: 343 | I16: 319 | J16: 190 | K16: 203
B17: 909 | C17: Retten i Kolding | D17: 592 | E17: 706 | F17: 664 | G17: 771 | H17: 391 | I17: 512 | J17: 184 | K17: 187
B18: 910 | C18: Retten i Esbjerg | D18: 741 | E18: 814 | F18: 647 | G18: 644 | H18: 375 | I18: 422 | J18: 224 | K18: 181
B19: 911 | C19: Retten i Sønderborg | D19: 491 | E19: 551 | F19: 394 | G19: 258 | H19: 289 | I19: 335 | J19: 157 | K19: 192
B20: 912 | C20: Retten i Odense | D20: 511 | E20: 572 | F20: 490 | G20: 1210 | H20: 236 | I20: 298 | J20: 172 | K20: 198
B21: 913 | C21: Retten i Svendborg | D21: 558 | E21: 517 | F21: 383 | G21: 626 | H21: 272 | I21: 492 | J21: 148 | K21: 184
B22: 914 | C22: Retten i Nykøbing F. | D22: 433 | E22: 425 | F22: 501 | G22: 282 | H22: 184 | I22: 161 | J22: 147 | K22: 123
B23: 915 | C23: Retten i Næstved | D23: 516 | E23: 571 | F23: 427 | G23: 779 | H23: 207 | I23: 208 | J23: 197 | K23: 217
B24: 916 | C24: Retten i Holbæk | D24: 560 | E24: 612 | F24: 632 | G24: 584 | H24: 351 | I24: 363 | J24: 175 | K24: 203
B25: 917 | C25: Retten i Roskilde | D25: 516 | E25: 646 | F25: 495 | G25: 423 | H25: 358 | I25: 369 | J25: 225 | K25: 262
B26: 918 | C26: Retten i Hillerød | D26: 484 | E26: 535 | F26: 397 | G26: 527 | H26: 302 | I26: 368 | J26: 205 | K26: 238
B27: 919 | C27: Retten i Helsingør | D27: 583 | E27: 651 | F27: 291 | G27: 406 | H27: 324 | I27: 397 | J27: 169 | K27: 178
B28: 920 | C28: Retten i Lyngby | D28: 562 | E28: 526 | F28: 335 | G28: 473 | H28: 246 | I28: 229 | J28: 171 | K28: 163
B29: 921 | C29: Retten i Glostrup | D29: 559 | E29: 657 | F29: 463 | G29: 661 | H29: 250 | I29: 287 | J29: 168 | K29: 216
B30: 922 | C30: Retten på Frederiksberg | D30: 537 | E30: 611 | F30: 570 | G30: 564 | H30: 260 | I30: 289 | J30: 148 | K30: 172
B31: 923 | C31: Københavns Byret | D31: 534 | E31: 619 | F31: 471 | G31: 501 | H31: 383 | I31: 539 | J31: 178 | K31: 230
B32: 924 | C32: Retten på Bornholm | D32: 466 | E32: 267 | F32: 346 | G32: 157 | H32: 183 | I32: 156 | J32: 114 | K32: 95
E33: 13302

Sheet Sagstid.Foged
B2: GENNEMSNITLIG SAGSBEHANDLINGSTID FOGEDSAGER (DAGE)
D4: Alm. fogedsager | F4: Særlige fogedsager | H4: Betalingspåkrav | J4: Tvangsauktioner
D5: =Overblik!$D$6 -> 2020 | E5: =Overblik!$E$6 -> 2021 | F5: =Overblik!$D$6 -> 2020 | G5: =Overblik!$E$6 -> 2021 | H5: =Overblik!$D$6 -> 2020 | I5: =Overblik!$E$6 -> 2021 | J5: =Overblik!$D$6 -> 2020 | K5: =Overblik!$E$6 -> 2021
B6: SAMLET BYRETTERNE | D6: 100.8 | E6: 94 | F6: 66.5 | G6: 56 | H6: 74.6 | I6: 66 | J6: 80.5 | K6: 73
B7: 5. BEDSTE RET | D7: =SMALL(D9:D32,5) -> 69.4 | E7: 67 | F7: 45.5 | G7: 41 | H7: 55 | I7: 45 | J7: 63.1 | K7: =SMALL(K9:K32,5) -> 53
B8: EID | C8: Ret
B9: 901 | C9: Retten i Hjørring | D9: 80.1 | E9: 88 | F9: 49 | G9: 58 | H9: 55.3 | I9: 49 | J9: 92.7 | K9: 80
B10: 902 | C10: Retten i Aalborg | D10: 102.4 | E10: 68 | F10: 63.2 | G10: 58 | H10: 67.3 | I10: 66 | J10: 90.6 | K10: 109
B11: 903 | C11: Retten i Randers | D11: 112 | E11: 113 | F11: 77.1 | G11: 89 | H11: 101.8 | I11: 74 | J11: 128 | K11: 95
B12: 904 | C12: Retten i Århus | D12: 187.3 | E12: 93 | F12: 139.7 | G12: 33 | H12: 130.2 | I12: 104 | J12: 73 | K12: 55
B13: 905 | C13: Retten i Viborg | D13: 108.8 | E13: 114 | F13: 55.8 | G13: 47 | H13: 76.2 | I13: 66 | J13: 108.8 | K13: 83
B14: 906 | C14: Retten i Holstebro | D14: 50.9 | E14: 37 | F14: 34.1 | G14: 31 | H14: 43.2 | I14: 35 | J14: 62.1 | K14: 52
B15: 907 | C15: Retten i Herning | D15: 77.8 | E15: 72 | F15: 49.5 | G15: 41 | H15: 61.8 | I15: 47 | J15: 63.1 | K15: 57
B16: 908 | C16: Retten i Horsens | D16: 75.6 | E16: 92 | F16: 51.9 | G16: 47 | H16: 65.8 | I16: 79 | J16: 70.7 | K16: 97
B17: 909 | C17: Retten i Kolding | D17: 78.3 | E17: 78 | F17: 47.3 | G17: 54 | H17: 84.6 | I17: 79 | J17: 76.8 | K17: 87
B18: 910 | C18: Retten i Esbjerg | D18: 50.7 | E18: 54 | F18: 46.2 | G18: 54 | H18: 55 | I18: 60 | J18: 75.4 | K18: 69
B19: 911 | C19: Retten i Sønderborg | D19: 121.9 | E19: 108 | F19: 57 | G19: 50 | H19: 58.5 | I19: 65 | J19: 92.2 | K19: 105
B20: 912 | C20: Retten i Odense | D20: 90.2 | E20: 132 | F20: 51.4 | G20: 61 | H20: 70.3 | I20: 86 | J20: 79.7 | K20: 63
B21: 913 | C21: Retten i Svendborg | D21: 88.6 | E21: 95 | F21: 57.3 | G21: 50 | H21: 112.9 | I21: 79 | J21: 91.9 | K21: 80
B22: 914 | C22: Retten i Nykøbing F. | D22: 78.1 | E22: 67 | F22: 42.2 | G22: 38 | H22: 60.9 | I22: 53 | J22: 74.6 | K22: 60
B23: 915 | C23: Retten i Næstved | D23: 88.3 | E23: 82 | F23: 53.3 | G23: 46 | H23: 86.6 | I23: 68 | J23: 62.1 | K23: 69
B24: 916 | C24: Retten i Holbæk | D24: 84.7 | E24: 75 | F24: 91.5 | G24: 56 | H24: 78 | I24: 45 | J24: 81.4 | K24: 56
B25: 917 | C25: Retten i Roskilde | D25: 69.4 | E25: 67 | F25: 58.8 | G25: 64 | H25: 52.3 | I25: 42 | J25: 65.8 | K25: 63
B26: 918 | C26: Retten i Hillerød | D26: 89.3 | E26: 175 | F26: 55.1 | G26: 66 | H26: 77.5 | I26: 56 | J26: 59.1 | K26: 53
B27: 919 | C27: Retten i Helsingør | D27: 84.4 | E27: 115 | F27: 45.5 | G27: 59 | H27: 61 | I27: 67 | J27: 67.5 | K27: 72
B28: 920 | C28: Retten i Lyngby | D28: 59.1 | E28: 67 | F28: 44.7 | G28: 55 | H28: 41.8 | I28: 34 | J28: 77.3 | K28: 38
B29: 921 | C29: Retten i Glostrup | D29: 159.9 | E29: 129 | F29: 75 | G29: 49 | H29: 65.7 | I29: 68 | J29: 69.1 | K29: 45
B30: 922 | C30: Retten på Frederiksberg | D30: 131.4 | E30: 100 | F30: 67.8 | G30: 76 | H30: 72.3 | I30: 49 | J30: 105.5 | K30: 85
B31: 923 | C31: Københavns Byret | D31: 87.6 | E31: 88 | F31: 58.8 | G31: 73 | H31: 83.9 | I31: 80 | J31: 73.3 | K31: 60
B32: 924 | C32: Retten på Bornholm | D32: 31.6 | E32: 27 | F32: 32.6 | G32: 28 | H32: 28.4 | I32: 28 | J32: 47.2 | K32: 40

Sheet Sagstid.Skifte
B2: GENNEMSNITLIG SAGSBEHANDLINGSTID SKIFTESAGER (DAGE)
D4: Boudlæg | F4: Uskiftet bo | H4: Privat skifte | J4: Forenklet privat skifte
D5: =Overblik!$D$6 -> 2020 | E5: =Overblik!$E$6 -> 2021 | F5: =Overblik!$D$6 -> 2020 | G5: =Overblik!$E$6 -> 2021 | H5: =Overblik!$D$6 -> 2020 | I5: =Overblik!$E$6 -> 2021 | J5: =Overblik!$D$6 -> 2020 | K5: =Overblik!$E$6 -> 2021
B6: SAMLET BYRETTERNE | D6: 50 | E6: 46 | F6: 103 | G6: 93 | H6: 341 | I6: 336 | J6: 78 | K6: 71
B7: 5. BEDSTE RET | D7: =SMALL(D9:D32,5) -> 38 | E7: 33 | F7: 84 | G7: 82 | H7: 318 | I7: 316 | J7: 67 | K7: =SMALL(K9:K32,5) -> 57
B8: EID | C8: Ret
B9: 901 | C9: Retten i Hjørring | D9: 56 | E9: 50 | F9: 94 | G9: 85 | H9: 321 | I9: 334 | J9: 79 | K9: 71
B10: 902 | C10: Retten i Aalborg | D10: 57 | E10: 52 | F10: 90 | G10: 87 | H10: 338 | I10: 339 | J10: 78 | K10: 85
B11: 903 | C11: Retten i Randers | D11: 48 | E11: 49 | F11: 90 | G11: 97 | H11: 331 | I11: 346 | J11: 73 | K11: 67
B12: 904 | C12: Retten i Århus | D12: 70 | E12: 61 | F12: 114 | G12: 104 | H12: 402 | I12: 396 | J12: 91 | K12: 76
B13: 905 | C13: Retten i Viborg | D13: 74 | E13: 72 | F13: 103 | G13: 107 | H13: 341 | I13: 372 | J13: 92 | K13: 93
B14: 906 | C14: Retten i Holstebro | D14: 37 | E14: 39 | F14: 74 | G14: 64 | H14: 311 | I14: 314 | J14: 52 | K14: 52
B15: 907 | C15: Retten i Herning | D15: 65 | E15: 49 | F15: 92 | G15: 82 | H15: 337 | I15: 338 | J15: 84 | K15: 72
B16: 908 | C16: Retten i Horsens | D16: 52 | E16: 64 | F16: 99 | G16: 114 | H16: 340 | I16: 387 | J16: 70 | K16: 82
B17: 909 | C17: Retten i Kolding | D17: 37 | E17: 29 | F17: 84 | G17: 82 | H17: 333 | I17: 337 | J17: 68 | K17: 57
B18: 910 | C18: Retten i Esbjerg | D18: 39 | E18: 29 | F18: 112 | G18: 83 | H18: 367 | I18: 314 | J18: 70 | K18: 44
B19: 911 | C19: Retten i Sønderborg | D19: 53 | E19: 51 | F19: 122 | G19: 101 | H19: 335 | I19: 317 | J19: 79 | K19: 73
B20: 912 | C20: Retten i Odense | D20: 55 | E20: 54 | F20: 94 | G20: 82 | H20: 351 | I20: 329 | J20: 82 | K20: 75
B21: 913 | C21: Retten i Svendborg | D21: 44 | E21: 46 | F21: 83 | G21: 84 | H21: 360 | I21: 354 | J21: 89 | K21: 84
B22: 914 | C22: Retten i Nykøbing F. | D22: 38 | E22: 33 | F22: 52 | G22: 51 | H22: 313 | I22: 316 | J22: 55 | K22: 53
B23: 915 | C23: Retten i Næstved | D23: 48 | E23: 37 | F23: 103 | G23: 90 | H23: 325 | I23: 316 | J23: 74 | K23: 57
B24: 916 | C24: Retten i Holbæk | D24: 57 | E24: 32 | F24: 165 | G24: 83 | H24: 387 | I24: 344 | J24: 115 | K24: 63
B25: 917 | C25: Retten i Roskilde | D25: 46 | E25: 41 | F25: 118 | G25: 98 | H25: 338 | I25: 325 | J25: 72 | K25: 63
B26: 918 | C26: Retten i Hillerød | D26: 41 | E26: 37 | F26: 104 | G26: 93 | H26: 340 | I26: 322 | J26: 86 | K26: 72
B27: 919 | C27: Retten i Helsingør | D27: 33 | E27: 40 | F27: 107 | G27: 118 | H27: 319 | I27: 321 | J27: 67 | K27: 79
B28: 920 | C28: Retten i Lyngby | D28: 49 | E28: 39 | F28: 132 | G28: 124 | H28: 355 | I28: 344 | J28: 78 | K28: 65
B29: 921 | C29: Retten i Glostrup | D29: 50 | E29: 52 | F29: 120 | G29: 117 | H29: 318 | I29: 320 | J29: 80 | K29: 78
B30: 922 | C30: Retten på Frederiksberg | D30: 57 | E30: 60 | F30: 122 | G30: 122 | H30: 389 | I30: 416 | J30: 97 | K30: 104
B31: 923 | C31: Københavns Byret | D31: 42 | E31: 41 | F31: 96 | G31: 90 | H31: 304 | I31: 307 | J31: 67 | K31: 69
B32: 924 | C32: Retten på Bornholm | D32: 23 | E32: 19 | F32: 38 | G32: 34 | H32: 291 | I32: 267 | J32: 38 | K32: 32

Sheet HR-nøgletal_lønsum
B2: UDVALGTE HR-NØGLETAL
D4: Gnst. antal sygedage pr. ansat | F4: Personaleomsætning (%) | H4: Lønsumsforbrug (mio.) 2020-pl
D5: =Overblik!$D$6 -> 2020 | E5: =Overblik!$E$6 -> 2021 | F5: =Overblik!$D$6 -> 2020 | G5: =Overblik!$E$6 -> 2021 | H5: =Overblik!$D$6 -> 2020 | I5: =Overblik!$E$6 -> 2021
B6: SAMLET BYRETTERNE | D6: 11.3 | E6: 11.6 | F6: 7.2 | G6: 11.8 | H6: 35.13541369 | I6: =SUM(I9:I32)/24 -> 35.75488504
B7: 5. BEDSTE RET | D7: =SMALL(D9:D32,5) -> 8.9 | E7: =SMALL(E9:E32,5) -> 8.5
B8: EID | C8: Ret
B9: 901 | C9: Retten i Hjørring | D9: 9 | E9: 6.7 | F9: 11.1 | G9: 9 | H9: 26.13966582 | I9: 25.77904899
B10: 902 | C10: Retten i Aalborg | D10: 12.5 | E10: 5.5 | F10: 9.2 | G10: 12.5 | H10: 42.03003044 | I10: 40.75439419
B11: 903 | C11: Retten i Randers | D11: - | E11: 9.9 | F11: 7.6 | G11: 3.7 | H11: 27.67477894 | I11: 28.05371441
B12: 904 | C12: Retten i Århus | D12: 17.6 | E12: 18.3 | F12: 10.2 | G12: 12.8 | H12: 48.4762691 | I12: 50.33348988
B13: 905 | C13: Retten i Viborg | D13: - | E13: 8.8 | F13: 8.5 | G13: 11.7 | H13: 27.63728074 | I13: 28.44490772
B14: 906 | C14: Retten i Holstebro | D14: 10.2 | E14: 8.8 | F14: 8.5 | G14: 13.4 | H14: 19.75105665 | I14: 20.43936622
B15: 907 | C15: Retten i Herning | D15: 6.1 | E15: 7.2 | F15: 2.4 | G15: 13 | H15: 23.12818383 | I15: 23.01190216
B16: 908 | C16: Retten i Horsens | D16: 12 | E16: 8.7 | F16: 7.1 | G16: 14.7 | H16: 22.38138339 | I16: 23.36264669
B17: 909 | C17: Retten i Kolding | D17: 15.1 | E17: - | F17: 3.6 | G17: 14.9 | H17: 41.52090576 | I17: 41.692
B18: 910 | C18: Retten i Esbjerg | D18: 11.3 | E18: 11.5 | F18: 10.4 | G18: 15.3 | H18: 27.31258646 | I18: 27.36533371
B19: 911 | C19: Retten i Sønderborg | D19: - | E19: 11 | F19: 10.5 | G19: 14.2 | H19: 34.13167997 | I19: 33.38097227
B20: 912 | C20: Retten i Odense | D20: 8.9 | E20: 9.8 | F20: 6.2 | G20: 10 | H20: 42.43667345 | I20: 43.19598432
B21: 913 | C21: Retten i Svendborg | D21: 4.7 | E21: 9.5 | F21: 4.8 | G21: 13.6 | H21: 21.73533766 | I21: 21.30951363
B22: 914 | C22: Retten i Nykøbing F. | D22: 9.4 | E22: 8.5 | F22: 6.2 | G22: 11.7 | H22: 28.68026918 | I22: 27.48744486
B23: 915 | C23: Retten i Næstved | D23: 13.9 | E23: 11.3 | F23: 7.9 | G23: 12 | H23: 35.48927301 | I23: 35.47356186
B24: 916 | C24: Retten i Holbæk | D24: 9.8 | E24: 12.5 | F24: 4.5 | G24: 7 | H24: 23.08897956 | I24: 24.05685282
B25: 917 | C25: Retten i Roskilde | D25: 5.7 | E25: 8.4 | F25: 4.5 | G25: 4.5 | H25: 38.1953625 | I25: 40.773003
B26: 918 | C26: Retten i Hillerød | D26: 17 | E26: 19.2 | F26: 11.2 | G26: 15.1 | H26: 25.96615894 | I26: 24.26989513
B27: 919 | C27: Retten i Helsingør | D27: 10 | E27: 20.6 | F27: 3.2 | G27: 18.1 | H27: 23.26081386 | I27: 23.93496369
B28: 920 | C28: Retten i Lyngby | D28: 18.1 | E28: 15.1 | F28: 5.9 | G28: 10.8 | H28: 28.56675823 | I28: 28.20968687
B29: 921 | C29: Retten i Glostrup | D29: 9.9 | E29: 11.6 | F29: 10.1 | G29: 10.4 | H29: 60.18037798 | I29: 62.19801216
B30: 922 | C30: Retten på Frederiksberg | D30: 10.6 | E30: 15.8 | F30: 5.9 | G30: 17.3 | H30: 48.7103371 | I30: 46.5966407
B31: 923 | C31: Københavns Byret | D31: - | E31: 12.3 | F31: 6.1 | G31: 11 | H31: 123.1088844 | I31: 127.1664142
B32: 924 | C32: Retten på Bornholm | D32: 7.1 | E32: - | F32: 4.7 | G32: 0 | H32: 10.39288095 | I32: 10.8274916
B33: 1) Gennemsnitlig antal sygedage pr. ansat er ekskl. ansatte under socialt kapitel. Deltidssygdom er inkluderet, men barns sygdom, omsorgsdage og særlige feriedage indgår ikke.
B34: 2) "-" betyder, at der ikke er data for rettens gennemsnitlige antal sygedage i ISOLA. Retten kan kontakte Økonomistyrelsen for mere information om årsagen til de manglende fraværsdata i ISOLA.
B35: 3) Det gennemsnitlige antal sygedage pr. ansat "samlet" er for alle byretter.
B36: 4) Personaleomsætning dækker ikke et kalenderår, men i stedet et rullende år, der sammenholder medarbejderstaben i 4. kvartals midterste måned med medarbejderstaben i samme måned året før.
B37: 5) Lønsumsforbruget inkluderer egentlig løn, over- og merarbejde, stævningsmænd, refusioner og pensionsbidrag og er i faste priser (2021). Lønsummen for 2020 er opregnet til 2021-PL, så der kan foretages en sammenligning mellem de to år. Samlet vises det gns. lønsumsforbrug pr. byret.

Sheet Årsværk_Pers.kat
B2: ÅRSVÆRKSFORBRUG 2020 OG 2021
D4: Jur | E4: Kon | F4: Elev | G4: Fleks | H4: Øvr. | I4: I ALT | J4: Jur | K4: Kon | L4: Elev | M4: Fleks | N4: Øvr. | O4: I ALT | P4: Jur | Q4: Kon | R4: Elev | S4: Fleks | T4: Øvr. | U4: I ALT | V4: Jur | W4: Kon | X4: Elev | Y4: Fleks | Z4: Øvr. | AA4: I ALT
D5: =Overblik!$D$6 -> 2020 | J5: =Overblik!$E$6 -> 2021 | P5: =Overblik!$D$6 -> 2020 | V5: =Overblik!$E$6 -> 2021
D6: - absolutte tal - | J6: - absolutte tal - | P6: - indeks - | V6: - indeks -
B8: SAMLET BYRETTERNE | D8: 422.58846 | E8: 823.97667 | F8: 73.88838 | G8: 40.08744 | H8: 92.004 | I8: 1452.54495 | J8: 421.00591 | K8: 831.48688 | L8: 69.62095 | M8: 38.85476 | N8: 97.27224 | O8: 1458.24074 | P8: 100 | Q8: 100 | R8: 100 | S8: 100 | T8: 100 | U8: 100 | V8: =J8*100/D8 -> 99.62551036 | W8: =K8*100/E8 -> 100.9114591 | X8: =L8*100/F8 -> 94.22449105 | Y8: 96.9250219 | Z8: 105.7260989 | AA8: =O8*100/I8 -> 100.3921249
B9: EID | C9: Ret
B10: 901 | C10: Retten i Hjørring | D10: 12.99394 | E10: 27.39603 | F10: 3.29909 | G10: 1.15356 | H10: 2.51415 | I10: 47.35677 | J10: 13.06093 | K10: 27.47848 | L10: 2.31854 | M10: 1.0539 | N10: 2.97142 | O10: 46.88327 | P10: 100 | Q10: 100 | R10: 100 | S10: 100 | T10: 100 | U10: 100 | V10: =J10*100/D10 -> 100.515548 | W10: =K10*100/E10 -> 100.300956 | X10: 70.27816762 | Y10: 91.36065744 | Z10: 118.1878567 | AA10: 99.00014296
B11: 902 | C11: Retten i Aalborg | D11: 21.4211 | E11: 41.62123 | F11: 5.91232 | G11: 1.19795 | H11: 4.12938 | I11: 74.28198 | J11: 20.75811 | K11: 43.18242 | L11: 5.02308 | M11: 1.27042 | N11: 3.37621 | O11: 73.61024 | P11: 100 | Q11: 100 | R11: 100 | S11: 100 | T11: 100 | U11: 100 | V11: =J11*100/D11 -> 96.90496753 | W11: =K11*100/E11 -> 103.7509463 | X11: =L11*100/F11 -> 84.95954211 | Y11: =M11*100/G11 -> 106.0495012 | Z11: =N11*100/H11 -> 81.76070015 | AA11: =O11*100/I11 -> 99.09568916
B12: 903 | C12: Retten i Randers | D12: 12.05663 | E12: 28.97696 | F12: 3.29296 | G12: 1.40616 | H12: 1.98201 | I12: 47.71472 | J12: 12.91887 | K12: 28.49065 | L12: 2.33341 | M12: 1.9907 | N12: 2.23097 | O12: 47.9646 | P12: 100 | Q12: 100 | R12: 100 | S12: 100 | T12: 100 | U12: 100 | V12: 107.1515838 | W12: 98.32173561 | X12: =L12*100/F12 -> 70.86056314 | Y12: 141.5699494 | Z12: 112.5609861 | AA12: 100.5236958
B13: 904 | C13: Retten i Århus | D13: 24.42996 | E13: 46.47564 | F13: 2.44274 | G13: 2.37952 | H13: 6.25216 | I13: 81.98002 | J13: 24.70667 | K13: 45.3934 | L13: 3.87401 | M13: 2.54069 | N13: 9.19244 | O13: 85.70721 | P13: 100 | Q13: 100 | R13: 100 | S13: 100 | T13: 100 | U13: 100 | V13: 101.1326666 | W13: 97.67138226 | X13: 158.5928097 | Y13: 106.7732148 | Z13: 147.028227 | AA13: 104.5464614
B14: 905 | C14: Retten i Viborg | D14: 14.82818 | E14: 27.10151 | F14: 5.00854 | G14: 2.00006 | H14: 3.05695 | I14: 51.99524 | J14: 13.41872 | K14: 29.8504 | L14: 4.52176 | M14: 2.00006 | N14: 4.00001 | O14: 53.79095 | P14: 100 | Q14: 100 | R14: 100 | S14: 100 | T14: 100 | U14: 100 | V14: 90.49472019 | W14: 110.1429404 | X14: 90.28100005 | Y14: 100 | Z14: 130.8497031 | AA14: 103.4536046
B15: 906 | C15: Retten i Holstebro | D15: 8.02111 | E15: 19.68935 | F15: 2.64034 | G15: 2.9465 | H15: 2.33171 | I15: 35.62901 | J15: 8.83508 | K15: 19.97882 | L15: 3.31549 | M15: 1.69355 | N15: 2.84455 | O15: 36.66749 | P15: 100 | Q15: 100 | R15: 100 | S15: 100 | T15: 100 | U15: 100 | V15: 110.1478474 | W15: 101.4701857 | X15: 125.5705705 | Y15: 57.47666723 | Z15: 121.9941588 | AA15: 102.9147035
B16: 907 | C16: Retten i Herning | D16: 12.91156 | E16: 21.91397 | F16: 3.81555 | G16: 0 | H16: 2.40751 | I16: 41.04859 | J16: 11.79869 | K16: 22.20023 | L16: 3.26866 | M16: 0 | N16: 3.23803 | O16: 40.50561 | P16: 100 | Q16: 100 | R16: 100 | S16: 100 | T16: 100 | U16: 100 | V16: 91.38082463 | W16: 101.30629 | X16: 85.66681081 | Y16: - | Z16: 134.497053 | AA16: 98.67722618
B17: 908 | C17: Retten i Horsens | D17: 12.04145 | E17: 20.58887 | F17: 2.68301 | G17: 1.67367 | H17: 4.33352 | I17: 41.32052 | J17: 11.94088 | K17: 21.35246 | L17: 3.36831 | M17: 2.2659 | N17: 4.69465 | O17: 43.6222 | P17: 100 | Q17: 100 | R17: 100 | S17: 100 | T17: 100 | U17: 100 | V17: 99.16480158 | W17: 103.7087514 | X17: 125.5422082 | Y17: =M17*100/G17 -> 135.3851118 | Z17: 108.3334103 | AA17: 105.5703074
B18: 909 | C18: Retten i Kolding | D18: 21.09545 | E18: 39.59262 | F18: 3.62627 | G18: 2.99901 | H18: 2.90391 | I18: 70.21726 | J18: 22.20287 | K18: 39.0117 | L18: 3.66684 | M18: 3.07733 | N18: 3.2112 | O18: 71.16994 | P18: 100 | Q18: 100 | R18: 100 | S18: 100 | T18: 100 | U18: 100 | V18: 105.249568 | W18: 98.53275686 | X18: 101.1187805 | Y18: 102.6115285 | Z18: 110.5819395 | AA18: 101.3567604
B19: 910 | C19: Retten i Esbjerg | D19: 15.01051 | E19: 26.19319 | F19: 1.31577 | G19: 0.78156 | H19: 4.52972 | I19: 47.83075 | J19: 14.69996 | K19: 26.54279 | L19: 2.33344 | M19: 1.00003 | N19: 5.19832 | O19: 49.77454 | P19: 100 | Q19: 100 | R19: 100 | S19: 100 | T19: 100 | U19: 100 | V19: 97.93111626 | W19: 101.3346981 | X19: 177.3440647 | Y19: 127.9530682 | Z19: 114.7602942 | AA19: 104.063892
B20: 911 | C20: Retten i Sønderborg | D20: 15.67794 | E20: 34.78688 | F20: 2.0348 | G20: 1.20201 | H20: 3.71693 | I20: 57.41856 | J20: 15.02947 | K20: 32.94109 | L20: 1.33339 | M20: 1.42496 | N20: 2.28214 | O20: 53.01105 | P20: 100 | Q20: 100 | R20: 100 | S20: 100 | T20: 100 | U20: 100 | V20: 95.86380609 | W20: 94.69400533 | X20: 65.52929035 | Y20: 118.5480986 | Z20: 61.39851975 | AA20: 92.32389318
B21: 912 | C21: Retten i Odense | D21: 20.78204 | E21: 43.46331 | F21: 4.00016 | G21: 0.82323 | H21: 5.05993 | I21: 74.12867 | J21: 20.66863 | K21: 45.38108 | L21: 3.51256 | M21: 0.5406 | N21: 4.94003 | O21: 75.0429 | P21: 100 | Q21: 100 | R21: 100 | S21: 100 | T21: 100 | U21: 100 | V21: 99.45428841 | W21: 104.4123883 | X21: 87.81048758 | Y21: 65.66816078 | Z21: 97.630402 | AA21: 101.2333015
B22: 913 | C22: Retten i Svendborg | D22: 11.11692 | E22: 20.92918 | F22: 2.00006 | G22: 1.00003 | H22: 4.20652 | I22: 39.25271 | J22: 10.47298 | K22: 20.73733 | L22: 1.71477 | M22: 1.00003 | N22: 4.70385 | O22: 38.62896 | P22: 100 | Q22: 100 | R22: 100 | S22: 100 | T22: 100 | U22: 100 | V22: 94.20756828 | W22: 99.08333724 | X22: 85.73592792 | Y22: 100 | Z22: 111.8228369 | AA22: 98.41093774
B23: 914 | C23: Retten i Nykøbing F. | D23: 13.18387 | E23: 30.95584 | F23: 2.00008 | G23: 0.41472 | H23: 3.38808 | I23: 49.94259 | J23: 13.07402 | K23: 31.18948 | L23: 1.84976 | M23: 0.40544 | N23: 2.78623 | O23: 49.30493 | P23: 100 | Q23: 100 | R23: 100 | S23: 100 | T23: 100 | U23: 100 | V23: 99.16678487 | W23: 100.7547526 | X23: 92.48430063 | Y23: 97.76234568 | Z23: 82.2362518 | AA23: 98.72321399
B24: 915 | C24: Retten i Næstved | D24: 18.08201 | E24: 38.76549 | F24: 2.19147 | G24: 2.49415 | H24: 3.70328 | I24: 65.2364 | J24: 17.01714 | K24: 40.35741 | L24: 2.67273 | M24: 2.88017 | N24: 4.76259 | O24: 67.69004 | P24: 100 | Q24: 100 | R24: 100 | S24: 100 | T24: 100 | U24: 100 | V24: 94.11088701 | W24: 104.1065391 | X24: 121.9606018 | Y24: 115.4770162 | Z24: 128.6046424 | AA24: 103.7611517
B25: 916 | C25: Retten i Holbæk | D25: 11.30261 | E25: 23.35397 | F25: 2.64472 | G25: 2.20247 | H25: 2.93298 | I25: 42.43675 | J25: 11.64258 | K25: 24.00753 | L25: 1.16674 | M25: 2.00006 | N25: 3.14277 | O25: 41.95968 | P25: 100 | Q25: 100 | R25: 100 | S25: 100 | T25: 100 | U25: 100 | V25: 103.0078893 | W25: 102.7984964 | X25: 44.11582323 | Y25: 90.80986347 | Z25: 107.1527934 | AA25: 98.87580929
B26: 917 | C26: Retten i Roskilde | D26: 17.95586 | E26: 39.90112 | F26: 3.6668 | G26: 0.56763 | H26: 1.3244 | I26: 63.41581 | J26: 19.3736 | K26: 42.45065 | L26: 2.16675 | M26: 0.56763 | N26: 1.83343 | O26: 66.39206 | P26: 100 | Q26: 100 | R26: 100 | S26: 100 | T26: 100 | U26: 100 | V26: 107.8956953 | W26: 106.3896201 | X26: 59.09103305 | Y26: 100 | Z26: 138.4347629 | AA26: 104.6932303
B27: 918 | C27: Retten i Hillerød | D27: 13.02245 | E27: 22.47703 | F27: 3.55731 | G27: 2.67168 | H27: 4.01993 | I27: 45.7484 | J27: 11.7589 | K27: 21.23272 | L27: 2.88719 | M27: 2.34981 | N27: 4.10007 | O27: 42.32869 | P27: 100 | Q27: 100 | R27: 100 | S27: 100 | T27: 100 | U27: 100 | V27: 90.29714071 | W27: 94.46408178 | X27: 81.16217029 | Y27: 87.95252425 | Z27: 101.9935671 | AA27: 92.52496262
B28: 919 | C28: Retten i Helsingør | D28: 12.61984 | E28: 22.78937 | F28: 2.00006 | G28: 3.02717 | H28: 2.12788 | I28: 42.56432 | J28: 13.13024 | K28: 21.73315 | L28: 1.26068 | M28: 3.02717 | N28: 2.84495 | O28: 41.99619 | P28: 100 | Q28: 100 | R28: 100 | S28: 100 | T28: 100 | U28: 100 | V28: 104.0444253 | W28: 95.36529531 | X28: 63.03210904 | Y28: =M28*100/G28 -> 100 | Z28: 133.6987988 | AA28: 98.66524357
B29: 920 | C29: Retten i Lyngby | D29: 14.61195 | E29: 25.48075 | F29: 3.16684 | G29: 0.83886 | H29: 2.55517 | I29: 46.65357 | J29: 14.29323 | K29: 25.93865 | L29: 3.65016 | M29: 0.83788 | N29: 3.14332 | O29: 47.86324 | P29: 100 | Q29: 100 | R29: 100 | S29: 100 | T29: 100 | U29: 100 | V29: 97.81877162 | W29: 101.7970429 | X29: 115.2619015 | Y29: 99.88317478 | Z29: 123.0180379 | AA29: 102.5928777
B30: 921 | C30: Retten i Glostrup | D30: 32.15906 | E30: 55.85571 | F30: 3.19213 | G30: 3.57742 | H30: 7.18584 | I30: 101.97016 | J30: 32.92966 | K30: 57.23244 | L30: 3.33873 | M30: 3.31749 | N30: 6.98319 | O30: 103.80151 | P30: 100 | Q30: 100 | R30: 100 | S30: 100 | T30: 100 | U30: 100 | V30: 102.3962143 | W30: 102.4647972 | X30: 104.5925448 | Y30: 92.73414919 | Z30: 97.17987041 | AA30: 101.7959666
B31: 922 | C31: Retten på Frederiksberg | D31: 24.92973 | E31: 45.59641 | F31: 2.64337 | G31: 4.7112 | H31: 5.65362 | I31: 83.53433 | J31: 23.95436 | K31: 42.28933 | L31: 3.27703 | M31: 2.99313 | N31: 4.97258 | O31: 77.48643 | P31: 100 | Q31: 100 | R31: 100 | S31: 100 | T31: 100 | U31: 100 | V31: 96.08752281 | W31: 92.74706057 | X31: 123.9716725 | Y31: 63.53222109 | Z31: 87.95391271 | AA31: 92.75998263
B32: 923 | C32: Københavns Byret | D32: 59.59901 | E32: 113.50507 | F32: 5.93364 | G32: 0 | H32: 10.47567 | I32: 189.51339 | J32: 60.18599 | K32: 117.0377 | L32: 6.13354 | M32: 0.27875 | N32: 7.83339 | O32: 191.46937 | P32: 100 | Q32: 100 | R32: 100 | S32: 100 | T32: 100 | U32: 100 | V32: 100.9848821 | W32: 103.1123103 | X32: 103.368927 | Y32: - | Z32: 74.77698324 | AA32: 101.0321065
B33: 924 | C33: Retten på Bornholm | D33: 2.73528 | E33: 6.56717 | F33: 0.82035 | G33: 0.01888 | H33: 1.21275 | I33: 11.35443 | J33: 3.13433 | K33: 5.47697 | L33: 0.63338 | M33: 0.33906 | N33: 1.9859 | O33: 11.56964 | P33: 100 | Q33: 100 | R33: 100 | S33: 100 | T33: 100 | U33: 100 | V33: 114.589 | W33: 83.39924199 | X33: 77.20850856 | Y33: - | Z33: 163.7518038 | AA33: 101.8953836
B34: 1) Det opgjorte årsværksforbrug er inkl. de korrektioner, der foretages som led i produktivitetsberegningen, hvorfor det ikke kan stemmes af i forhold til eksempelvis prognoseværktøjet SOL.

Sheet Årsværk_Sagsområder
B2: ÅRSVÆRKSFORBRUG DE ENKELTE SAGSOMRÅDER I 2021
E4: Straf | G4: Civil | I4: Foged | K4: Skifte | M4: Notarial
E5: Årsværk | F5: Pct. | G5: =E5 -> Årsværk | H5: =F5 -> Pct. | I5: =G5 -> Årsværk | J5: Pct. | K5: Årsværk | L5: Pct. | M5: Årsværk | N5: Pct.
B7: SAMLET BYRETTERNE | D7: Jurister | E7: 184.6161618 | F7: 0.4385120431 | G7: 145.1230421 | H7: 0.3447054749 | I7: 30.3542848 | J7: 0.07209942683 | K7: 32.03881673 | L7: 0.07610063415 | M7: 0.3612011913 | N7: 0.0008579480305
D8: Kontor | E8: 253.7136812 | F8: 0.3051325129 | G8: 139.8355562 | H8: 0.1681753009 | I8: 168.2530227 | J8: 0.2023519874 | K8: 145.6209954 | L8: 0.1751332449 | M8: 21.5585794 | N8: 0.02592774453
D9: Elev | E9: 17.19820752 | F9: 0.2470263264 | G9: 10.45227008 | H9: 0.150131104 | I9: 17.81065299 | J9: 0.2558231824 | K9: 16.92557304 | L9: 0.243110343 | M9: 0.5093161167 | N9: 0.007315558272
D10: Fleks | E10: 5.865015365 | F10: 0.150947152 | G10: 3.563653225 | H10: 0.0917172883 | I10: 9.530609456 | J10: 0.2452880794 | K10: 3.918130784 | L10: 0.100840432 | M10: 1.931547504 | N10: 0.04971199163
D11: Øvrige | E11: 10.70434203 | F11: 0.1100451889 | G11: 1.491720427 | H11: 0.01533552046 | I11: 4.868001233 | J11: 0.05004512318 | K11: 1.641285883 | L11: 0.01687311697 | M11: 2.092201247 | N11: 0.02150871869
B12: EID | C12: Ret
B13: 901 | C13: Retten i Hjørring | D13: Jurister | E13: 5.351845106 | F13: 0.4097598798 | G13: 4.942931712 | H13: 0.3784517421 | I13: 0.7257920144 | J13: 0.05556970402 | K13: 1.054976414 | L13: 0.08077345291 | M13: 0.005753529945 | N13: 0.0004405145686
B14: 901 | C14: Retten i Hjørring | D14: Kontor | E14: 6.897601076 | F14: 0.2510182905 | G14: 3.763256702 | H14: 0.1369528701 | I14: 6.634717781 | J14: 0.2414514115 | K14: 5.627974952 | L14: 0.2048139108 | M14: 0.743340858 | N14: 0.02705174588
B15: 901 | C15: Retten i Hjørring | D15: Elev | E15: 0.215845344 | F15: 0.09309537207 | G15: 0.4451810335 | H15: 0.1920092099 | I15: 0.4256701888 | J15: 0.1835940673 | K15: 0.5262751611 | L15: 0.2269855862 | M15: 0.02322637922 | N15: 0.01001767458
B16: 901 | C16: Retten i Hjørring | D16: Fleks | E16: 0.7243545733 | F16: 0.6873086377 | G16: 0.07991878007 | H16: 0.07583146416 | I16: 0.1372997054 | J16: 0.1302777354 | K16: 0.1123269413 | L16: 0.1065821627 | M16: 0 | N16: 0
B17: 901 | C17: Retten i Hjørring | D17: Øvrige | E17: 0.3465201262 | F17: 0.1166176866 | G17: 0.003881317706 | H17: 0.001306216457 | I17: 0.5362155026 | J17: 0.1804576608 | K17: 0.0005517315565 | L17: 0.0001856794248 | M17: 0.0004413852452 | N17: 0.0001485435399
B18: 902 | C18: Retten i Aalborg | D18: Jurister | E18: 7.177929488 | F18: 0.3457891633 | G18: 8.956669841 | H18: 0.431478099 | I18: 1.433928955 | J18: 0.0690780112 | K18: 1.64432718 | L18: 0.07921372322 | M18: 0.0002656442137 | N18: 1.279712911e-05
B19: 902 | C19: Retten i Aalborg | D19: Kontor | E19: 11.11490159 | F19: 0.2573941338 | G19: 7.938707561 | H19: 0.1838411919 | I19: 8.939092413 | J19: 0.2070076761 | K19: 10.25818009 | L19: 0.2375545439 | M19: 0.8703854902 | N19: 0.02015601465
B20: 902 | C20: Retten i Aalborg | D20: Elev | E20: 0.7969710641 | F20: 0.1586618298 | G20: 1.191485477 | H20: 0.2372021703 | I20: 1.454081839 | J20: 0.2894801276 | K20: 1.274544908 | L20: 0.2537377283 | M20: 0.01090040041 | N20: 0.00217006307
B21: 902 | C21: Retten i Aalborg | D21: Fleks | E21: 0.02925983663 | F21: 0.02303162469 | G21: 0 | H21: 0 | I21: 0.08222600863 | J21: 0.06472348407 | K21: 0 | L21: 0 | M21: 0 | N21: 0
B22: 902 | C22: Retten i Aalborg | D22: Øvrige | E22: 1.003871253 | F22: 0.2973367335 | G22: 0.2970508135 | H22: 0.08798351213 | I22: 1.180759806 | J22: 0.3497293729 | K22: 0 | L22: 0 | M22: 0 | N22: 0
B23: 903 | C23: Retten i Randers | D23: Jurister | E23: 5.006453627 | F23: 0.3875303047 | G23: 4.441651342 | H23: 0.3438111338 | I23: 1.026160848 | J23: 0.07943116138 | K23: 1.222563853 | L23: 0.09463396201 | M23: 0.009240132717 | N23: 0.0007152431069
B24: 903 | C24: Retten i Randers | D24: Kontor | E24: 7.859644269 | F24: 0.2758674958 | G24: 4.65428373 | H24: 0.1633617952 | I24: 5.222485552 | J24: 0.1833052441 | K24: 5.883452695 | L24: 0.2065046847 | M24: 0.6890784817 | N24: 0.02418612709
B25: 903 | C25: Retten i Randers | D25: Elev | E25: 0.2428079777 | F25: 0.1040571429 | G25: 0.438914421 | H25: 0.1881 | I25: 0.828593891 | J25: 0.3551 | K25: 0.7305240021 | L25: 0.3130714286 | M25: 0.002800092 | N25: 0.0012
B26: 903 | C26: Retten i Randers | D26: Fleks | E26: 0 | F26: 0 | G26: 0 | H26: 0 | I26: 0.3161723244 | J26: 0.158824697 | K26: 0.09134414554 | L26: 0.04588544007 | M26: 0.07041726509 | N26: 0.03537311754
B27: 903 | C27: Retten i Randers | D27: Øvrige | E27: 0 | F27: 0 | G27: 0.004080732537 | H27: 0.001829129274 | I27: 0.08321603331 | J27: 0.03730038204 | K27: 0 | L27: 0 | M27: 0 | N27: 0
B28: 904 | C28: Retten i Århus | D28: Jurister | E28: 11.66783927 | F28: 0.472254629 | G28: 8.39733585 | H28: 0.3398813296 | I28: 1.328733244 | J28: 0.05378034529 | K28: 1.819381732 | L28: 0.07363929384 | M28: 0.03726334411 | N28: 0.00150823013
B29: 904 | C29: Retten i Århus | D29: Kontor | E29: 18.3170707 | F29: 0.4035183683 | G29: 6.569948288 | H29: 0.1447335579 | I29: 6.38866993 | J29: 0.140740062 | K29: 7.999441856 | L29: 0.1762247784 | M29: 1.100828085 | N29: 0.02425084011
B30: 904 | C30: Retten i Århus | D30: Elev | E30: 0.545424098 | F30: 0.1407905757 | G30: 1.156693775 | H30: 0.2985779012 | I30: 1.332611179 | J30: 0.3439875424 | K30: 0.5841485219 | L30: 0.1507865292 | M30: 0.02042578978 | N30: 0.0052725186
B31: 904 | C31: Retten i Århus | D31: Fleks | E31: 0 | F31: 0 | G31: 0.3261300865 | H31: 0.1283628017 | I31: 1.15641768 | J31: 0.4551589056 | K31: 0.04809433295 | L31: 0.01892963445 | M31: 0 | N31: 0
B32: 904 | C32: Retten i Århus | D32: Øvrige | E32: 1.704506237 | F32: 0.1854247879 | G32: 0.1993894898 | H32: 0.02169059464 | I32: 0.4832264217 | J32: 0.05256780807 | K32: 0.6150652299 | L32: 0.06690989877 | M32: 0 | N32: 0
B33: 905 | C33: Retten i Viborg | D33: Jurister | E33: 5.393837208 | F33: 0.4019636156 | G33: 4.560562089 | H33: 0.339865657 | I33: 1.075417722 | J33: 0.08014309279 | K33: 1.326392477 | L33: 0.09884642326 | M33: 0.01014326333 | N33: 0.0007559039407
B34: 905 | C34: Retten i Viborg | D34: Kontor | E34: 8.829209594 | F34: 0.2957819525 | G34: 4.618927373 | H34: 0.1547358619 | I34: 6.907483172 | J34: 0.2314033705 | K34: 4.957366963 | L34: 0.1660737197 | M34: 0.8546744777 | N34: 0.02863192713
B35: 905 | C35: Retten i Viborg | D35: Elev | E35: 0.2293081991 | F35: 0.05071215612 | G35: 0.4588839544 | H35: 0.1014834831 | I35: 1.538114598 | J35: 0.3401583892 | K35: 1.956239002 | L35: 0.4326277826 | M35: 0.0220509261 | N35: 0.00487662461
B36: 905 | C36: Retten i Viborg | D36: Fleks | E36: 0.190905727 | F36: 0.09545 | G36: 0.008400252 | H36: 0.0042 | I36: 0.905827174 | J36: 0.4529 | K36: 0.003200096 | L36: 0.0016 | M36: 0.213406402 | N36: 0.1067
B37: 905 | C37: Retten i Viborg | D37: Øvrige | E37: 0.4968173289 | F37: 0.1242040217 | G37: 0.01385424623 | H37: 0.003463552899 | I37: 0.4289412526 | J37: 0.1072350451 | K37: 0.04101729593 | L37: 0.01025429835 | M37: 0.001418151189 | N37: 0.0003545369109
B38: 906 | C38: Retten i Holstebro | D38: Jurister | E38: 4.036947534 | F38: 0.4569225784 | G38: 2.29669093 | H38: 0.2599513451 | I38: 0.609111268 | J38: 0.06894236022 | K38: 0.9887803378 | L38: 0.1119152671 | M38: 0.006482467425 | N38: 0.0007337191542
B39: 906 | C39: Retten i Holstebro | D39: Kontor | E39: 5.289724069 | F39: 0.2647665913 | G39: 3.818801406 | H39: 0.1911424902 | I39: 4.716191252 | J39: 0.2360595497 | K39: 4.55140057 | L39: 0.2278112806 | M39: 0.4842748935 | N39: 0.02423941422
B40: 906 | C40: Retten i Holstebro | D40: Elev | E40: 0.9534404355 | F40: 0.2875715009 | G40: 0.6949939201 | H40: 0.2096202734 | I40: 0.805761684 | J40: 0.2430294418 | K40: 0.8288048239 | L40: 0.2499795879 | M40: 0 | N40: 0
B41: 906 | C41: Retten i Holstebro | D41: Fleks | E41: 0.1655767419 | F41: 0.09776903069 | G41: 0 | H41: 0 | I41: 0.1227613706 | J41: 0.07248759741 | K41: 0.1172562369 | L41: 0.06923695015 | M41: 0.08280004171 | N41: 0.04889140663
B42: 906 | C42: Retten i Holstebro | D42: Øvrige | E42: 0.008956374401 | F42: 0.003148608533 | G42: 0 | H42: 0 | I42: 0.0006705491879 | J42: 0.000235731201 | K42: 0 | L42: 0 | M42: 0.1124846263 | N42: 0.03954390897
B43: 907 | C43: Retten i Herning | D43: Jurister | E43: 6.171673713 | F43: 0.5230812669 | G43: 3.195082076 | H43: 0.2707997308 | I43: 0.5287792811 | J43: 0.04481677891 | K43: 1.505331931 | L43: 0.1275846667 | M43: 0.01373858801 | N43: 0.001164416389
B44: 907 | C44: Retten i Herning | D44: Kontor | E44: 7.491883565 | F44: 0.3374687364 | G44: 2.954917473 | H44: 0.1331030117 | I44: 4.700788123 | J44: 0.211745019 | K44: 4.23921777 | L44: 0.190953777 | M44: 0.992928345 | N44: 0.04472603865
B45: 907 | C45: Retten i Herning | D45: Elev | E45: 1.437649422 | F45: 0.4398283766 | G45: 0.09480544361 | H45: 0.02900437599 | I45: 0.6679808389 | J45: 0.2043592294 | K45: 0.9865185691 | L45: 0.3018113138 | M45: 0.01161733372 | N45: 0.003554157887
B46: 907 | C46: Retten i Herning | D46: Fleks | E46: 0 | F46: 0 | G46: 0 | H46: 0 | I46: 0 | J46: 0 | K46: 0 | L46: 0 | M46: 0 | N46: 0
B47: 907 | C47: Retten i Herning | D47: Øvrige | E47: 0 | F47: 0 | G47: 0 | H47: 0 | I47: 0 | J47: 0 | K47: 0 | L47: 0 | M47: 0 | N47: 0
B48: 908 | C48: Retten i Horsens | D48: Jurister | E48: 5.250847721 | F48: 0.4397370815 | G48: 3.628337507 | H48: 0.3038584683 | I48: 0.6726318765 | J48: 0.05633017638 | K48: 1.570156013 | L48: 0.1314941623 | M48: 0.002028781129 | N48: 0.0001699021453
B49: 908 | C49: Retten i Horsens | D49: Kontor | E49: 6.716091741 | F49: 0.3145348003 | G49: 2.921508874 | H49: 0.136823058 | I49: 4.106113992 | J49: 0.1923016829 | K49: 4.108583607 | L49: 0.1924173424 | M49: 0.8556220132 | N49: 0.04007135539
B50: 908 | C50: Retten i Horsens | D50: Elev | E50: 0.8115696127 | F50: 0.2409426723 | G50: 0.006071676602 | H50: 0.00180258842 | I50: 0.9476278895 | J50: 0.281336305 | K50: 0.9588210981 | L50: 0.2846593984 | M50: 0.06106287207 | N50: 0.01812863783
B51: 908 | C51: Retten i Horsens | D51: Fleks | E51: 0.01830574612 | F51: 0.008078797001 | G51: 1.005360496 | H51: 0.4436914672 | I51: 0.1708175504 | J51: 0.07538618227 | K51: 0.5768373209 | L51: 0.2545731589 | M51: 0.03716250578 | N51: 0.01640077046
B52: 908 | C52: Retten i Horsens | D52: Øvrige | E52: 0.9771298221 | F52: 0.2081368839 | G52: 0.003715968538 | H52: 0.0007915326036 | I52: 0.4402204735 | J52: 0.09377066948 | K52: 0.01559943942 | L52: 0.003322812014 | M52: 0.21331545 | N52: 0.04543798791
B53: 909 | C53: Retten i Kolding | D53: Jurister | E53: 9.011366419 | F53: 0.4058649363 | G53: 9.738613726 | H53: 0.4386195896 | I53: 1.02318059 | J53: 0.04608325814 | K53: 1.616273725 | L53: 0.07279571179 | M53: 0.02695486081 | N53: 0.001214025971
B54: 909 | C54: Retten i Kolding | D54: Kontor | E54: 12.9115664 | F54: 0.3309665152 | G54: 7.204462979 | H54: 0.1846744176 | I54: 7.087659177 | J54: 0.1816803466 | K54: 6.712300535 | L54: 0.1720586525 | M54: 1.13487924 | N54: 0.02909074047
B55: 909 | C55: Retten i Kolding | D55: Elev | E55: 1.416833641 | F55: 0.3863909091 | G55: 0.3168816458 | H55: 0.08641818182 | I55: 0.920193498 | J55: 0.25095 | K55: 0.9096763342 | L55: 0.2480818182 | M55: 0.06385301836 | N55: 0.01741363636
B56: 909 | C56: Retten i Kolding | D56: Fleks | E56: 1.037163323 | F56: 0.3370335074 | G56: 0.1689393696 | H56: 0.05489803487 | I56: 0.9096786495 | J56: 0.2956064671 | K56: 0.001550918305 | L56: 0.0005039817975 | M56: 0 | N56: 0
B57: 909 | C57: Retten i Kolding | D57: Øvrige | E57: 0.2829816761 | F57: 0.08812334209 | G57: 0 | H57: 0 | I57: 0.2346733484 | J57: 0.07307964264 | K57: 0.05587893726 | L57: 0.01740126347 | M57: 0.1333955755 | N57: 0.04154072482
B58: 910 | C58: Retten i Esbjerg | D58: Jurister | E58: 7.494258682 | F58: 0.509814903 | G58: 4.345520418 | H58: 0.2956144383 | I58: 0.9399624772 | J58: 0.06394319966 | K58: 1.068558773 | L58: 0.07269127079 | M58: 0.07833517955 | N58: 0.00532893828
B59: 910 | C59: Retten i Esbjerg | D59: Kontor | E59: 7.723924393 | F59: 0.290998964 | G59: 3.654526266 | H59: 0.1376843303 | I59: 6.256766154 | J59: 0.235723756 | K59: 6.034533027 | L59: 0.2273511197 | M59: 0.8761039846 | N59: 0.03300723038
B60: 910 | C60: Retten i Esbjerg | D60: Elev | E60: 0.9798781257 | F60: 0.4199285714 | G60: 0.09580437943 | H60: 0.04105714286 | I60: 0.5365245257 | J60: 0.2299285714 | K60: 0.6358290651 | L60: 0.2724857143 | M60: 0.04683547429 | N60: 0.02007142857
B61: 910 | C61: Retten i Esbjerg | D61: Fleks | E61: 0 | F61: 0 | G61: 0 | H61: 0 | I61: 0 | J61: 0 | K61: 1.00003 | L61: 1 | M61: 0 | N61: 0
B62: 910 | C62: Retten i Esbjerg | D62: Øvrige | E62: 0.005963210058 | F62: 0.00114714178 | G62: 0.005600212638 | H62: 0.001077312023 | I62: 0.1090467047 | J62: 0.02097729742 | K62: 0.1059830123 | L62: 0.02038793538 | M62: 0.01296662157 | N62: 0.00249438695
B63: 911 | C63: Retten i Sønderborg | D63: Jurister | E63: 6.143969398 | F63: 0.4087948143 | G63: 5.083099052 | H63: 0.3382088026 | I63: 0.8594151079 | J63: 0.05718199696 | K63: 1.658289916 | L63: 0.1103358878 | M63: 0.02232191836 | N63: 0.001485209949
B64: 911 | C64: Retten i Sønderborg | D64: Kontor | E64: 9.542486396 | F64: 0.2896833831 | G64: 6.444258357 | H64: 0.1956297851 | I64: 5.640814728 | J64: 0.171239468 | K64: 5.628891182 | L64: 0.1708775023 | M64: 1.364773159 | N64: 0.0414307225
B65: 911 | C65: Retten i Sønderborg | D65: Elev | E65: 0.1493063452 | F65: 0.111975 | G65: 0.5046214455 | H65: 0.37845 | I65: 0.1821744087 | J65: 0.136625 | K65: 0.404817204 | L65: 0.3036 | M65: 0.0070002975 | N65: 0.00525
B66: 911 | C66: Retten i Sønderborg | D66: Fleks | E66: 0.04663311171 | F66: 0.03272590929 | G66: 0 | H66: 0 | I66: 0.1140268257 | J66: 0.08002107127 | K66: 0.2162538104 | L66: 0.1517613199 | M66: 0 | N66: 0
B67: 911 | C67: Retten i Sønderborg | D67: Øvrige | E67: 0 | F67: 0 | G67: 0 | H67: 0 | I67: 0.2433579225 | J67: 0.1066358429 | K67: 0 | L67: 0 | M67: 0 | N67: 0
B68: 912 | C68: Retten i Odense | D68: Jurister | E68: 9.883424881 | F68: 0.4781848086 | G68: 6.354537731 | H68: 0.3074484246 | I68: 1.824560636 | J68: 0.08827680577 | K68: 1.852069183 | L68: 0.08960773803 | M68: 0.01690587122 | N68: 0.0008179483218
B69: 912 | C69: Retten i Odense | D69: Kontor | E69: 14.27327284 | F69: 0.3145203427 | G69: 5.796342968 | H69: 0.1277259811 | I69: 9.672657801 | J69: 0.2131429618 | K69: 11.36649237 | L69: 0.2504676479 | M69: 0.7585423579 | N69: 0.01671494724
B70: 912 | C70: Retten i Odense | D70: Elev | E70: 0.9461027774 | F70: 0.2693485029 | G70: 0.02870104024 | H70: 0.008170975084 | I70: 1.486206612 | J70: 0.4231120927 | K70: 1.047849436 | L70: 0.2983150283 | M70: 0.003700134108 | N70: 0.001053400969
B71: 912 | C71: Retten i Odense | D71: Fleks | E71: 0.5406 | F71: 1 | G71: 0 | H71: 0 | I71: 0 | J71: 0 | K71: 0 | L71: 0 | M71: 0 | N71: 0
B72: 912 | C72: Retten i Odense | D72: Øvrige | E72: 0.1946879675 | F72: 0.03941028039 | G72: 0 | H72: 0 | I72: 0 | J72: 0 | K72: 0 | L72: 0 | M72: 0 | N72: 0
B73: 913 | C73: Retten i Svendborg | D73: Jurister | E73: 4.664253485 | F73: 0.4453606791 | G73: 3.362296351 | H73: 0.3210448556 | I73: 0.78590227 | J73: 0.07504094059 | K73: 0.8314729081 | L73: 0.0793921986 | M73: 0 | N73: 0
B74: 913 | C74: Retten i Svendborg | D74: Kontor | E74: 5.543295984 | F74: 0.2673100146 | G74: 3.611165607 | H74: 0.1741384068 | I74: 4.738168143 | J74: 0.2284849662 | K74: 4.214679285 | L74: 0.2032411735 | M74: 0.06846283972 | N74: 0.003301429824
B75: 913 | C75: Retten i Svendborg | D75: Elev | E75: 0.4831485378 | F75: 0.2817570507 | G75: 0.2949439891 | H75: 0.1720020697 | I75: 0.004081366338 | J75: 0.002380124645 | K75: 0.2131491904 | L75: 0.1243019124 | M75: 0 | N75: 0
B76: 913 | C76: Retten i Svendborg | D76: Fleks | E76: 0.001500045 | F76: 0.0015 | G76: 0.004600138 | H76: 0.0046 | I76: 0.002500075 | J76: 0.0025 | K76: 0.57401722 | L76: 0.574 | M76: 0.207706231 | N76: 0.2077
B77: 913 | C77: Retten i Svendborg | D77: Øvrige | E77: 0.2216112816 | F77: 0.04711274416 | G77: 0.05687820617 | H77: 0.01209184097 | I77: 0.1029960545 | J77: 0.02189611797 | K77: 0.30034939 | L77: 0.06385182138 | M77: 0.2785461376 | N77: 0.05921662842
B78: 914 | C78: Retten i Nykøbing F. | D78: Jurister | E78: 5.076245986 | F78: 0.3882697124 | G78: 4.035589653 | H78: 0.3086724399 | I78: 1.587998695 | J78: 0.1214621589 | K78: 1.301273168 | L78: 0.09953122054 | M78: 0 | N78: 0
B79: 914 | C79: Retten i Nykøbing F. | D79: Kontor | E79: 7.399212578 | F79: 0.2372342398 | G79: 4.819361272 | H79: 0.154518808 | I79: 7.984701907 | J79: 0.256006253 | K79: 5.932901852 | L79: 0.1902212494 | M79: 0.5512141478 | N79: 0.01767307912
B80: 914 | C80: Retten i Nykøbing F. | D80: Elev | E80: 0.558464455 | F80: 0.3019118453 | G80: 0.112070629 | H80: 0.06058657824 | I80: 0.5146451059 | J80: 0.2782226375 | K80: 0.3969230092 | L80: 0.2145808155 | M80: 0 | N80: 0
B81: 914 | C81: Retten i Nykøbing F. | D81: Fleks | E81: 0 | F81: 0 | G81: 0 | H81: 0 | I81: 0 | J81: 0 | K81: 0 | L81: 0 | M81: 0 | N81: 0
B82: 914 | C82: Retten i Nykøbing F. | D82: Øvrige | E82: 0 | F82: 0 | G82: 0 | H82: 0 | I82: 0.09093175357 | J82: 0.03263612608 | K82: 0 | L82: 0 | M82: 0.146770396 | N82: 0.05267705681
B83: 915 | C83: Retten i Næstved | D83: Jurister | E83: 6.395544389 | F83: 0.3758295688 | G83: 5.355114547 | H83: 0.314689457 | I83: 1.519823802 | J83: 0.08931135327 | K83: 2.250159845 | L83: 0.1322290258 | M83: 0.003694064545 | N83: 0.0002170790477
B84: 915 | C84: Retten i Næstved | D84: Kontor | E84: 11.00138758 | F84: 0.2725989498 | G84: 5.603054197 | H84: 0.1388358221 | I84: 9.345244938 | J84: 0.2315620586 | K84: 6.665575596 | L84: 0.1651636117 | M84: 0.7012143339 | N84: 0.01737510742
B85: 915 | C85: Retten i Næstved | D85: Elev | E85: 0.6765012541 | F85: 0.2531124558 | G85: 0.8134575823 | H85: 0.3043545672 | I85: 0.5650705959 | J85: 0.2114207555 | K85: 0.1867072022 | L85: 0.06985636492 | M85: 0.01295708656 | N85: 0.004847884582
B86: 915 | C86: Retten i Næstved | D86: Fleks | E86: 0.197348708 | F86: 0.06851981238 | G86: 0 | H86: 0 | I86: 1.591112918 | J86: 0.5524371541 | K86: 0.09811175865 | L86: 0.03406457211 | M86: 0.2963148969 | N86: 0.1028810441
B87: 915 | C87: Retten i Næstved | D87: Øvrige | E87: 0.3489255757 | F87: 0.07326382822 | G87: 0.1134201976 | H87: 0.02381481455 | I87: 0.07409177783 | J87: 0.01555703469 | K87: 0 | L87: 0 | M87: 0.2955348624 | N87: 0.06205339162
B88: 916 | C88: Retten i Holbæk | D88: Jurister | E88: 5.052512874 | F88: 0.433968491 | G88: 3.379732007 | H88: 0.2902906407 | I88: 1.365065351 | J88: 0.1172476677 | K88: 1.110126115 | L88: 0.09535052494 | M88: 0.008962026741 | N88: 0.0007697629512
B89: 916 | C89: Retten i Holbæk | D89: Kontor | E89: 5.600164516 | F89: 0.2332670006 | G89: 3.225710563 | H89: 0.1343624506 | I89: 6.028647361 | J89: 0.2511148528 | K89: 5.634116522 | L89: 0.2346812239 | M89: 0.4861773318 | N89: 0.02025103506
B90: 916 | C90: Retten i Holbæk | D90: Elev | E90: 0.06782092943 | F90: 0.05812857143 | G90: 0.2675168143 | H90: 0.2292857143 | I90: 0.2885514697 | J90: 0.2473142857 | K90: 0.395058164 | L90: 0.3386 | M90: 0.0005500345714 | N90: 0.0004714285714
B91: 916 | C91: Retten i Holbæk | D91: Fleks | E91: 1.00003 | F91: 0.5 | G91: 1.00003 | H91: 0.5 | I91: 0 | J91: 0 | K91: 0 | L91: 0 | M91: 0 | N91: 0
B92: 916 | C92: Retten i Holbæk | D92: Øvrige | E92: 0.3549001497 | F92: 0.112925906 | G92: 0.004840686529 | H92: 0.001540261148 | I92: 0.05226121259 | J92: 0.01662902872 | K92: 0.05261797557 | L92: 0.01674254736 | M92: 0.1148855532 | N92: 0.03655550779
B93: 917 | C93: Retten i Roskilde | D93: Jurister | E93: 8.889170443 | F93: 0.4588290479 | G93: 4.930384398 | H93: 0.2544898417 | I93: 1.508257138 | J93: 0.07785115509 | K93: 1.823600832 | L93: 0.09412813478 | M93: 0.002073680758 | N93: 0.0001070364185
B94: 917 | C94: Retten i Roskilde | D94: Kontor | E94: 11.45108955 | F94: 0.2697506292 | G94: 6.430780281 | H94: 0.1514883819 | I94: 8.027544316 | J94: 0.1891029776 | K94: 8.029585578 | L94: 0.1891510631 | M94: 0.933081277 | N94: 0.02198037667
B95: 917 | C95: Retten i Roskilde | D95: Elev | E95: 0.8492826635 | F95: 0.3919615385 | G95: 0.1556059846 | H95: 0.07181538462 | I95: 0.4609510615 | J95: 0.2127384615 | K95: 0.6990102173 | L95: 0.3226076923 | M95: 0 | N95: 0
B96: 917 | C96: Retten i Roskilde | D96: Fleks | E96: 0 | F96: 0 | G96: 0 | H96: 0 | I96: 0 | J96: 0 | K96: 0 | L96: 0 | M96: 0 | N96: 0
B97: 917 | C97: Retten i Roskilde | D97: Øvrige | E97: 0 | F97: 0 | G97: 0 | H97: 0 | I97: 0 | J97: 0 | K97: 0 | L97: 0 | M97: 0 | N97: 0
B98: 918 | C98: Retten i Hillerød | D98: Jurister | E98: 4.721655447 | F98: 0.4015388724 | G98: 4.494984178 | H98: 0.3822623016 | I98: 1.067437689 | J98: 0.09077700205 | K98: 0.8278133844 | L98: 0.07039887952 | M98: 0.007926681318 | N98: 0.0006741005807
B99: 918 | C99: Retten i Hillerød | D99: Kontor | E99: 4.757699603 | F99: 0.2240739577 | G99: 4.671872687 | H99: 0.220031757 | I99: 3.397327354 | J99: 0.1600043402 | K99: 4.55828327 | L99: 0.2146820224 | M99: 0.7142057245 | N99: 0.033637034
B100: 918 | C100: Retten i Hillerød | D100: Elev | E100: 0.8878284896 | F100: 0.3075060836 | G100: 0.6053920898 | H100: 0.2096821095 | I100: 0.3333488204 | J100: 0.1154578744 | K100: 0.9022120556 | L100: 0.31248794 | M100: 0 | N100: 0
B101: 918 | C101: Retten i Hillerød | D101: Fleks | E101: 0.3680747522 | F101: 0.1566402187 | G101: 0.00140370416 | H101: 0.0005973692173 | I101: 1.350922674 | J101: 0.5749071944 | K101: 0.04177863102 | L101: 0.01777957836 | M101: 0.2051845671 | N101: 0.08731964164
B102: 918 | C102: Retten i Hillerød | D102: Øvrige | E102: 1.133049174 | F102: 0.276348739 | G102: 0.02828292732 | H102: 0.006898157184 | I102: 0.2373320956 | J102: 0.05788488869 | K102: 0.1685563158 | L102: 0.04111059464 | M102: 0.231608287 | N102: 0.05648886165
B103: 919 | C103: Retten i Helsingør | D103: Jurister | E103: 4.257764523 | F103: 0.324271645 | G103: 5.676261041 | H103: 0.4323044393 | I103: 1.055725244 | J103: 0.08040410866 | K103: 1.173390214 | L103: 0.08936548109 | M103: 0.01174313114 | N103: 0.000894357692
B104: 919 | C104: Retten i Helsingør | D104: Kontor | E104: 5.214141601 | F104: 0.2399165147 | G104: 3.197468635 | H104: 0.147124031 | I104: 5.646408525 | J104: 0.2598062649 | K104: 4.970704355 | L104: 0.2287153199 | M104: 0.3218886479 | N104: 0.0148109523
B105: 919 | C105: Retten i Helsingør | D105: Elev | E105: 0.03091437869 | F105: 0.0245219871 | G105: 0.09213233884 | H105: 0.07308146305 | I105: 0.7762139119 | J105: 0.615710499 | K105: 0.3333788407 | L105: 0.2644436659 | M105: 0.001507805226 | N105: 0.00119602534
B106: 919 | C106: Retten i Helsingør | D106: Fleks | E106: 0.5099078343 | F106: 0.1684437393 | G106: 0.05272435954 | H106: 0.01741704613 | I106: 0.1694848444 | J106: 0.05598788453 | K106: 0.1162441264 | L106: 0.03840026374 | M106: 0.4098869702 | N106: 0.135402693
B107: 919 | C107: Retten i Helsingør | D107: Øvrige | E107: 0 | F107: 0 | G107: 0.01040653671 | H107: 0.003657897926 | I107: 0.2446715565 | J107: 0.08600205855 | K107: 0.03343701486 | L107: 0.0117531116 | M107: 0 | N107: 0
B108: 920 | C108: Retten i Lyngby | D108: Jurister | E108: 4.143870885 | F108: 0.2899184358 | G108: 7.338988424 | H108: 0.5134590588 | I108: 0.8073018343 | J108: 0.05648141353 | K108: 1.022902527 | L108: 0.07156552625 | M108: 0.01001308879 | N108: 0.000700547657
B109: 920 | C109: Retten i Lyngby | D109: Kontor | E109: 5.039978608 | F109: 0.1943038134 | G109: 5.9849317 | H109: 0.2307341246 | I109: 3.2474931 | J109: 0.1251990022 | K109: 6.346179438 | L109: 0.2446611307 | M109: 1.634891167 | N109: 0.06302915406
B110: 920 | C110: Retten i Lyngby | D110: Elev | E110: 0.6857716303 | F110: 0.1878744028 | G110: 0.3496477655 | H110: 0.09578970936 | I110: 0.5532823022 | J110: 0.1515775479 | K110: 0.4632265672 | L110: 0.1269058253 | M110: 0.0707693052 | N110: 0.01938800085
B111: 920 | C111: Retten i Lyngby | D111: Fleks | E111: 0 | F111: 0 | G111: 0 | H111: 0 | I111: 0.7187976164 | J111: 0.8578765652 | K111: 0 | L111: 0 | M111: 0.1104741381 | N111: 0.1318495943
B112: 920 | C112: Retten i Lyngby | D112: Øvrige | E112: 0.01713695184 | F112: 0.005451863584 | G112: 0.1048703907 | H112: 0.03336293812 | I112: 0 | J112: 0 | K112: 0.02159072649 | L112: 0.006868765029 | M112: 0 | N112: 0
B113: 921 | C113: Retten i Glostrup | D113: Jurister | E113: 15.02647221 | F113: 0.4563202964 | G113: 11.77571395 | H113: 0.357602051 | I113: 3.030670112 | J113: 0.09203466151 | K113: 1.292142481 | L113: 0.03923947228 | M113: 0.01758783708 | N113: 0.0005341032092
B114: 921 | C114: Retten i Glostrup | D114: Kontor | E114: 18.75452901 | F114: 0.3276905371 | G114: 9.29051011 | H114: 0.1623294431 | I114: 16.3168435 | J114: 0.2850978135 | K114: 6.149591643 | L114: 0.1074494053 | M114: 0.4477882422 | N114: 0.00782402851
B115: 921 | C115: Retten i Glostrup | D115: Elev | E115: 0.8548113059 | F115: 0.256028881 | G115: 0.1895744275 | H115: 0.05678040079 | I115: 1.138924093 | J115: 0.3411249466 | K115: 0.5577228322 | L115: 0.1670464015 | M115: 0.008582076528 | N115: 0.002570461381
B116: 921 | C116: Retten i Glostrup | D116: Fleks | E116: 1.000065503 | F116: 0.3014524544 | G116: 0 | H116: 0 | I116: 1.136002389 | J116: 0.3424282782 | K116: 0.1813566051 | L116: 0.0546668129 | M116: 0 | N116: 0
B117: 921 | C117: Retten i Glostrup | D117: Øvrige | E117: 0.5791234215 | F117: 0.0829310704 | G117: 0.007715340975 | H117: 0.001104844774 | I117: 0.2364814089 | J117: 0.03386438131 | K117: 0.198162844 | L117: 0.02837712335 | M117: 0.2694277295 | N117: 0.03858232834
B118: 922 | C118: Retten på Frederiksberg | D118: Jurister | E118: 12.05259523 | F118: 0.5031482882 | G118: 8.828575955 | H118: 0.3685582063 | I118: 1.317738893 | J118: 0.05501039865 | K118: 0.672231672 | L118: 0.02806301951 | M118: 0.05559666385 | N118: 0.002320941317
B119: 922 | C119: Retten på Frederiksberg | D119: Kontor | E119: 13.5199834 | F119: 0.3197020006 | G119: 9.362862802 | H119: 0.2214001215 | I119: 10.14676537 | J119: 0.2399367729 | K119: 6.049995316 | L119: 0.1430619808 | M119: 0.2357582477 | N119: 0.005574887276
B120: 922 | C120: Retten på Frederiksberg | D120: Elev | E120: 0.7239821088 | F120: 0.2209262988 | G120: 0.9665608633 | H120: 0.2949502639 | I120: 0.8181242747 | J120: 0.2496541913 | K120: 0.7647057697 | L120: 0.2333533015 | M120: 0.0011742608 | N120: 0.0003583308057
B121: 922 | C121: Retten på Frederiksberg | D121: Fleks | E121: 0.03528946265 | F121: 0.01179015367 | G121: 0.7049768378 | H121: 0.2355316467 | I121: 0.646561651 | J121: 0.2160152252 | K121: 0.7397286406 | L121: 0.2471421691 | M121: 0.2981944862 | N121: 0.09962630632
B122: 922 | C122: Retten på Frederiksberg | D122: Øvrige | E122: 0.3714239747 | F122: 0.07469441913 | G122: 0.1098283798 | H122: 0.02208679998 | I122: 0 | J122: 0 | K122: 0.02684892494 | L122: 0.005399395272 | M122: 0.07300216627 | N122: 0.01468094355
B123: 923 | C123: Københavns Byret | D123: Jurister | E123: 31.02791087 | F123: 0.5155337791 | G123: 19.21704994 | H123: 0.3192944062 | I123: 3.663037569 | J123: 0.0608619642 | K123: 2.012791299 | L123: 0.03344285437 | M123: 0.004472500252 | N123: 7.431131817e-05
B124: 923 | C124: Københavns Byret | D124: Kontor | E124: 47.13540376 | F124: 0.402736928 | G124: 22.70365485 | H124: 0.1939858255 | I124: 16.05830015 | J124: 0.1372062177 | K124: 8.324273072 | L124: 0.07112471513 | M124: 4.63097456 | N124: 0.03956822938
B125: 923 | C125: Københavns Byret | D125: Elev | E125: 2.653290634 | F125: 0.4325871574 | G125: 1.172329387 | H125: 0.1911342206 | I125: 0.9880548666 | J125: 0.1610904741 | K125: 0.8036541113 | L125: 0.1310261466 | M125: 0.1380226623 | N125: 0.02250293668
B126: 923 | C126: Københavns Byret | D126: Fleks | E126: 0 | F126: 0 | G126: 0.2111692014 | H126: 0.7575576733 | I126: 0 | J126: 0 | K126: 0 | L126: 0 | M126: 0 | N126: 0
B127: 923 | C127: Københavns Byret | D127: Øvrige | E127: 2.577474138 | F127: 0.3290368714 | G127: 0.52790498 | H127: 0.06739163759 | I127: 0.002856025457 | J127: 0.000364596357 | K127: 0.00562704521 | L127: 0.0007183410006 | M127: 0.05655482294 | N127: 0.007219712404
B128: 924 | C128: Retten på Bornholm | D128: Jurister | E128: 0.7177723595 | F128: 0.2290034424 | G128: 0.7873194155 | H128: 0.2511922534 | I128: 0.597652188 | J128: 0.1906794077 | K128: 0.3938107538 | L128: 0.1256443175 | M128: 0.009697936034 | N128: 0.003094101781
B129: 924 | C129: Retten på Bornholm | D129: Kontor | E129: 1.329418331 | F129: 0.2427287955 | G129: 0.5942415285 | H129: 0.1084982259 | I129: 1.042137958 | J129: 0.1902763678 | K129: 1.377273865 | L129: 0.2514663883 | M129: 0.107491498 | N129: 0.01962608852
B130: 924 | C130: Retten på Bornholm | D130: Elev | E130: 0.0012540924 | F130: 0.00198 | G130: 0 | H130: 0 | I130: 0.2438639676 | J130: 0.38502 | K130: 0.36577695 | L130: 0.5775 | M130: 0.002280168 | N130: 0.0036
B131: 924 | C131: Retten på Bornholm | D131: Fleks | E131: 0 | F131: 0 | G131: 0 | H131: 0 | I131: 0 | J131: 0 | K131: 0 | L131: 0 | M131: 0 | N131: 0
B132: 924 | C132: Retten på Bornholm | D132: Øvrige | E132: 0.0792633632 | F132: 0.03991306873 | G132: 0 | H132: 0 | I132: 0.08605133318 | J132: 0.04333115121 | K132: 0 | L132: 0 | M132: 0.1518494823 | N132: 0.07646381103
B134: 1) Procenten er beregnet i forhold til det samlede årsværksforbrug ved retten inkl. generel ledelse og administration, hvorfor der ikke kan summes op til 100 % for den enkelte ret.
B135: 2) Ansatte under socialt kapitel (fleksjobbere mv.) uden tidsfordeling indgår ikke i denne opgørelse.
B136: 3) Det opgjorte årsværksforbrug er inkl. de korrektioner, der foretages som led i produktivitetsberegningen.

Sheet Dataark til 901-924 (hidden)
B11: Samlet produktivitet, retten | D11: Samlet produktivitet, jurister | F11: Samlet produktivitet, kontor | H11: ÅRVK ledelse og adm. | J11: Sagstider domsmandssager | L11: Sagstider hfh. alm. Civil | N11: Sagstid alm. fogedsag | P11: Målopfyldelse vold | R11: Målopfyldelse voldtægt | T11: Sygefravær | V11: Personaleomsætning | X11: Årsværk retten | Z11: Årsværk jurist | AB11: Årsværk kontor | AD11: Samlet lønsum
A12: Ret | B12: 2013 | C12: 2014 | D12: 2013 | E12: 2014 | F12: 2013 | G12: 2014 | H12: 2013 | I12: 2014 | J12: 2013 | K12: 2014 | L12: 2013 | M12: 2014 | N12: 2013 | O12: 2014 | P12: 2013 | Q12: 2014 | R12: 2013 | S12: 2014 | T12: 2013 | U12: 2014 | V12: 2013 | W12: 2014 | X12: 2013 | Y12: 2014 | Z12: 2013 | AA12: 2014 | AB12: 2013 | AC12: 2014 | AD12: 2013 | AE12: 2014
A13: Retten i Hjørring | B13: 102.9146793 | C13: 103.5231212 | D13: 101.4346809 | E13: 100.759754 | F13: 103.2149744 | G13: 103.3974315 | H13: 0.1868261939 | I13: 0.1665256771 | J13: 96 | K13: 95 | L13: 631.7745665 | M13: 525.5742574 | N13: 49.86269469 | O13: 49.91041129 | P13: 64 | Q13: 56.25 | R13: 75 | S13: 33.33333333 | T13: 5.7 | U13: 8.9 | V13: 12.7 | W13: 5.7 | X13: 53.476 | Y13: 50.05401 | Z13: 14.51677 | AA13: 13.73052 | AB13: 29.3254 | AC13: 28.51714 | AD13: 25.23077424 | AE13: 23.90913679 | AF13: Retten i Hjørring
A14: Retten i Aalborg | B14: 98.62855147 | C14: 96.6556053 | D14: 98.45801217 | E14: 89.37239006 | F14: 98.27397591 | G14: 106.1063077 | H14: 0.1339181623 | I14: 0.1197207669 | J14: 106 | K14: 114 | L14: 593.4757282 | M14: 527.4122807 | N14: 41.55710276 | O14: 43.94413408 | P14: 33.89830508 | Q14: 54.28571429 | R14: 60 | S14: 100 | T14: 5.1 | U14: 7.5 | V14: 12 | W14: 14.9 | X14: 75.60557 | Y14: 74.76297 | Z14: 20.77576 | AA14: 23.25516 | AB14: 43.97071 | AC14: 40.42406 | AD14: 36.32284163 | AE14: 36.63402749 | AF14: Retten i Aalborg
A15: Retten i Randers | B15: 97.0241151 | C15: 103.339095 | D15: 91.55018696 | E15: 96.00976208 | F15: 105.3368061 | G15: 117.9593277 | H15: 0.1980503732 | I15: 0.2099300769 | J15: 151 | K15: 124 | L15: 622.7865854 | M15: 555.5109489 | N15: 47.72560892 | O15: 58.37249399 | P15: 40 | Q15: 47.72727273 | R15: 0 | S15: 66.66666667 | T15: 6.9 | U15: 8.2 | V15: 10.8 | W15: 16.8 | X15: 51.35568 | Y15: 51.06822 | Z15: 14.54448 | AA15: 14.54934 | AB15: 28.09834 | AC15: 26.15055 | AD15: 26.74664964 | AE15: 25.62575263 | AF15: Retten i Randers
A16: Retten i Århus | B16: 98.14882931 | C16: 96.18247078 | D16: 94.28098483 | E16: 89.7982108 | F16: 104.1593869 | G16: 109.6431052 | H16: 0.1656399121 | I16: 0.1516882453 | J16: 140 | K16: 139 | L16: 494.8684211 | M16: 483.0638298 | N16: 56.95581015 | O16: 59.21347896 | P16: 38.46153846 | Q16: 27.08333333 | R16: 100 | S16: 14.28571429 | T16: 10.8 | U16: 9.6 | V16: 11.6 | W16: 13.7 | X16: 83.99051 | Y16: 81.20104 | Z16: 25.22725 | AA16: 25.26038 | AB16: 45.35235 | AC16: 41.33383 | AD16: 41.02113215 | AE16: 40.6273674 | AF16: Retten i Århus
A17: Retten i Viborg | B17: 97.24417792 | C17: 96.93034019 | D17: 92.31263346 | E17: 86.7549527 | F17: 105.8387295 | G17: 111.2954665 | H17: 0.1831987808 | I17: 0.1776954429 | J17: 108 | K17: 128 | L17: 534.7073171 | M17: 519.2689655 | N17: 47.35630204 | O17: 51.79351254 | P17: 67.74193548 | Q17: 62.16216216 | R17: 0 | S17: 100 | T17: 4.7 | U17: 5.9 | V17: 16.2 | W17: 19.2 | X17: 53.08464 | Y17: 52.03653 | Z17: 15.00269 | AA17: 15.44982 | AB17: 28.03999 | AC17: 26.36467 | AD17: 25.88336059 | AE17: 24.61018693 | AF17: Retten i Viborg
A18: Retten i Holstebro | B18: 103.5572491 | C18: 100.812459 | D18: 103.5300145 | E18: 99.45621923 | F18: 106.9435187 | G18: 105.1031682 | H18: 0.2155162205 | I18: 0.2143408913 | J18: 86 | K18: 84 | L18: 475.9032258 | M18: 413.4242424 | N18: 32.54022491 | O18: 34.27151899 | P18: 72.72727273 | Q18: 71.42857143 | R18: 100 | S18: 50 | T18: 5 | U18: 7.3 | V18: 16.2 | W18: 14.1 | X18: 38.40156 | Y18: 37.12805 | Z18: 9.67165 | AA18: 9.58671 | AB18: 20.53304 | AC18: 20.18777 | AD18: 19.40336905 | AE18: 19.09541128 | AF18: Retten i Holstebro
A19: Retten i Herning | B19: 92.5848018 | C19: 99.65816242 | D19: 82.04356593 | E19: 89.417041 | F19: 104.7436876 | G19: 111.3990738 | H19: 0.1955231872 | I19: 0.1893007858 | J19: 94 | K19: 91 | L19: 433.9708738 | M19: 520.7297297 | N19: 46.84155791 | O19: 46.73239437 | P19: 52.63157895 | Q19: 76.92307692 | R19: 16.66666667 | S19: 66.66666667 | T19: 8.6 | U19: 5.7 | V19: 15.3 | W19: 15.6 | X19: 38.76992 | Y19: 37.47035 | Z19: 11.84085 | AA19: 11.39788 | AB19: 20.75833 | AC19: 20.21608 | AD19: 20.02559767 | AE19: 19.00288448 | AF19: Retten i Herning
A20: Retten i Horsens | B20: 96.30874721 | C20: 89.74637006 | D20: 90.97352822 | E20: 80.99846156 | F20: 103.1020684 | G20: 100.8419553 | H20: 0.1979407442 | I20: 0.1918271636 | J20: 96 | K20: 111 | L20: 418 | M20: 434.1073826 | N20: 49.71742972 | O20: 46.29432687 | P20: 47.05882353 | Q20: 40 | R20: 0 | S20: 50 | T20: 5.3 | U20: 7.7 | V20: 13.3 | W20: 15.7 | X20: 49.88988 | Y20: 48.3814 | Z20: 14.06581 | AA20: 14.3927 | AB20: 25.31688 | AC20: 24.3045 | AD20: 24.53226103 | AE20: 24.09609649 | AF20: Retten i Horsens
A21: Retten i Kolding | B21: 103.4065127 | C21: 102.7438446 | D21: 93.44213967 | E21: 95.50833868 | F21: 112.1976912 | G21: 109.1412959 | H21: 0.1814648532 | I21: 0.1734292531 | J21: 105 | K21: 99 | L21: 510.0465116 | M21: 480.371134 | N21: 46.31372549 | O21: 52.97362322 | P21: 61.2244898 | Q21: 60 | R21: 100 | S21: 75 | T21: 11.7 | U21: 15.9 | V21: 6.6 | W21: 15.3 | X21: 67.53552 | Y21: 66.6538 | Z21: 21.33572 | AA21: 19.78779 | AB21: 37.2161 | AC21: 36.96165 | AD21: 35.21200134 | AE21: 33.98298785 | AF21: Retten i Kolding
A22: Retten i Esbjerg | B22: 99.69839621 | C22: 96.95557776 | D22: 95.03327915 | E22: 90.16354519 | F22: 101.4630039 | G22: 101.1639788 | H22: 0.1544399994 | I22: 0.1449473346 | J22: 143 | K22: 133 | L22: 631.4972067 | M22: 627.1860465 | N22: 58.91485835 | O22: 42.71642026 | P22: 30.86419753 | Q22: 40 | R22: 0 | S22: 0 | T22: 10.3 | U22: 8.5 | V22: 15 | W22: 15.2 | X22: 54.27444 | Y22: 51.83652 | Z22: 14.92874 | AA22: 14.62602 | AB22: 29.74744 | AC22: 27.96305 | AD22: 26.28483427 | AE22: 25.05472688 | AF22: Retten i Esbjerg
A23: Retten i Sønderborg | B23: 103.0055282 | C23: 106.4151909 | D23: 98.84884045 | E23: 103.7144091 | F23: 105.9415153 | G23: 108.6960709 | H23: 0.1968216784 | I23: 0.2000639601 | J23: 77 | K23: 81 | L23: 588.0246914 | M23: 405.7076923 | N23: 52.85101266 | O23: 51.7282204 | P23: 75.67567568 | Q23: 63.82978723 | R23: 100 | S23: - | T23: 7 | U23: 6.2 | V23: 10.2 | W23: 10.3 | X23: 58.41784 | Y23: 55.80884 | Z23: 17.36145 | AA23: 15.55415 | AB23: 33.50583 | AC23: 32.17316 | AD23: 32.07104816 | AE23: 30.87363142 | AF23: Retten i Sønderborg
A24: Retten i Odense | B24: 108.3800934 | C24: 96.5395286 | D24: 106.2807687 | E24: 89.58908157 | F24: 110.9626462 | G24: 104.5850874 | H24: 0.1610274217 | I24: 0.1668205188 | J24: 97 | K24: 92 | L24: 460.0165746 | M24: 410.88 | N24: 50.36748596 | O24: 60.92986425 | P24: 51.11111111 | Q24: 45.71428571 | R24: 40 | S24: 30.76923077 | T24: 7.7 | U24: 9.5 | V24: 8.3 | W24: 7.9 | X24: 77.86296 | Y24: 77.07732 | Z24: 21.81471 | AA24: 23.71285 | AB24: 45.22965 | AC24: 43.9482 | AD24: 38.81514503 | AE24: 38.61886183 | AF24: Retten i Odense
A25: Retten i Svendborg | B25: 98.99112703 | C25: 99.80214422 | D25: 96.48288534 | E25: 95.62400779 | F25: 103.5551398 | G25: 107.9791467 | H25: 0.1662743921 | I25: 0.1705922523 | J25: 105 | K25: 122 | L25: 479.2658228 | M25: 477.09375 | N25: 47.2630719 | O25: 56.18881119 | P25: 56.60377358 | Q25: 51.28205128 | R25: 40 | S25: 0 | T25: 14.2 | U25: 7.4 | V25: 17.7 | W25: 14.5 | X25: 36.96098 | Y25: 36.62017 | Z25: 10.30021 | AA25: 10.27236 | AB25: 21.70681 | AC25: 20.21508 | AD25: 19.70705955 | AE25: 18.51114105 | AF25: Retten i Svendborg
A26: Retten i Nykøbing F. | B26: 101.1958707 | C26: 99.31443827 | D26: 103.2506045 | E26: 101.3997252 | F26: 99.98645671 | G26: 96.93095285 | H26: 0.2136326657 | I26: 0.1807260383 | J26: 94 | K26: 80 | L26: 390.2222222 | M26: 382.2692308 | N26: 51.22872467 | O26: 46.03074305 | P26: 43.83561644 | Q26: 67.30769231 | R26: 100 | S26: 50 | T26: 3.8 | U26: 7.2 | V26: 15.8 | W26: 11.5 | X26: 49.93317 | Y26: 50.32492 | Z26: 13.97805 | AA26: 13.82973 | AB26: 30.55141 | AC26: 30.67865 | AD26: 25.6823684 | AE26: 25.17850572 | AF26: Retten i Nykøbing F.
A27: Retten i Næstved | B27: 106.4522251 | C27: 102.3117616 | D27: 101.2406033 | E27: 95.96222851 | F27: 111.6879755 | G27: 108.2319237 | H27: 0.2110018934 | I27: 0.2055415245 | J27: 132 | K27: 137 | L27: 524.7538462 | M27: 502.7627119 | N27: 59.44236241 | O27: 69.69931074 | P27: 38.0952381 | Q27: 31.81818182 | R27: 50 | S27: 22.22222222 | T27: 9 | U27: 8 | V27: 19.7 | W27: 12.6 | X27: 63.45753 | Y27: 60.64993 | Z27: 18.70124 | AA27: 17.55258 | AB27: 35.80973 | AC27: 34.2524 | AD27: 31.63077126 | AE27: 29.79163161 | AF27: Retten i Næstved
A28: Retten i Holbæk | B28: 97.5198651 | C28: 101.478968 | D28: 98.0654575 | E28: 98.97449175 | F28: 95.65987869 | G28: 102.2496137 | H28: 0.1791150763 | I28: 0.1726009196 | J28: 121 | K28: 92 | L28: 423.1904762 | M28: 406.2105263 | N28: 61.38024691 | O28: 62.59675489 | P28: 66.66666667 | Q28: 60 | R28: 66.66666667 | S28: 33.33333333 | T28: 7.3 | U28: 8.7 | V28: 14.1 | W28: 18.7 | X28: 49.02491 | Y28: 45.54094 | Z28: 12.88079 | AA28: 12.52644 | AB28: 27.5082 | AC28: 25.08951 | AD28: 23.08612638 | AE28: 22.46541318 | AF28: Retten i Holbæk
A29: Retten i Roskilde | B29: 101.069153 | C29: 101.644567 | D29: 93.84592474 | E29: 99.36044334 | F29: 107.666467 | G29: 101.7161825 | H29: 0.1856861136 | I29: 0.1794598483 | J29: 152 | K29: 133 | L29: 631.7375566 | M29: 468.0430108 | N29: 62.14235163 | O29: 56.66790871 | P29: 38.46153846 | Q29: 26.66666667 | R29: - | S29: 0 | T29: 8 | U29: 4.5 | V29: 19.9 | W29: 11.9 | X29: 73.92877 | Y29: 71.54561 | Z29: 22.48327 | AA29: 20.71814 | AB29: 41.59892 | AC29: 43.09007 | AD29: 38.57747683 | AE29: 37.60096141 | AF29: Retten i Roskilde
A30: Retten i Hillerød | B30: 98.37624366 | C30: 92.68948395 | D30: 93.0362009 | E30: 83.08629181 | F30: 111.8642549 | G30: 111.2224862 | H30: 0.2259331167 | I30: 0.1991529722 | J30: 93 | K30: 113 | L30: 457.4690265 | M30: 502.826087 | N30: 49.4952913 | O30: 52.278487 | P30: 56.25 | Q30: 41.37931034 | R30: 50 | S30: 50 | T30: 9.2 | U30: 11.2 | V30: 20.1 | W30: 12.9 | X30: 51.95118 | Y30: 51.27185 | Z30: 14.9175 | AA30: 15.82924 | AB30: 25.88941 | AC30: 24.89634 | AD30: 26.59530339 | AE30: 25.43023796 | AF30: Retten i Hillerød
A31: Retten i Helsingør | B31: 96.60724523 | C31: 95.73488114 | D31: 85.9110245 | E31: 81.20297998 | F31: 105.9668203 | G31: 112.4083829 | H31: 0.1578139783 | I31: 0.1449705115 | J31: 106 | K31: 112 | L31: 446.7733333 | M31: 559.9230769 | N31: 55.7016081 | O31: 68.93901858 | P31: 53.84615385 | Q31: 40 | R31: - | S31: 0 | T31: 13.1 | U31: 10.5 | V31: 17.9 | W31: 8.1 | X31: 47.84352 | Y31: 48.75499 | Z31: 14.47586 | AA31: 15.65373 | AB31: 25.18211 | AC31: 23.82526 | AD31: 25.17136882 | AE31: 24.29663369 | AF31: Retten i Helsingør
A32: Retten i Lyngby | B32: 96.82753324 | C32: 88.90590959 | D32: 86.51477605 | E32: 79.383929 | F32: 110.7851418 | G32: 101.3125505 | H32: 0.2167293196 | I32: 0.2029569311 | J32: 103 | K32: 105 | L32: 475.2258065 | M32: 385.046729 | N32: 39.57969813 | O32: 41.28764479 | P32: 72.72727273 | Q32: 60 | R32: 100 | S32: 33.33333333 | T32: 9.7 | U32: 8.8 | V32: 15.3 | W32: 16.5 | X32: 55.74239 | Y32: 55.26352 | Z32: 19.51242 | AA32: 18.80749 | AB32: 29.6227 | AC32: 29.49397 | AD32: 31.14209533 | AE32: 29.34078699 | AF32: Retten i Lyngby
A33: Retten i Glostrup | B33: 98.98202225 | C33: 104.7182355 | D33: 100.008897 | E33: 103.6593422 | F33: 99.29484206 | G33: 101.7834329 | H33: 0.2005362955 | I33: 0.1838177813 | J33: 146 | K33: 142 | L33: 614.8410405 | M33: 509.8187702 | N33: 75.69489089 | O33: 80.59972946 | P33: 43.75 | Q33: 32.89473684 | R33: 0 | S33: 0 | T33: 11.8 | U33: 7.5 | V33: 20.6 | W33: 17.3 | X33: 115.40872 | Y33: 106.84539 | Z33: 32.60759 | AA33: 30.84999 | AB33: 66.42532 | AC33: 63.61432 | AD33: 56.2588608 | AE33: 54.12637493 | AF33: Retten i Glostrup
A34: Retten på Frederiksberg | B34: 101.2561076 | C34: 103.1249909 | D34: 97.63529013 | E34: 96.62965753 | F34: 107.7453051 | G34: 112.175938 | H34: 0.2027823079 | I34: 0.1769760671 | J34: 180 | K34: 162 | L34: 551.3023256 | M34: 542.7112299 | N34: 86.15949623 | O34: 76.66579713 | P34: 8.695652174 | Q34: 26.47058824 | R34: 0 | S34: 40 | T34: 12 | U34: 10.9 | V34: 18.3 | W34: 15.6 | X34: 79.92535 | Y34: 80.89792 | Z34: 23.83584 | AA34: 25.78624 | AB34: 44.71399 | AC34: 43.13565 | AD34: 40.40890417 | AE34: 40.72638703 | AF34: Retten på Frederiksberg
A35: Københavns Byret | B35: 96.14494276 | C35: 94.63679124 | D35: 97.09472333 | E35: 93.86221962 | F35: 91.31934696 | G35: 91.19352344 | H35: 0.2065795179 | I35: 0.2060769464 | J35: 96 | K35: 104 | L35: 512.7992278 | M35: 529.8726592 | N35: 78.12335474 | O35: 73.15736591 | P35: 70 | Q35: 38.02816901 | R35: - | S35: 16.66666667 | T35: 8.1 | U35: 10.3 | V35: 9.6 | W35: 8.7 | X35: 190.18872 | Y35: 186.12346 | Z35: 58.73651 | AA35: 59.37777 | AB35: 113.64497 | AC35: 108.74881 | AD35: 102.9923745 | AE35: 101.9412044 | AF35: Københavns Byret
A36: Retten på Bornholm | B36: 63.43657445 | C36: 62.38123174 | D36: 64.7059556 | E36: 61.18431382 | F36: 66.6434586 | G36: 67.97281795 | H36: 0.3379421224 | I36: 0.3262324987 | J36: 46 | K36: 35 | L36: 291.3529412 | M36: 332.1111111 | N36: 27.57464366 | O36: 27.50285249 | P36: 94.73684211 | Q36: 78.94736842 | R36: 100 | S36: - | T36: 7.2 | U36: 8.7 | V36: 6.4 | W36: 19.4 | X36: 14.55013 | Y36: 14.58443 | Z36: 3.48785 | AA36: 3.77068 | AB36: 7.80507 | AC36: 7.52959 | AD36: 7.31 | AE36: 7.08154941 | AF36: Retten på Bornholm
B37: 0 | C37: 0 | D37: 0 | E37: 0 | F37: 0 | G37: 0 | H37: 0 | I37: 0 | J37: 0 | K37: 0 | L37: 0 | M37: 0 | N37: 0 | O37: 0 | P37: 0 | Q37: 0 | R37: 0 | S37: 0 | T37: 0 | U37: 0 | V37: 0 | W37: 0 | X37: 0 | Y37: 0 | Z37: 0 | AA37: 0 | AB37: 0 | AC37: 0 | AD37: 0 | AE37: 0
B41: Samlet produktivitet, retten | D41: Samlet produktivitet, jurister | F41: Samlet produktivitet, kontor | H41: ÅRVK ledelse og adm. | J41: Sagstider domsmandssager | L41: Sagstider hfh. alm. Civil | N41: Sagstid alm. fogedsag | P41: Målopfyldelse vold | R41: Målopfyldelse voldtægt | T41: Sygefravær | V41: Personaleomsætning | X41: Årsværk retten | Z41: Årsværk jurist | AB41: Årsværk kontor | AD41: Samlet lønsum
A42: Ret | B42: 2010 | C42: 2011 | D42: 2010 | E42: 2011 | F42: 2010 | G42: 2011 | H42: 2011 | J42: 2011 | L42: 2011 | N42: 2011 | P42: 2011 | R42: 2011 | T42: 2011 | V42: 2011 | X42: 2011 | Z42: 2011 | AB42: 2011 | AD42: 2011
A43: Retten i Hjørring | H43: 0.1808500373 | I43: =#REF!-H43 ->  | J43: 93 | K43: =J13-J43 -> 3 | L43: 588.737931 | M43: =L13-L43 -> 43.03663544 | N43: 59.02804965 | O43: =N13-N43 -> -9.165354958 | P43: 72.72727273 | Q43: =P13-P43 -> -8.727272727 | R43: 75 | S43: =R13-R43 -> 0 | T43: 9.195340336 | U43: =T13-T43 -> -3.495340336 | V43: 13.3 | W43: =V13-V43 -> -0.6 | X43: 59.79526 | Y43: =#REF!-X43 ->  | Z43: 13.34803 | AA43: =#REF!-Z43 ->  | AB43: 33.06976 | AC43: =#REF!-AB43 ->  | AD43: 25.84077727 | AE43: =AD13-AD43 -> -0.61000303
A44: Retten i Aalborg | H44: 0.1440885883 | I44: =#REF!-H44 ->  | J44: 89 | K44: =J14-J44 -> 17 | L44: 549.7346939 | M44: =L14-L44 -> 43.74103428 | N44: 81.29756381 | O44: =N14-N44 -> -39.74046105 | P44: 70 | Q44: =P14-P44 -> -36.10169492 | R44: 0 | S44: =R14-R44 -> 60 | T44: 7.44756948 | U44: =T14-T44 -> -2.34756948 | V44: 11.1 | W44: =V14-V44 -> 0.9 | X44: 80.50898 | Y44: =#REF!-X44 ->  | Z44: 22.18722 | AA44: =#REF!-Z44 ->  | AB44: 48.742 | AC44: =#REF!-AB44 ->  | AD44: 38.77436805 | AE44: =AD14-AD44 -> -2.45152642
A45: Retten i Randers | H45: 0.2242573374 | I45: =#REF!-H45 ->  | J45: 160 | K45: -9 | L45: 633.4363636 | M45: -10.64977827 | N45: 76.65538674 | O45: -28.92977782 | P45: 43.1372549 | Q45: -3.137254902 | R45: 0 | S45: 0 | T45: 7.923213529 | U45: -1.023213529 | V45: 6.1 | W45: 4.7 | X45: 58.17027 | Y45: =#REF!-X45 ->  | Z45: 16.642 | AA45: =#REF!-Z45 ->  | AB45: 31.602 | AC45: =#REF!-AB45 ->  | AD45: 28.27830635 | AE45: -1.53165671
A46: Retten i Århus | H46: 0.1740744916 | I46: =#REF!-H46 ->  | J46: 187 | K46: -47 | L46: 585.8815789 | M46: -91.01315789 | N46: 68.09649662 | O46: -11.14068647 | P46: 44.44444444 | Q46: -5.982905983 | R46: 0 | S46: 100 | T46: 10.94548768 | U46: -0.1454876758 | V46: 11.4 | W46: 0.2 | X46: 90.00205 | Y46: =#REF!-X46 ->  | Z46: 26.56876 | AA46: =#REF!-Z46 ->  | AB46: 50.61565 | AC46: =#REF!-AB46 ->  | AD46: 43.96941009 | AE46: -2.94827794
A47: Retten i Viborg | H47: 0.1869106164 | I47: =#REF!-H47 ->  | J47: 110 | K47: -2 | L47: 598.0942408 | M47: -63.38692376 | N47: 70.36160608 | O47: -23.00530404 | P47: 67.64705882 | Q47: 0.09487666034 | R47: 100 | S47: -100 | T47: 7.021671724 | U47: -2.321671724 | V47: 10.2 | W47: 6 | X47: 55.19659 | Y47: =#REF!-X47 ->  | Z47: 15.1701 | AA47: =#REF!-Z47 ->  | AB47: 30.18242 | AC47: =#REF!-AB47 ->  | AD47: 26.64360749 | AE47: -0.7602469
A48: Retten i Holstebro | H48: 0.2156894162 | I48: =#REF!-H48 ->  | J48: 99 | K48: -13 | L48: 517.1038961 | M48: -41.2006703 | N48: 33.32733875 | O48: -0.787113838 | P48: 44.06779661 | Q48: 28.65947612 | R48: 66.66666667 | S48: 33.33333333 | T48: 7.512563132 | U48: -2.512563132 | V48: 11.9 | W48: 4.3 | X48: 46.44103 | Y48: =#REF!-X48 ->  | Z48: 11.27 | AA48: =#REF!-Z48 ->  | AB48: 23.056 | AC48: =#REF!-AB48 ->  | AD48: 21.76629581 | AE48: -2.36292676
A49: Retten i Herning | H49: 0.2140891957 | I49: =#REF!-H49 ->  | J49: 93 | K49: 1 | L49: 504 | M49: -70.02912621 | N49: 46.15043463 | O49: 0.6911232819 | P49: 60.41666667 | Q49: -7.785087719 | R49: 0 | S49: 16.66666667 | T49: 12.53367166 | U49: -3.933671661 | V49: 17.4 | W49: -2.1 | X49: 42.52615 | Y49: =#REF!-X49 ->  | Z49: 11.84873 | AA49: =#REF!-Z49 ->  | AB49: 23.57106 | AC49: =#REF!-AB49 ->  | AD49: 21.11471095 | AE49: -1.08911328
A50: Retten i Horsens | H50: 0.1978894442 | I50: =#REF!-H50 ->  | J50: 75 | K50: 21 | L50: 454.2037037 | M50: -36.2037037 | N50: 53.19851049 | O50: -3.481080771 | P50: 54.23728814 | Q50: -7.178464606 | R50: 999 | S50: -999 | T50: 9.656788281 | U50: -4.356788281 | V50: 12.5 | W50: 0.8 | X50: 53.41053 | Y50: =#REF!-X50 ->  | Z50: 14.38903 | AA50: =#REF!-Z50 ->  | AB50: 26.41923 | AC50: =#REF!-AB50 ->  | AD50: 25.08928797 | AE50: -0.55702694
A51: Retten i Kolding | H51: 0.1649720064 | I51: =#REF!-H51 ->  | J51: 150 | K51: -45 | L51: 651.4146341 | M51: -141.3681225 | N51: 50.7865086 | O51: -4.47278311 | P51: 65.51724138 | Q51: -4.292751583 | R51: 999 | S51: -899 | T51: 8.675627926 | U51: 3.024372074 | V51: 6.1 | W51: 0.5 | X51: 76.6875 | Y51: =#REF!-X51 ->  | Z51: 20.54952 | AA51: =#REF!-Z51 ->  | AB51: 45.06554 | AC51: =#REF!-AB51 ->  | AD51: 36.12998449 | AE51: -0.91798315
A52: Retten i Esbjerg | H52: 0.160884098 | I52: =#REF!-H52 ->  | J52: 134 | K52: 9 | L52: 627.5329949 | M52: 3.96421178 | N52: 57.25041368 | O52: 1.664444668 | P52: 31.91489362 | Q52: -1.050696086 | R52: 20 | S52: -20 | T52: 9.830962196 | U52: 0.469037804 | V52: 12.2 | W52: 2.8 | X52: 56.23196 | Y52: =#REF!-X52 ->  | Z52: 15.1442 | AA52: =#REF!-Z52 ->  | AB52: 32.03157 | AC52: =#REF!-AB52 ->  | AD52: 27.40345038 | AE52: -1.11861611
A53: Retten i Sønderborg | H53: 0.2093655007 | I53: =#REF!-H53 ->  | J53: 146 | K53: -69 | L53: 670.3020134 | M53: -82.27732206 | N53: 66.74565217 | O53: -13.89463951 | P53: 51.25 | Q53: 24.42567568 | R53: 0 | S53: 100 | T53: 5.1 | U53: 1.9 | V53: 12.9 | W53: -2.7 | X53: 62.58565 | Y53: =#REF!-X53 ->  | Z53: 15.411 | AA53: =#REF!-Z53 ->  | AB53: 36.905 | AC53: =#REF!-AB53 ->  | AD53: 32.31378702 | AE53: -0.24273886
A54: Retten i Odense | H54: 0.1463671875 | I54: =#REF!-H54 ->  | J54: 86 | K54: 11 | L54: 428.4694836 | M54: 31.54709102 | N54: 66.62457364 | O54: -16.25708768 | P54: 60.46511628 | Q54: -9.354005168 | R54: 37.5 | S54: 2.5 | T54: 7.222463525 | U54: 0.4775364751 | V54: 20.8 | W54: -12.5 | X54: 89.18757 | Y54: =#REF!-X54 ->  | Z54: 24.26146 | AA54: =#REF!-Z54 ->  | AB54: 52.27552 | AC54: =#REF!-AB54 ->  | AD54: 42.19547545 | AE54: -3.38033042
A55: Retten i Svendborg | H55: 0.2310023534 | I55: =#REF!-H55 ->  | J55: 100 | K55: 5 | L55: 457.0487805 | M55: 22.2170423 | N55: 39.74894068 | O55: 7.514131217 | P55: 60.52631579 | Q55: -3.922542205 | R55: 0 | S55: 40 | T55: 7.534810135 | U55: 6.665189865 | V55: 13.5 | W55: 4.2 | X55: 46.62935 | Y55: =#REF!-X55 ->  | Z55: 12.16381 | AA55: =#REF!-Z55 ->  | AB55: 26.86367 | AC55: =#REF!-AB55 ->  | AD55: 21.33413431 | AE55: -1.62707476
A56: Retten i Nykøbing F. | H56: 0.2106800886 | I56: =#REF!-H56 ->  | J56: 89 | K56: 5 | L56: 511.1076923 | M56: -120.8854701 | N56: 58.32441823 | O56: -7.095693557 | P56: 75 | Q56: -31.16438356 | R56: 33.33333333 | S56: 66.66666667 | T56: 3.1 | U56: 0.7 | V56: 5.9 | W56: 9.9 | X56: 57.71872 | Y56: =#REF!-X56 ->  | Z56: 15.11914 | AA56: =#REF!-Z56 ->  | AB56: 36.06329 | AC56: =#REF!-AB56 ->  | AD56: 27.75952561 | AE56: -2.07715721
A57: Retten i Næstved | H57: 0.2009634119 | I57: =#REF!-H57 ->  | J57: 175 | K57: -43 | L57: 667.1578947 | M57: -142.4040486 | N57: 90.31952363 | O57: -30.87716122 | P57: 19.60784314 | Q57: 18.48739496 | R57: 42.85714286 | S57: 7.142857143 | T57: 9.143692893 | U57: -0.1436928928 | V57: 8.7 | W57: 11 | X57: 71.95559 | Y57: =#REF!-X57 ->  | Z57: 19.95737 | AA57: =#REF!-Z57 ->  | AB57: 40.2327 | AC57: =#REF!-AB57 ->  | AD57: 33.44395386 | AE57: -1.8131826
A58: Retten i Holbæk | H58: 0.2013305659 | I58: =#REF!-H58 ->  | J58: 129 | K58: -8 | L58: 492.7288136 | M58: -69.53833737 | N58: 79.91707956 | O58: -18.53683265 | P58: 45.90163934 | Q58: 20.76502732 | R58: 0 | S58: 66.66666667 | T58: 10.0927266 | U58: -2.792726598 | V58: 3.7 | W58: 10.4 | X58: 52.84805 | Y58: =#REF!-X58 ->  | Z58: 12.96697 | AA58: =#REF!-Z58 ->  | AB58: 31.22812 | AC58: =#REF!-AB58 ->  | AD58: 24.06054675 | AE58: -0.97442037
A59: Retten i Roskilde | H59: 0.1985138754 | I59: =#REF!-H59 ->  | J59: 161 | K59: -9 | L59: 580.0681818 | M59: 51.66937474 | N59: 78.76805332 | O59: -16.62570169 | P59: 57.69230769 | Q59: -19.23076923 | R59: 0 | T59: 8.041632025 | U59: -0.04163202497 | V59: 8.1 | W59: 11.8 | X59: 81.93291 | Y59: =#REF!-X59 ->  | Z59: 20.991 | AA59: =#REF!-Z59 ->  | AB59: 50.15184 | AC59: =#REF!-AB59 ->  | AD59: 40.35202857 | AE59: -1.77455174
A60: Retten i Hillerød | H60: 0.1966681251 | I60: =#REF!-H60 ->  | J60: 94 | K60: =J30-J60 -> -1 | L60: 535.2297297 | M60: -77.76070318 | N60: 69.77698997 | O60: -20.28169867 | P60: 67.56756757 | Q60: -11.31756757 | R60: 0 | S60: 50 | T60: 10.53646297 | U60: -1.33646297 | V60: 15.7 | W60: 4.4 | X60: 59.93847 | Y60: =#REF!-X60 ->  | Z60: 15.51429 | AA60: =#REF!-Z60 ->  | AB60: 31.81079 | AC60: =#REF!-AB60 ->  | AD60: 28.1485882 | AE60: -1.55328481
A61: Retten i Helsingør | H61: 0.1747076542 | I61: =#REF!-H61 ->  | J61: 91 | K61: 15 | L61: 625.1616766 | M61: -178.3883433 | N61: 80.56226998 | O61: -24.86066188 | P61: 65.71428571 | Q61: -11.86813187 | R61: 33.33333333 | T61: 8.100239201 | U61: 4.999760799 | V61: 11 | W61: 6.9 | X61: 59.49472 | Y61: =#REF!-X61 ->  | Z61: 16.67005 | AA61: =#REF!-Z61 ->  | AB61: 30.65085 | AC61: =#REF!-AB61 ->  | AD61: 27.2421141 | AE61: -2.07074528
A62: Retten i Lyngby | H62: 0.215369746 | I62: =#REF!-H62 ->  | J62: 97 | K62: 6 | L62: 681.4340426 | M62: -206.2082361 | N62: 48.64405845 | O62: -9.064360324 | P62: 92 | Q62: -19.27272727 | R62: 0 | S62: 100 | T62: 13.96319244 | U62: -4.263192438 | V62: 11.4 | W62: 3.9 | X62: 64.72881 | Y62: =#REF!-X62 ->  | Z62: 18.96953 | AA62: =#REF!-Z62 ->  | AB62: 37.24601 | AC62: =#REF!-AB62 ->  | AD62: 32.28066977 | AE62: -1.13857444
A63: Retten i Glostrup | H63: 0.1969059645 | I63: =#REF!-H63 ->  | J63: 204 | K63: -58 | L63: 771.7123746 | M63: -156.8713341 | N63: 86.84454431 | O63: -11.14965342 | P63: 31.86813187 | Q63: 11.88186813 | R63: 0 | S63: 0 | T63: 10.93379043 | U63: 0.8662095749 | V63: 11.7 | W63: 8.9 | X63: 130.88573 | Y63: =#REF!-X63 ->  | Z63: 35.62068 | AA63: =#REF!-Z63 ->  | AB63: 77.10199 | AC63: =#REF!-AB63 ->  | AD63: 61.81072972 | AE63: -5.55186892
A64: Retten på Frederiksberg | H64: 0.174762062 | I64: =#REF!-H64 ->  | J64: 165 | K64: 15 | L64: 581.0327869 | M64: -29.7304613 | N64: 111.6069617 | O64: -25.44746547 | P64: 13.79310345 | Q64: -5.097451274 | R64: 0 | S64: 0 | T64: 13.6 | U64: -1.6 | V64: 6.9 | W64: 11.4 | X64: 85.6221 | Y64: =#REF!-X64 ->  | Z64: 23.5809 | AA64: =#REF!-Z64 ->  | AB64: 50.499 | AC64: =#REF!-AB64 ->  | AD64: 41.59169201 | AE64: -1.18278784
A65: Københavns Byret | H65: 0.2193251818 | I65: =#REF!-H65 ->  | J65: 149 | K65: -53 | L65: 545 | M65: -32.2007722 | N65: 119.5509634 | O65: -41.42760866 | P65: 31.50684932 | Q65: 38.49315068 | R65: 12.5 | T65: 9.68431915 | U65: -1.58431915 | V65: 7 | W65: 2.6 | X65: 193.76867 | Y65: =#REF!-X65 ->  | Z65: 57.94189 | AA65: =#REF!-Z65 ->  | AB65: 116.4215 | AC65: =#REF!-AB65 ->  | AD65: 102.5840725 | AE65: 0.40830193
A66: Retten på Bornholm | H66: 0.3437150824 | I66: =#REF!-H66 ->  | J66: 37 | K66: 9 | L66: 359.8181818 | M66: -68.46524064 | N66: 39.08944028 | O66: -11.51479662 | P66: 100 | Q66: -5.263157895 | R66: 999 | S66: -899 | T66: 6.887992143 | U66: 0.3120078568 | V66: 6.4 | W66: 0 | X66: 15.32718 | Y66: =#REF!-X66 ->  | Z66: 3.68583 | AA66: =#REF!-Z66 ->  | AB66: 8.36564 | AC66: =#REF!-AB66 ->  | AD66: 7.34 | AE66: -0.03
B67: 0 | C67: 0 | D67: 0 | E67: 0 | F67: 0 | G67: 0 | H67: 0 | I67: 0 | J67: 0 | K67: 0 | L67: 0 | M67: 0 | N67: 0 | O67: 0 | P67: 0 | Q67: 0 | R67: 0 | S67: 0 | T67: 0 | U67: 0 | V67: 0 | W67: 0 | X67: 0 | Y67: 0 | Z67: 0 | AA67: 0 | AB67: 0 | AC67: 0 | AD67: 0 | AE67: 0
